Workbook

Sheet ANALISIS
B2: RESTAURANTE "CAMINOS DE HERRADURA"
B5: ANALISIS DE PRECIOS - PLATOS
B7: MENÚ
B10: ENTRADA | C10: :
B11: ACOMPAÑAMIENTO | C11: :
B12: SOPA | C12: :
B13: FUERTE | C13: :
B14: BEBIDAS | C14: :
B15: POSTRE | C15: :
B18: NÚM. DE PERSONAS | C18: : | D18: 1 | E18: Acompañamiento del Fuerte
B19: PRECIO C/P | C19: : | D19: =(INDEX(PRECIO,PLATOS!K1)+INDEX(PRECIO2,PLATOS!N1)+INDEX(PRECIO3,PLATOS!Q1)+INDEX(PRECIO4,PLATOS!T1)+INDEX(PRECIO5,PLATOS!W1)+INDEX(PRECIO6,PLATOS!N28)) -> 0 | E19: Arroz, Papas salteadas, Ensalada de fria con mayonesa
B20: PRECIO TOTAL SIN IVA | C20: : | D20: =D19*D18 -> 0
B21: ABONOS | C21: : | D21: 0
D22: 0
D23: 0
B24: SALDO | C24: : | D24: =D20-(SUM(D21:D23)) -> 0

Sheet HOJA DE COSTOS CIF. (hidden)
C3: RESTAURANTE CAMINOS DE HERRADURA
C6: HOJA DE COSTOS
F7: O.P.N° | H7: 386
C9: CLIENTE | D9: : | E9: =ANALISIS!#REF! ->  | F9: FECHA DE CONTRATO | G9: : | H9: =ANALISIS!#REF! -> 
C10: RUC | D10: : | E10: =ANALISIS!#REF! ->  | F10: FECHA DE EVENTO | G10: : | H10: =ANALISIS!#REF! -> 
C11: CELULAR o N° de Telf. | D11: : | E11: =ANALISIS!#REF! ->  | F11: PRECIO DE VENTA | G11: : | H11: $4.50
C12: TIPO DE EVENTO | D12: : | E12: =ANALISIS!#REF! ->  | F12: ANALISIS | G12: : | H12: EN CADA PLATO SE OBTIENE UNA RENTA DEL:
C13: CANTIDAD | D13: : | E13: 100 | H13: =(H11/H36)-1 -> 44.96%
C16: SERVICIO
C19: ENTRADA | D19: :
C20: SOPA | D20: :
C21: FUERTE | D21: :
C22: BEBIDAS | D22: :
C23: POSTRE | D23: :
C24: ACOMPAÑAMIENTO | D24: :
C25: MATERIA PRIMA | E25: MANO DE OBRA | F25: CIF | H25: TOTAL
B27: E | C27: =INDEX(COSTOMP,PLATOS!CC7)*E13 -> $86.86 | E27: PLANTA | F27: =DATOS!F22*'HOJA DE COSTOS CIF.'!E13+DATOS!F75*'HOJA DE COSTOS CIF.'!E13+DATOS!F89 -> 0 | H27: =C27 -> $86.86
B28: S | C28: =INDEX(COSTOMP2,PLATOS!CF7)*E13 -> $40.48 | E28: =DATOS!I11+DATOS!J11 -> 0 | H28: =SUM(C28:E28) -> $40.48 | I28: f
B29: F | C29: =INDEX(COSTOMP3,PLATOS!CI7)*E13 -> $159.42 | E29: =DATOS!I12+DATOS!J12+DATOS!K11+DATOS!L11 -> 0 | H29: =SUM(C29:E29) -> $159.42
B30: B | C30: =INDEX(COSTOMP4,PLATOS!CL7)*E13 -> $0.03 | E30: EVENTUALES | H30: =C30 -> $0.03
B31: P | C31: =INDEX(COSTOMP5,PLATOS!CO7)*E13 -> $23.33 | E31: =DATOS!I16+DATOS!J16 -> 0 | H31: =C31 -> $23.33
B32: A | C32: =INDEX(COSTOMP6,PLATOS!CR7)*E13 -> $0.31 | E32: =DATOS!I17+DATOS!J17 -> 0 | H32: =C32+E32+F31+F27+F32 -> $0.31 | I32: v
C33: =SUM(C27:D32) -> $310.43 | E33: =E29+E32 -> 0 | F33: =SUM(F27:G32) -> 0 | H33: =SUM(C33:G33) -> $310.43
F35: COSTO TOTAL | H35: =SUM(H27:H32) -> $310.43
F36: COSTO UNITARIO | H36: =H35/E13 -> $3.10

Sheet HOJA DE COSTOS (hidden)
C3: RESTAURANTE CAMINOS DE HERRADURA
C6: HOJA DE COSTOS
F7: O.P.N° | H7: 386
C9: CLIENTE | D9: : | E9: =ANALISIS!#REF! ->  | F9: FECHA DE CONTRATO | G9: : | H9: =ANALISIS!#REF! -> 
C10: RUC | D10: : | E10: =ANALISIS!#REF! ->  | F10: FECHA DE EVENTO | G10: : | H10: =ANALISIS!#REF! -> 
C11: CELULAR o N° de Telf. | D11: : | E11: =ANALISIS!#REF! ->  | F11: PRECIO DE VENTA | G11: : | H11: $4.50
C12: TIPO DE EVENTO | D12: : | E12: =ANALISIS!#REF! ->  | F12: ANALISIS | G12: : | H12: EN CADA PLATO SE OBTIENE UNA RENTA DEL:
C13: CANTIDAD | D13: : | E13: 100 | H13: =(H11/H36)-1 -> 44.96%
C16: SERVICIO
C19: ENTRADA | D19: :
C20: SOPA | D20: :
C21: FUERTE | D21: :
C22: BEBIDAS | D22: :
C23: POSTRE | D23: :
C24: ACOMPAÑAMIENTO | D24: :
C25: MATERIA PRIMA | E25: MANO DE OBRA | F25: CIF | H25: TOTAL
B27: E | C27: =INDEX(COSTOMP,PLATOS!CC7)*E13 -> $86.86 | E27: PLANTA | F27: CIF PRESUPUESTADOS | H27: =C27 -> $86.86
B28: S | C28: =INDEX(COSTOMP2,PLATOS!CF7)*E13 -> $40.48 | E28: =DATOS!I11+DATOS!J11 -> 0 | F28: =DATOS!F22*'HOJA DE COSTOS'!E13 -> 0 | G28: MENSUAL | H28: =SUM(C28:E28) -> $40.48 | I28: f
B29: F | C29: =INDEX(COSTOMP3,PLATOS!CI7)*E13 -> $159.42 | E29: =DATOS!I12+DATOS!J12+DATOS!K11+DATOS!L11 -> 0 | H29: =SUM(C29:E29) -> $159.42
B30: B | C30: =INDEX(COSTOMP4,PLATOS!CL7)*E13 -> $0.03 | E30: EVENTUALES | F30: CIF REALES | H30: =C30 -> $0.03
B31: P | C31: =INDEX(COSTOMP5,PLATOS!CO7)*E13 -> $23.33 | E31: =DATOS!I16+DATOS!J16 -> 0 | F31: =DATOS!F75*'HOJA DE COSTOS'!E13 -> 0 | G31: M | H31: =C31 -> $23.33
B32: A | C32: =INDEX(COSTOMP6,PLATOS!CR7)*E13 -> $0.31 | E32: =DATOS!I17+DATOS!J17 -> 0 | F32: =DATOS!F89 -> 0 | G32: OP | H32: =C32+E32+F31+F28+F32 -> $0.31 | I32: v
C33: =SUM(C27:D32) -> $310.43 | E33: =E29+E32 -> 0 | F33: =SUM(F27:G32) -> 0 | H33: =SUM(C33:G33) -> $310.43
F35: COSTO TOTAL | H35: =SUM(H27:H32) -> $310.43
F36: COSTO UNITARIO | H36: =H35/E13 -> $3.10

Sheet B.D.CLIENTES (hidden)
C1: RESTAURANTE "CAMINOS DE HERRADURA"
C3: BASE DE DATOS
B5: RUC | C5: CLIENTES | D5: CELULAR | E5: E-MAIL
B7: 1003328034001 | C7: Srta. Viviana Echeverria | D7: 98944729 | E7: edwin_unt@hotmail

Sheet PROFORMA (hidden)
B2: RESTAURANTE CAMINOS DE HERRADURA
B3: PROFORMA
B4: FECHA : | D4: =NOW() -> 2010-06-10T17:02:54.750
B5: NUMERO DE PERSONAS: | D5: =ANALISIS!D18 -> 1 | E5: PERSONAS
B7: 1. | C7: SERVICIO | G7: PRECIO C/P | H7: P.T. SIN IVA
C8: ENTRADA | H8: =G8*$D$5 -> 0
C9: ACOMPA.
C10: SOPA
C11: FUERTE
C12: BEBIDA
C13: POSTRE
C14: MÚSICA | G14: $40.00
C15: ARTISTA | G15: $15.00
C16: BRINDIS
C17: MANTELERIA
B20: 2. | C20: SERVICIO | G20: PRECIO C/P | H20: P.T. SIN IVA
C21: ENTRADA | H21: =G21*$D$5 -> 0
C22: ACOMPA.
C23: SOPA
C24: FUERTE
C25: BEBIDA
C26: POSTRE
C27: MÚSICA | G27: $40.00
C28: ARTISTA | G28: $40.00
C29: BRINDIS
C30: MANTELERIA
B33: 3. | C33: SERVICIO | G33: PRECIO C/P | H33: P.T. SIN IVA
C34: ENTRADA | H34: =G34*$D$5 -> 0
C35: ACOMPA.
C36: SOPA
C37: FUERTE
C38: BEBIDA
C39: POSTRE
C40: MÚSICA | G40: $10.00
C41: ARTISTA | G41: $10.00
C42: BRINDIS
C43: MANTELERIA
B45: 4. | C45: SERVICIO | G45: PRECIO C/P | H45: P.T. SIN IVA
C46: ENTRADA | H46: =G46*$D$5 -> 0
C47: ACOMPA.
C48: SOPA
C49: FUERTE
C50: BEBIDA
C51: POSTRE
C52: MÚSICA | G52: $8.00
C53: ARTISTA
C54: BRINDIS
C55: MANTELERIA

Sheet SERVICIOS ADICIONALES (hidden)
A1: RESTAURANTE CAMINOS DE HERRADURA SERVICIOS ADICIONALES
B4: MÚSICA | C4: ADICIONAL | D4: 1 | E4: ARTISTA | F4: ADICIONAL2 | G4: 1 | H4: BRINDIS | I4: ADICIONAL3 | J4: 1 | K4: MANTELERIA | L4: ADICIONAL4 | M4: 10
B5: SI 5 HORAS | C5: =C9/ANALISIS!D18 -> 40 | D5: 2 | E5: SI 1 HORA | F5: =F9/ANALISIS!D18 -> 15 | G5: 2 | H5: AGUA | I5: 0.0375 | J5: 6 | K5: AMARILLO | M5: 13
B6: NO | C6: 0 | D6: 2 | E6: NO | F6: 0 | G6: 2 | H6: CHAMPAN | I6: 0.175 | J6: 6 | K6: AZUL | M6: 13
D7: 2 | G7: 2 | H7: COLA | I7: 0.0375 | J7: 6 | K7: DORADO | M7: 13
D8: 2 | G8: 2 | H8: VINO | I8: 0.050 | J8: 6 | K8: ROJO | M8: 13
B9: SI 5 HORAS | C9: 40 | E9: SI 1 HORA | F9: 15 | H9: VINO BONS | I9: 0.225 | K9: ROSADO
K10: VERDE
K11: AMARILLO CON FORROS | L11: 0.20
K12: AZUL CON FORROS | L12: 0.20
K13: DORADO CON FORROS | L13: 0.20
K14: ROJO CON FORROS | L14: 0.20
K15: ROSADO CON FORROS | L15: 0.20
K16: VERDE CON FORROS | L16: 0.20

Sheet DATOS
B2: MANO DE OBRA | E2: COSTOS INDIRECTOS DE FACBRICACIÓN | H2: UTILIDAD
B3: SUELDOS: | E3: CIF PRESUPUESTADOS | I3: =100%+H3 -> 100%
B4: COCINA: | C4: $240.00 | E4: AGUA
B5: SERVICIO: | C5: $240.00 | E5: LUZ
B6: PAGOS A EXTRAS: | E6: TELEFONO
B7: COCINA: | C7: $15.00 | E7: DEPRECIACIONES | F7: =AM72 -> 0 | H7: NUMERO DE TRABAJADORES
B8: SERVICIO: | C8: $15.00 | E8: GAS
E9: SERVILLETAS | I9: PLANTA | K9: PLANTA- PAGO ADICIONAL
E10: DESIFECTANTES | I10: COCINA | J10: SERVICIO | K10: COCINA | L10: SERVICIO
E11: MANTENIMIENTO EDIFICIO
I12: =(C4/30)*I11 -> 0 | J12: =(C5/30)*J11 -> 0
I14: EXTRAS
I15: COCINA | J15: SERVICIO
I17: =I16*C7 -> 0 | J17: =J16*C8 -> 0
E20: TOTAL | F20: =SUM(F4:F19) -> 0
E21: NUMERO DE PLATOS PRES. | F21: 500
E22: COSTO U. X SERVICIO | F22: =F20/F21 -> 0
E24: =0.28*100 -> 28
E25: MENSUALES
AH60: RESTAURANTE CAMINOS DE HERRADURA
AH61: DEPRECIACIONES DE ACTIVOS QUE INTERVIENEN DE LA PREPARACIÓN DEL SERVICIO
AH62: ACTIVOS FIJOS | AI62: VALOR | AJ62: AÑOS DE VIDA | AK62: VALOR RESIDUAL | AL62: DEP. ANUAL | AM62: DEP. MENSUAL
AI63: 0 | AJ63: 1 | AK63: 0 | AL63: =(AI63-AK63)/AJ63 -> 0.00 | AM63: =AL63/12 -> 0.00
AI64: 0 | AJ64: 1 | AK64: 0 | AL64: =(AI64-AK64)/AJ64 -> 0.00 | AM64: =AL64/12 -> 0.00
AI65: 0 | AJ65: 1 | AK65: 0 | AL65: 0.00 | AM65: 0.00
AI66: 0 | AJ66: 1 | AK66: 0 | AL66: 0.00 | AM66: 0.00
E67: AGUA | AI67: 0 | AJ67: 1 | AK67: 0 | AL67: =(AI67-AK67)/AJ67 -> 0.00 | AM67: 0.00
E68: LUZ | AI68: 0 | AJ68: 1 | AK68: 0 | AL68: =(AI68-AK68)/AJ68 -> 0.00 | AM68: =AL68/12 -> 0.00
E69: TELEFONO | AI69: 0 | AJ69: 1 | AK69: 0 | AL69: 0.00 | AM69: 0.00
E70: DEPRECIACIONES
E71: GAS
AH72: TOTAL | AM72: =SUM(AM63:AM70) -> 0.00
E73: TOTAL | F73: =SUM(F25:F72) -> 0
E74: NUMERO DE PLATOS REALES | F74: 1
E75: TP X SERVICIO | F75: =F73/F74 -> 0 | AJ75: VOLVER
E77: ORDEN DE PRODUCCIÓN
E78: MOI | F78: 0
E81: MPI
E82: Servilletas | F82: 0
E83: Desifectantes | F83: 0
E89: TOTAL | F89: =SUM(F78:F88) -> 0

Sheet PLATOS (hidden)
B1: PLATOS - RESTAURANTE CAMINOS DE HERRADURA | I1: ENTRADAS | J1: PRECIO | K1: 14 | L1: SOPAS | M1: PRECIO2 | N1: 14 | O1: FUERTES | P1: PRECIO3 | Q1: 14 | R1: BEBIDAS | S1: PRECIO4 | T1: 14 | U1: POSTRES | V1: PRECIO5 | W1: 19 | CA1: ENTRADAS | CB1: COSTOMP | CD1: SOPAS | CE1: COSTOMP2 | CG1: FUERTES | CH1: COSTOMP3 | CJ1: BEBIDAS | CK1: COSTOMP4 | CM1: POSTRES | CN1: COSTOMP5 | CP1: ACOMPAÑAMIENTO | CQ1: COSTOMP6
I2: =B8 -> Aguacate relleno camaron | J2: ='COSTO-ENTRADAS'!G31*DATOS!I3 -> 0.869 | K2: 14 | L2: =C8 -> Crema de acelga | M2: ='COSTO-SOPAS'!G31*DATOS!I3 -> $0.03 | N2: 14 | O2: =D8 -> Filete migñon | P2: ='COSTO-FUERTES'!G48*DATOS!I3 -> $2.81 | Q2: 14 | R2: =E8 -> Chicha de Arroz | S2: ='COSTO-BEBIDAS'!G29*DATOS!I3 -> $0.00 | T2: 14 | U2: =F8 -> Duraznos con creas | V2: ='COSTO-POSTRE'!G23*DATOS!I3 -> $0.24 | W2: 14 | CA2: =B8 -> Aguacate relleno camaron | CB2: ='COSTO-ENTRADAS'!G7 -> $0.87 | CD2: =C8 -> Crema de acelga | CE2: ='COSTO-SOPAS'!G7 -> $0.03 | CG2: =D8 -> Filete migñon | CH2: ='COSTO-FUERTES'!G25 -> $2.81 | CJ2: =E8 -> Chicha de Arroz | CK2: ='COSTO-BEBIDAS'!G7 -> $0.00 | CM2: =F8 -> Duraznos con creas | CN2: ='COSTO-POSTRE'!G7 -> $0.24 | CP2: =G8 -> Canguil | CQ2: ='COSTO-ACOMPAÑAMIENTO'!G7 -> $0.00
I3: =B9 -> Canelones de camarones | J3: ='COSTO-ENTRADAS'!G58*DATOS!I3 -> $0.67 | K3: 14 | L3: =C9 -> Crema de champiñones | M3: ='COSTO-SOPAS'!G60*DATOS!I3 -> $0.16 | N3: 14 | O3: =D9 -> Gordon blue | P3: ='COSTO-FUERTES'!G79*DATOS!I3 -> $1.89 | Q3: 14 | R3: =E9 -> Colas | S3: ='COSTO-BEBIDAS'!G48*DATOS!I3 -> $0.17 | T3: 14 | U3: =F9 -> Duraznos en almibar | V3: ='COSTO-POSTRE'!G42*DATOS!I3 -> $0.24 | W3: 15 | CA3: =B9 -> Canelones de camarones | CB3: ='COSTO-ENTRADAS'!G36 -> $0.67 | CD3: =C9 -> Crema de champiñones | CE3: ='COSTO-SOPAS'!G36 -> $0.16 | CG3: =D9 -> Gordon blue | CH3: ='COSTO-FUERTES'!G53 -> $1.89 | CJ3: =E9 -> Colas | CK3: ='COSTO-BEBIDAS'!G34 -> $0.17 | CM3: =F9 -> Duraznos en almibar | CN3: ='COSTO-POSTRE'!G28 -> $0.24 | CP3: =G9 -> Canguil con Chifles | CQ3: ='COSTO-ACOMPAÑAMIENTO'!G28 -> $0.00
I4: Canelones de carne | J4: ='COSTO-ENTRADAS'!G87*DATOS!I3 -> $0.86 | K4: 15 | L4: Crema de esparragos | M4: ='COSTO-SOPAS'!G90*DATOS!I3 -> $0.03 | N4: 14 | O4: Lomo a la plancha y pollo en salsa de champiñones | P4: ='COSTO-FUERTES'!G116*DATOS!I3 -> $1.78 | Q4: 14 | R4: Colas y Minerales | S4: ='COSTO-BEBIDAS'!G69*DATOS!I3 -> $0.17 | T4: 14 | U4: Ensalada de frutas | V4: ='COSTO-POSTRE'!G74*DATOS!I3 -> $0.14 | W4: 14 | CA4: Canelones de carne | CB4: ='COSTO-ENTRADAS'!G64 -> $0.86 | CD4: Crema de esparragos | CE4: ='COSTO-SOPAS'!G66 -> $0.03 | CG4: Lomo a la plancha y pollo en salsa de champiñones | CH4: ='COSTO-FUERTES'!G85 -> $1.78 | CJ4: Colas y Minerales | CK4: ='COSTO-BEBIDAS'!G54 -> $0.17 | CM4: Ensalada de frutas | CN4: ='COSTO-POSTRE'!G48 -> $0.14 | CP4: Rodajas de pan con mantequilla | CQ4: ='COSTO-ACOMPAÑAMIENTO'!G51 -> $0.07
I5: Canelones de pollo | J5: ='COSTO-ENTRADAS'!G115*DATOS!I3 -> $0.28 | K5: 14 | L5: Crema de pollo | M5: ='COSTO-SOPAS'!G119*DATOS!I3 -> $0.05 | N5: 15 | O5: Lomo apanado y pollo en salsa de champiñones | P5: ='COSTO-FUERTES'!G155*DATOS!I3 -> $1.99 | Q5: 15 | R5: Jugo de Guayaba | S5: ='COSTO-BEBIDAS'!G89*DATOS!I3 -> 0 | T5: 14 | U5: Frutillas con crema | V5: ='COSTO-POSTRE'!G95*DATOS!I3 -> 0 | W5: 14 | CA5: Canelones de pollo | CB5: ='COSTO-ENTRADAS'!G92 -> $0.28 | CD5: Crema de pollo | CE5: ='COSTO-SOPAS'!G95 -> $0.05 | CG5: Lomo apanado y pollo en salsa de champiñones | CH5: ='COSTO-FUERTES'!G121 -> $1.99 | CJ5: Jugo de Guayaba | CK5: ='COSTO-BEBIDAS'!G74 -> 0 | CM5: Frutillas con crema | CN5: ='COSTO-POSTRE'!G79 -> 0 | CP5: COSTO-ACOMPAÑAMIENTO'!C69 | CQ5: ='COSTO-ACOMPAÑAMIENTO'!G71 -> 0
I6: Ceviche de camarones | J6: ='COSTO-ENTRADAS'!G145*DATOS!I3 -> $0.96 | L6: Locro de cuero | M6: ='COSTO-SOPAS'!G147*DATOS!I3 -> $0.35 | O6: Lomo con champiñones y pollo apanado | P6: ='COSTO-FUERTES'!G195*DATOS!I3 -> $1.98 | R6: Jugo de Mora | S6: ='COSTO-BEBIDAS'!G110*DATOS!I3 -> 0 | U6: Frutillas en almibar | V6: ='COSTO-POSTRE'!G118*DATOS!I3 -> 0 | CA6: Ceviche de camarones | CB6: ='COSTO-ENTRADAS'!G121 -> $0.96 | CD6: Locro de cuero | CE6: ='COSTO-SOPAS'!G125 -> $0.35 | CG6: Lomo con champiñones y pollo apanado | CH6: ='COSTO-FUERTES'!G161 -> $1.98 | CJ6: Jugo de Mora | CK6: ='COSTO-BEBIDAS'!G95 -> 0 | CM6: Frutillas en almibar | CN6: ='COSTO-POSTRE'!G101 -> 0 | CP6: COSTO-ACOMPAÑAMIENTO'!C91 | CQ6: ='COSTO-ACOMPAÑAMIENTO'!G96 -> 0
B7: ENTRADA | C7: SOPA | D7: FUERTE | E7: BEBIDA | F7: POSTRE | G7: ACOMPAÑAMIENTO | I7: Ceviche de concha | J7: ='COSTO-ENTRADAS'!G174*DATOS!I3 -> $0.09 | K7: 1 | L7: Locro de queso | M7: ='COSTO-SOPAS'!G174*DATOS!I3 -> $0.40 | N7: 1 | O7: Lomo napolitano y pollo en salsa de champiñones | P7: ='COSTO-FUERTES'!G237*DATOS!I3 -> $1.57 | Q7: 1 | R7: Jugo de papaya | S7: ='COSTO-BEBIDAS'!G130*DATOS!I3 -> 0 | T7: 1 | U7: Gelatina | V7: ='COSTO-POSTRE'!G143*DATOS!I3 -> $54.54 | W7: 1 | CA7: Ceviche de concha | CB7: ='COSTO-ENTRADAS'!G150 -> $0.09 | CC7: 1 | CD7: Locro de queso | CE7: ='COSTO-SOPAS'!G152 -> $0.40 | CF7: 8 | CG7: Lomo napolitano y pollo en salsa de champiñones | CH7: ='COSTO-FUERTES'!G200 -> $1.57 | CI7: 10 | CJ7: Jugo de papaya | CK7: ='COSTO-BEBIDAS'!G115 -> 0 | CL7: 1 | CM7: Gelatina | CN7: ='COSTO-POSTRE'!G123 -> $54.54 | CO7: 7 | CP7: COSTO-ACOMPAÑAMIENTO'!C112 | CQ7: ='COSTO-ACOMPAÑAMIENTO'!G120 -> 0 | CR7: 2
B8: Aguacate relleno camaron | C8: Crema de acelga | D8: Filete migñon | E8: Chicha de Arroz | F8: Duraznos con creas | G8: Canguil | I8: Ceviche de pollo | J8: ='COSTO-ENTRADAS'!G204*DATOS!I3 -> $0.29 | L8: Sopa de albóndigas | M8: ='COSTO-SOPAS'!G213*DATOS!I3 -> $0.39 | O8: Lengua en salsa de champiñones y pollo apanado | P8: ='COSTO-FUERTES'!G277*DATOS!I3 -> $193.28 | R8: Jugo de piña | S8: ='COSTO-BEBIDAS'!G151*DATOS!I3 -> 0 | U8: Helados con torta | V8: ='COSTO-POSTRE'!G166*DATOS!I3 -> $0.23 | CA8: Ceviche de pollo | CB8: ='COSTO-ENTRADAS'!G180 -> $0.29 | CD8: Sopa de albóndigas | CE8: ='COSTO-SOPAS'!G180 -> $0.39 | CG8: Lengua en salsa de champiñones y pollo apanado | CH8: ='COSTO-FUERTES'!G243 -> $193.28 | CJ8: Jugo de piña | CK8: ='COSTO-BEBIDAS'!G136 -> 0 | CM8: Helados con torta | CN8: ='COSTO-POSTRE'!G149 -> $0.23 | CP8: COSTO-ACOMPAÑAMIENTO'!C134 | CQ8: ='COSTO-ACOMPAÑAMIENTO'!G145 -> 0
B9: Canelones de camarones | C9: Crema de champiñones | D9: Gordon blue | E9: Colas | F9: Duraznos en almibar | G9: Canguil con Chifles | I9: Coctel de Camarones | J9: ='COSTO-ENTRADAS'!G230*DATOS!I3 -> $0.82 | L9: Sopa de pollo | M9: ='COSTO-SOPAS'!G247*DATOS!I3 -> $0.40 | O9: Pollo asado y lomo en salsa de champiñones | P9: ='COSTO-FUERTES'!G319*DATOS!I3 -> $1.82 | R9: Jugo de Tomate | S9: ='COSTO-BEBIDAS'!G171*DATOS!I3 -> 0 | U9: COSTO-POSTRE'!C155 | V9: ='COSTO-POSTRE'!G190*DATOS!I3 -> 0 | CA9: Coctel de Camarones | CB9: ='COSTO-ENTRADAS'!G209 -> $0.82 | CD9: Sopa de pollo | CE9: ='COSTO-SOPAS'!G218 -> $0.40 | CG9: Pollo asado y lomo en salsa de champiñones | CH9: ='COSTO-FUERTES'!G282 -> $1.82 | CJ9: Jugo de Tomate | CK9: ='COSTO-BEBIDAS'!G156 -> 0 | CM9: COSTO-POSTRE'!C155 | CN9: ='COSTO-POSTRE'!G171 -> 0 | CP9: COSTO-ACOMPAÑAMIENTO'!C155 | CQ9: ='COSTO-ACOMPAÑAMIENTO'!G169 -> 0
B10: Canelones de carne | C10: Crema de esparragos | D10: Lomo a la plancha y pollo en salsa de champiñones | E10: Colas y Minerales | F10: Ensalada de frutas | G10: Rodajas de pan con mantequilla | I10: Tomate relleno camaron | J10: ='COSTO-ENTRADAS'!G260*DATOS!I3 -> $0.79 | L10: Yahuarlocro | M10: ='COSTO-SOPAS'!G283*DATOS!I3 -> $0.51 | O10: =D16 -> Pollo con champiñones y chuleta a la Plancha | P10: ='COSTO-FUERTES'!G356*DATOS!I3 -> $1.08 | R10: Minerales | S10: ='COSTO-BEBIDAS'!G191*DATOS!I3 -> 0 | U10: COSTO-POSTRE'!C177 | V10: ='COSTO-POSTRE'!G215*DATOS!I3 -> 0 | CA10: Tomate relleno camaron | CB10: ='COSTO-ENTRADAS'!G236 -> $0.79 | CD10: Yahuarlocro | CE10: ='COSTO-SOPAS'!G253 -> $0.51 | CG10: Pollo con champiñones y chuleta a la Plancha | CH10: ='COSTO-FUERTES'!G325 -> $1.08 | CJ10: Minerales | CK10: ='COSTO-BEBIDAS'!G177 -> 0 | CM10: COSTO-POSTRE'!C177 | CN10: ='COSTO-POSTRE'!G196 -> 0 | CP10: COSTO-ACOMPAÑAMIENTO'!C177 | CQ10: ='COSTO-ACOMPAÑAMIENTO'!G194 -> 0
B11: Canelones de pollo | C11: Crema de pollo | D11: Lomo apanado y pollo en salsa de champiñones | E11: Jugo de Guayaba | F11: Frutillas con crema | G11: COSTO-ACOMPAÑAMIENTO'!C69 | I11: COSTO-ENTRADAS'!C198 | J11: ='COSTO-ENTRADAS'!G284*DATOS!I3 -> 0 | L11: COSTO-SOPAS'!C198 | M11: ='COSTO-SOPAS'!G307*DATOS!I3 -> 0 | O11: Lomo con champiñones y pollo a la plancha | P11: ='COSTO-FUERTES'!G392*DATOS!I3 -> $1.59 | R11: COSTO-BEBIDAS'!C198 | S11: ='COSTO-BEBIDAS'!G215*DATOS!I3 -> 0 | U11: COSTO-POSTRE'!C198 | V11: ='COSTO-POSTRE'!G239*DATOS!I3 -> 0 | CA11: COSTO-ENTRADAS'!C198 | CB11: ='COSTO-ENTRADAS'!G265 -> 0 | CD11: COSTO-SOPAS'!C198 | CE11: ='COSTO-SOPAS'!G288 -> 0 | CG11: Lomo con champiñones y pollo a la plancha | CH11: ='COSTO-FUERTES'!G361 -> $1.59 | CJ11: COSTO-BEBIDAS'!C198 | CK11: ='COSTO-BEBIDAS'!G196 -> 0 | CM11: COSTO-POSTRE'!C198 | CN11: ='COSTO-POSTRE'!G220 -> 0 | CP11: COSTO-ACOMPAÑAMIENTO'!C198 | CQ11: ='COSTO-ACOMPAÑAMIENTO'!G218 -> 0
B12: Ceviche de camarones | C12: Locro de cuero | D12: Lomo con champiñones y pollo apanado | E12: Jugo de Mora | F12: Frutillas en almibar | G12: COSTO-ACOMPAÑAMIENTO'!C91 | I12: COSTO-ENTRADAS'!C220 | J12: ='COSTO-ENTRADAS'!G309*DATOS!I3 -> 0 | L12: COSTO-SOPAS'!C220 | M12: ='COSTO-SOPAS'!G332*DATOS!I3 -> 0 | O12: Papi Pollo | P12: ='COSTO-FUERTES'!G425*DATOS!I3 -> $0.99 | R12: COSTO-BEBIDAS'!C220 | S12: ='COSTO-BEBIDAS'!G240*DATOS!I3 -> 0 | U12: COSTO-POSTRE'!C220 | V12: ='COSTO-POSTRE'!G264*DATOS!I3 -> 0 | CA12: COSTO-ENTRADAS'!C220 | CB12: ='COSTO-ENTRADAS'!G290 -> 0 | CD12: COSTO-SOPAS'!C220 | CE12: ='COSTO-SOPAS'!G313 -> 0 | CG12: Papi Pollo | CH12: ='COSTO-FUERTES'!G398 -> $0.99 | CJ12: COSTO-BEBIDAS'!C220 | CK12: ='COSTO-BEBIDAS'!G221 -> 0 | CM12: COSTO-POSTRE'!C220 | CN12: ='COSTO-POSTRE'!G245 -> 0 | CP12: COSTO-ACOMPAÑAMIENTO'!C220 | CQ12: ='COSTO-ACOMPAÑAMIENTO'!G243 -> 0
B13: Ceviche de concha | C13: Locro de queso | D13: Lomo napolitano y pollo en salsa de champiñones | E13: Jugo de papaya | F13: Gelatina | G13: COSTO-ACOMPAÑAMIENTO'!C112 | I13: COSTO-ENTRADAS'!C241 | J13: ='COSTO-ENTRADAS'!G333*DATOS!I3 -> 0 | L13: COSTO-SOPAS'!C241 | M13: ='COSTO-SOPAS'!G356*DATOS!I3 -> 0 | O13: COSTO-FUERTES'!C241 | P13: ='COSTO-FUERTES'!G450*DATOS!I3 -> $0.31 | R13: COSTO-BEBIDAS'!C241 | S13: ='COSTO-BEBIDAS'!G264*DATOS!I3 -> 0 | U13: COSTO-POSTRE'!C241 | V13: ='COSTO-POSTRE'!G288*DATOS!I3 -> 0 | CA13: COSTO-ENTRADAS'!C241 | CB13: ='COSTO-ENTRADAS'!G314 -> 0 | CD13: COSTO-SOPAS'!C241 | CE13: ='COSTO-SOPAS'!G337 -> 0 | CG13: COSTO-FUERTES'!C241 | CH13: ='COSTO-FUERTES'!G430 -> $0.31 | CJ13: COSTO-BEBIDAS'!C241 | CK13: ='COSTO-BEBIDAS'!G245 -> 0 | CM13: COSTO-POSTRE'!C241 | CN13: ='COSTO-POSTRE'!G269 -> 0 | CP13: COSTO-ACOMPAÑAMIENTO'!C241 | CQ13: ='COSTO-ACOMPAÑAMIENTO'!G267 -> 0
B14: Ceviche de pollo | C14: Sopa de albóndigas | D14: Lengua en salsa de champiñones y pollo apanado | E14: Jugo de piña | F14: Helados con torta | G14: COSTO-ACOMPAÑAMIENTO'!C134 | I14: COSTO-ENTRADAS'!C263 | J14: ='COSTO-ENTRADAS'!G358*DATOS!I3 -> 0 | L14: COSTO-SOPAS'!C263 | M14: ='COSTO-SOPAS'!G381*DATOS!I3 -> 0 | O14: COSTO-FUERTES'!C263 | P14: ='COSTO-FUERTES'!G475*DATOS!I3 -> $0.31 | R14: COSTO-BEBIDAS'!C263 | S14: ='COSTO-BEBIDAS'!G289*DATOS!I3 -> 0 | U14: COSTO-POSTRE'!C263 | V14: ='COSTO-POSTRE'!G313*DATOS!I3 -> 0 | CA14: COSTO-ENTRADAS'!C263 | CB14: ='COSTO-ENTRADAS'!G339 -> 0 | CD14: COSTO-SOPAS'!C263 | CE14: ='COSTO-SOPAS'!G362 -> 0 | CG14: COSTO-FUERTES'!C263 | CH14: ='COSTO-FUERTES'!G456 -> $0.31 | CJ14: COSTO-BEBIDAS'!C263 | CK14: ='COSTO-BEBIDAS'!G270 -> 0 | CM14: COSTO-POSTRE'!C263 | CN14: ='COSTO-POSTRE'!G294 -> 0 | CP14: COSTO-ACOMPAÑAMIENTO'!C263 | CQ14: ='COSTO-ACOMPAÑAMIENTO'!G292 -> 0
B15: Coctel de Camarones | C15: Sopa de pollo | D15: Pollo asado y lomo en salsa de champiñones | E15: Jugo de Tomate | F15: COSTO-POSTRE'!C155 | G15: COSTO-ACOMPAÑAMIENTO'!C155
B16: Tomate relleno camaron | C16: Yahuarlocro | D16: Pollo con champiñones y chuleta a la Plancha | E16: Minerales | F16: COSTO-POSTRE'!C177 | G16: COSTO-ACOMPAÑAMIENTO'!C177
B17: COSTO-ENTRADAS'!C198 | C17: COSTO-SOPAS'!C198 | D17: Lomo con champiñones y pollo a la plancha | E17: COSTO-BEBIDAS'!C198 | F17: COSTO-POSTRE'!C198 | G17: COSTO-ACOMPAÑAMIENTO'!C198
B18: COSTO-ENTRADAS'!C220 | C18: COSTO-SOPAS'!C220 | D18: Papi Pollo | E18: COSTO-BEBIDAS'!C220 | F18: COSTO-POSTRE'!C220 | G18: COSTO-ACOMPAÑAMIENTO'!C220
B19: COSTO-ENTRADAS'!C241 | C19: COSTO-SOPAS'!C241 | D19: COSTO-FUERTES'!C241 | E19: COSTO-BEBIDAS'!C241 | F19: COSTO-POSTRE'!C241 | G19: COSTO-ACOMPAÑAMIENTO'!C241
B20: COSTO-ENTRADAS'!C263 | C20: COSTO-SOPAS'!C263 | D20: COSTO-FUERTES'!C263 | E20: COSTO-BEBIDAS'!C263 | F20: COSTO-POSTRE'!C263 | G20: COSTO-ACOMPAÑAMIENTO'!C263
L28: ACOMPAÑAMIENTO | M28: PRECIO6 | N28: 14 | O28: ARTISTA | P28: PRECIO7 | R28: MUSICA
L29: =G8 -> Canguil | M29: ='COSTO-ACOMPAÑAMIENTO'!G23*DATOS!I3 -> $0.00 | N29: 14 | O29: SI | P29: 15 | R29: SI | S29: 40 | CK29: 40
L30: =G9 -> Canguil con Chifles | M30: ='COSTO-ACOMPAÑAMIENTO'!G45*DATOS!I3 -> $0.00 | N30: 14 | O30: NO | P30: 0 | Q30: 2 | R30: NO | S30: 40 | CK30: 40
L31: Rodajas de pan con mantequilla | M31: ='COSTO-ACOMPAÑAMIENTO'!G66*DATOS!I3 -> $0.07 | N31: 14
L32: COSTO-ACOMPAÑAMIENTO'!C69 | M32: ='COSTO-ACOMPAÑAMIENTO'!G90*DATOS!I3 -> 0 | N32: 14
L33: COSTO-ACOMPAÑAMIENTO'!C91 | M33: ='COSTO-ACOMPAÑAMIENTO'!G115*DATOS!I3 -> 0
L34: COSTO-ACOMPAÑAMIENTO'!C112 | M34: ='COSTO-ACOMPAÑAMIENTO'!G139*DATOS!I3 -> 0 | N34: 1
L35: COSTO-ACOMPAÑAMIENTO'!C134 | M35: ='COSTO-ACOMPAÑAMIENTO'!G164*DATOS!I3 -> 0
L36: COSTO-ACOMPAÑAMIENTO'!C155 | M36: ='COSTO-ACOMPAÑAMIENTO'!G188*DATOS!I3 -> 0
L37: COSTO-ACOMPAÑAMIENTO'!C177 | M37: ='COSTO-ACOMPAÑAMIENTO'!G213*DATOS!I3 -> 0
L38: COSTO-ACOMPAÑAMIENTO'!C198 | M38: ='COSTO-ACOMPAÑAMIENTO'!G237*DATOS!I3 -> 0
L39: COSTO-ACOMPAÑAMIENTO'!C220 | M39: ='COSTO-ACOMPAÑAMIENTO'!G262*DATOS!I3 -> 0
L40: COSTO-ACOMPAÑAMIENTO'!C241 | M40: ='COSTO-ACOMPAÑAMIENTO'!G286*DATOS!I3 -> 0
L41: COSTO-ACOMPAÑAMIENTO'!C263 | M41: ='COSTO-ACOMPAÑAMIENTO'!G311*DATOS!I3 -> 0

Sheet TIEMPO P.P. (hidden)
B2: COCINA | D2: LOGISTICA | E2: COCINA + LOGISTICA | G2: # HORAS | H2: # PLATOS | I2: MO | K2: 160
B3: DETALLE | C3: % | D3: % | E3: TOTAL% | F3: HORAS | G3: 8 | H3: 30.00 | I3: 1
B4: ENTRADA | C4: 25% | D4: =$C$10/6 -> 1.00% | E4: =C4+D4 -> 26.00% | F4: =$G$3*E4 -> 2.08 | J4: 2 horas
B5: ACOMPAÑAMIENTO | C5: 0.50% | D5: 1.00% | E5: =C5+D5 -> 2% | F5: =$G$3*E5 -> 0.12 | J5: 15 minutos
B6: SOPA | C6: 23.50% | D6: 1.00% | E6: 25% | F6: 1.96 | J6: 2 horas
B7: FUERTE | C7: 35% | D7: 1.00% | E7: 36% | F7: 2.88 | J7: 3 horas
B8: BEBIDA | C8: 5% | D8: 1.00% | E8: 6% | F8: 0.48 | J8: 30 minutos
B9: POSTRE | C9: 5% | D9: 1.00% | E9: 6% | F9: 0.48 | J9: 1 hora
B10: LOGISTICA | C10: 6% | D10: =SUM(D4:D9) -> 6%
C11: =SUM(C4:C10) -> 100% | E11: =SUM(E4:E9) -> 100% | F11: =SUM(F4:F9) -> 8.00
B13: SERVICIO | D13: LOGISTICA | E13: SERVICIO + LOGISTICA | G13: # HORAS | H13: # PERSONAS | I13: MO
B14: DETALLE | C14: % | D14: % | E14: TOTAL% | F14: HORAS | G14: 8 | H14: 30.00 | I14: 1
B15: ENTRADA | C15: 7% | D15: =$C$21/6 -> 8.33% | E15: =C15+D15 -> 15.33% | F15: =$G$14*E15 -> 1.23
B16: ACOMPAÑAMIENTO | C16: 1% | D16: 8.33% | E16: 9% | F16: =$G$14*E16 -> 0.75
B17: SOPA | C17: 15% | D17: 8.33% | E17: 23% | F17: 1.87
B18: FUERTE | C18: 20% | D18: 8.33% | E18: 28% | F18: 2.27
B19: BEBIDA | C19: 3% | D19: 8.33% | E19: 11% | F19: 0.91
B20: POSTRE | C20: 4% | D20: 8.33% | E20: 12% | F20: 0.99
B21: LOGISTICA | C21: 50% | D21: 50%
C22: =SUM(C15:C21) -> 100% | E22: =SUM(E15:E20) -> 100% | F22: =SUM(F15:F20) -> 8.00

Sheet COSTO-ENTRADAS (hidden)
C1: COSTO DE LOS PLATOS - caminos de herradura
C3: E N T R A D A
C5: =PLATOS!B8 -> Aguacate relleno camaron
D6: Cantidad | F6: Costo | G6: Costo Total
C7: INGREDIENTES | G7: =SUM(G8:G18) -> $0.87
C8: Camaron | D8: 68.00 | E8: gramos | F8: ='LISTA DE PRODUCTOS'!$G$15 -> $0.00770 | G8: =D8*F8 -> $0.52360
C9: aceite | D9: 5.00 | E9: gramos | F9: ='LISTA DE PRODUCTOS'!$G$3 -> $0.00066 | G9: =D9*F9 -> $0.00330
C10: agucate | D10: 0.50 | E10: unidad | F10: ='LISTA DE PRODUCTOS'!G6 -> $0.25000 | G10: $0.12500
C11: cebolla paiteña | D11: 18.00 | E11: gramos | F11: ='LISTA DE PRODUCTOS'!$G$18 -> $0.00147 | G11: $0.02640
C12: chochos | D12: 46.00 | E12: gramos | F12: ='LISTA DE PRODUCTOS'!$G$20 -> $0.00220 | G12: $0.10120
C13: lechuga | D13: 9.00 | E13: gramos | F13: ='LISTA DE PRODUCTOS'!$G$35 -> $0.00220 | G13: =D13*F13 -> $0.01980
C14: limones | D14: 0.25 | E14: unidad | F14: ='LISTA DE PRODUCTOS'!$G$36 -> $0.06000 | G14: $0.01500
C15: mayonesa | D15: 8.00 | E15: gramos | F15: ='LISTA DE PRODUCTOS'!$G$43 -> $0.00002 | G15: $0.00013
C16: rabanos | D16: 23.00 | E16: gramos | F16: ='LISTA DE PRODUCTOS'!$G$57 -> $0.00220 | G16: $0.05060
C17: sal | D17: 2.30 | E17: gramos | F17: ='LISTA DE PRODUCTOS'!$G$59 -> $0.00154 | G17: $0.00354
C18: salsa de tomate | D18: 3.95 | E18: gramos | F18: ='LISTA DE PRODUCTOS'!$G$61 -> $0.00001 | G18: $0.00003
C20: MANO DE OBRA | D20: H | F20: C.E. | G20: =SUM(G21:G26) -> 0
C21: PERSONAL PLANTA
C22: COCINA | D22: ='TIEMPO P.P.'!$F$4/'TIEMPO P.P.'!$H$3 -> 0.069 | F22: =IF(DATOS!$I$11>0,(DATOS!$C$4*'TIEMPO P.P.'!$I$3)/240,0) -> 0 | G22: =D22*F22 -> 0
C23: SERVICIO | D23: ='TIEMPO P.P.'!$F$15/'TIEMPO P.P.'!$H$3 -> 0.041 | F23: =IF(DATOS!$J$11>0,DATOS!$C$5*'TIEMPO P.P.'!$I$14/240,0) -> 0 | G23: =F23*D23 -> 0
C24: PERSONAL EXTRA
C25: COCINA | D25: =D22 -> 0.069 | F25: =IF(DATOS!$I$16>0,DATOS!$C$7*'TIEMPO P.P.'!$I$3/8,0) -> 0 | G25: =D25*F25 -> 0
C26: SERVICIO | D26: =D23 -> 0.041 | F26: =IF(DATOS!$J$16>0,DATOS!$C$8*'TIEMPO P.P.'!$I$14/8,0) -> 0 | G26: =D26*F26 -> 0
C27: CIF | D27: % | F27: TP | G27: =SUM(G28:G30) -> 0
C28: MENSUAL PRES. ó REAL | D28: =('TIEMPO P.P.'!$E$4+'TIEMPO P.P.'!$E$15)/2 -> 20.67% | F28: =IF(DATOS!$F$75=0,DATOS!$F$22,DATOS!$F$75) -> 0 | G28: =D28*$F$28 -> 0
C29: REAL O. PRODUCCIÓN | D29: =D28 -> 20.67% | F29: =DATOS!$F$89/ANALISIS!$D$18 -> 0 | G29: =D29*$F$29 -> 0
D31: COSTO UNIT. SERVICIO | G31: =G7+G20+G27 -> $0.87
C34: =PLATOS!B9 -> Canelones de camarones
D35: Q- gramos | F35: C. gramos | G35: Costo Total
C36: INGREDIENTES | G36: =SUM(G37:G45) -> $0.67
C37: Camarones | D37: 68.00 | E37: gramos | F37: ='LISTA DE PRODUCTOS'!$G$15 -> $0.00770 | G37: =D37*F37 -> $0.52360
C38: aceite | D38: 0.1 | E38: gramos | F38: ='LISTA DE PRODUCTOS'!$G$3 -> $0.00066 | G38: =D38*F38 -> $0.00007
C39: arina | D39: 13.64 | E39: gramos | F39: ='LISTA DE PRODUCTOS'!$G$12 -> $0.00062 | G39: $0.00840
C40: cebolla paiteña | D40: 4.56 | E40: gramos | F40: ='LISTA DE PRODUCTOS'!$G$18 -> $0.00147 | G40: $0.00669
C41: huevo | D41: 1 | E41: unidad | F41: ='LISTA DE PRODUCTOS'!$G$31 -> $0.10667 | G41: $0.10667
C42: leche | D42: 18 | E42: gramos | F42: ='LISTA DE PRODUCTOS'!$G$33 -> $0.00143 | G42: $0.02574
C43: mayonesa | D43: 2 | E43: gramos | F43: ='LISTA DE PRODUCTOS'!$G$43 -> $0.00002 | G43: $0.00003
C44: sal | D44: 0.12 | E44: gramos | F44: ='LISTA DE PRODUCTOS'!$G$59 -> $0.00154 | G44: $0.00018
C45: salsa de tomate | D45: 3.95 | E45: gramos | F45: ='LISTA DE PRODUCTOS'!$G$61 -> $0.00001 | G45: $0.00003
C47: MANO DE OBRA | D47: H | F47: C/H | G47: =SUM(G48:G53) -> 0
C48: PERSONAL PLANTA
C49: COCINA | D49: ='TIEMPO P.P.'!$F$4/'TIEMPO P.P.'!$H$3 -> 0.069 | F49: =IF(DATOS!$I$11>0,(DATOS!$C$4*'TIEMPO P.P.'!$I$3)/240,0) -> 0 | G49: =D49*F49 -> 0
C50: SERVICIO | D50: ='TIEMPO P.P.'!$F$15/'TIEMPO P.P.'!$H$3 -> 0.041 | F50: =IF(DATOS!$J$11>0,DATOS!$C$5*'TIEMPO P.P.'!$I$14/240,0) -> 0 | G50: =F50*D50 -> 0
C51: PERSONAL EXTRA
C52: COCINA | D52: =D49 -> 0.069 | F52: =IF(DATOS!$I$16>0,DATOS!$C$7*'TIEMPO P.P.'!$I$3/8,0) -> 0 | G52: =D52*F52 -> 0
C53: SERVICIO | D53: =D50 -> 0.041 | F53: =IF(DATOS!$J$16>0,DATOS!$C$8*'TIEMPO P.P.'!$I$14/8,0) -> 0 | G53: =D53*F53 -> 0
C54: CIF | D54: % | F54: TP | G54: =SUM(G55:G57) -> 0
C55: MENSUAL PRES. ó REAL | D55: =('TIEMPO P.P.'!$E$4+'TIEMPO P.P.'!$E$15)/2 -> 20.67% | F55: =IF(DATOS!$F$75=0,DATOS!$F$22,DATOS!$F$75) -> 0 | G55: =D55*$F$28 -> 0
C56: REAL O. PRODUCCIÓN | D56: =D55 -> 20.67% | F56: =DATOS!$F$89/ANALISIS!$D$18 -> 0 | G56: =D56*$F$29 -> 0
G57: =D57*F57 -> 0
D58: COSTO UNIT. | G58: =G36+G47+G54 -> $0.67
C62: =PLATOS!B10 -> Canelones de carne
D63: Q- gramos | F63: C. gramos | G63: Costo Total
C64: INGREDIENTES | G64: =SUM(G65:G74) -> $0.86
C65: Carne molida | D65: 45.46 | E65: gramos | F65: ='LISTA DE PRODUCTOS'!$G$16 -> $0.00352 | G65: =D65*F65 -> $0.16002
C66: aceite | D66: 0.1 | E66: gramos | F66: ='LISTA DE PRODUCTOS'!$G$3 -> $0.00066 | G66: =D66*F66 -> $0.00007
C67: arina | D67: 13.64 | E67: gramos | F67: ='LISTA DE PRODUCTOS'!$G$12 -> $0.00062 | G67: $0.00840
C68: arroz | D68: 9.09 | E68: gramos | F68: ='LISTA DE PRODUCTOS'!$G$13 -> $0.00073 | G68: $0.00660
C69: arveja | D69: 9.09 | E69: gramos | F69: ='LISTA DE PRODUCTOS'!$G$14 -> $0.00220 | G69: $0.02000
C70: huevo | D70: 6 | E70: unidad | F70: ='LISTA DE PRODUCTOS'!$G$31 -> $0.10667 | G70: $0.64000
C71: leche | D71: 18 | E71: gramos | F71: ='LISTA DE PRODUCTOS'!$G$33 -> $0.00143 | G71: $0.02574
C72: mayonesa | D72: 2 | E72: gramos | F72: ='LISTA DE PRODUCTOS'!$G$43 -> $0.00002 | G72: $0.00003
C73: sal | D73: 0.12 | E73: gramos | F73: ='LISTA DE PRODUCTOS'!$G$59 -> $0.00154 | G73: $0.00018
C74: salsa de tomate | D74: 3.95 | E74: gramos | F74: ='LISTA DE PRODUCTOS'!$G$61 -> $0.00001 | G74: $0.00003
C76: MANO DE OBRA | D76: H | F76: C/H | G76: =SUM(G77:G82) -> 0
C77: PERSONAL PLANTA
C78: COCINA | D78: ='TIEMPO P.P.'!$F$4/'TIEMPO P.P.'!$H$3 -> 0.069 | F78: =IF(DATOS!$I$11>0,(DATOS!$C$4*'TIEMPO P.P.'!$I$3)/240,0) -> 0 | G78: =D78*F78 -> 0
C79: SERVICIO | D79: ='TIEMPO P.P.'!$F$15/'TIEMPO P.P.'!$H$3 -> 0.041 | F79: =IF(DATOS!$J$11>0,DATOS!$C$5*'TIEMPO P.P.'!$I$14/240,0) -> 0 | G79: =F79*D79 -> 0
C80: PERSONAL EXTRA
C81: COCINA | D81: =D78 -> 0.069 | F81: =IF(DATOS!$I$16>0,DATOS!$C$7*'TIEMPO P.P.'!$I$3/8,0) -> 0 | G81: =D81*F81 -> 0
C82: SERVICIO | D82: =D79 -> 0.041 | F82: =IF(DATOS!$J$16>0,DATOS!$C$8*'TIEMPO P.P.'!$I$14/8,0) -> 0 | G82: =D82*F82 -> 0
C83: CIF | D83: % | F83: TP | G83: =SUM(G84:G86) -> 0
C84: MENSUAL PRES. ó REAL | D84: =('TIEMPO P.P.'!$E$4+'TIEMPO P.P.'!$E$15)/2 -> 20.67% | F84: =IF(DATOS!$F$75=0,DATOS!$F$22,DATOS!$F$75) -> 0 | G84: =D84*$F$28 -> 0
C85: REAL O. PRODUCCIÓN | D85: =D84 -> 20.67% | F85: =DATOS!$F$89/ANALISIS!$D$18 -> 0 | G85: =D85*$F$29 -> 0
G86: =D86*F86 -> 0
D87: COSTO UNIT. | G87: =G64+G76+G83 -> $0.86
C90: =PLATOS!B11 -> Canelones de pollo
D91: Q- gramos | F91: C. gramos | G91: Costo Total
C92: INGREDIENTES | G92: =SUM(G93:G102) -> $0.28
C93: Pollo | D93: 60 | E93: gramos | F93: ='LISTA DE PRODUCTOS'!$G$55 -> $0.00220 | G93: =D93*F93 -> $0.13200
C94: aceite | D94: 0.1 | E94: gramos | F94: ='LISTA DE PRODUCTOS'!$G$3 -> $0.00066 | G94: =D94*F94 -> $0.00007
C95: arina | D95: 13.64 | E95: gramos | F95: ='LISTA DE PRODUCTOS'!$G$12 -> $0.00062 | G95: $0.00840
C96: cebolla paiteña | D96: 4.56 | E96: gramos | F96: ='LISTA DE PRODUCTOS'!$G$18 -> $0.00147 | G96: $0.00669
C97: huevos | D97: 1 | E97: unidad | F97: ='LISTA DE PRODUCTOS'!$G$31 -> $0.10667 | G97: $0.10667
C98: leche | D98: 18 | E98: gramos | F98: ='LISTA DE PRODUCTOS'!$G$33 -> $0.00143 | G98: $0.02574
C99: mayonesa | D99: 2 | E99: gramos | F99: ='LISTA DE PRODUCTOS'!$G$43 -> $0.00002 | G99: $0.00003
C100: perejil | D100: 0.1 | E100: gramos | F100: ='LISTA DE PRODUCTOS'!$G$51 -> $0.00110 | G100: $0.00011
C101: sal | D101: 0.12 | E101: gramos | F101: ='LISTA DE PRODUCTOS'!$G$59 -> $0.00154 | G101: $0.00018
C102: salsa de tomate | D102: 3.95 | E102: gramos | F102: ='LISTA DE PRODUCTOS'!$G$61 -> $0.00001 | G102: $0.00003
C104: MANO DE OBRA | D104: H | F104: C/H | G104: =SUM(G105:G110) -> 0
C105: PERSONAL PLANTA
C106: COCINA | D106: ='TIEMPO P.P.'!$F$4/'TIEMPO P.P.'!$H$3 -> 0.069 | F106: =IF(DATOS!$I$11>0,(DATOS!$C$4*'TIEMPO P.P.'!$I$3)/240,0) -> 0 | G106: =D106*F106 -> 0
C107: SERVICIO | D107: ='TIEMPO P.P.'!$F$15/'TIEMPO P.P.'!$H$3 -> 0.041 | F107: =IF(DATOS!$J$11>0,DATOS!$C$5*'TIEMPO P.P.'!$I$14/240,0) -> 0 | G107: =F107*D107 -> 0
C108: PERSONAL EXTRA
C109: COCINA | D109: =D106 -> 0.069 | F109: =IF(DATOS!$I$16>0,DATOS!$C$7*'TIEMPO P.P.'!$I$3/8,0) -> 0 | G109: =D109*F109 -> 0
C110: SERVICIO | D110: =D107 -> 0.041 | F110: =IF(DATOS!$J$16>0,DATOS!$C$8*'TIEMPO P.P.'!$I$14/8,0) -> 0 | G110: =D110*F110 -> 0
C111: CIF | D111: % | F111: TP | G111: =SUM(G112:G114) -> 0
C112: MENSUAL PRES. ó REAL | D112: =('TIEMPO P.P.'!$E$4+'TIEMPO P.P.'!$E$15)/2 -> 20.67% | F112: =IF(DATOS!$F$75=0,DATOS!$F$22,DATOS!$F$75) -> 0 | G112: =D112*$F$28 -> 0
C113: REAL O. PRODUCCIÓN | D113: =D112 -> 20.67% | F113: =DATOS!$F$89/ANALISIS!$D$18 -> 0 | G113: =D113*$F$29 -> 0
G114: =D114*F114 -> 0
D115: COSTO UNIT. | G115: =G92+G104+G111 -> $0.28
C119: =PLATOS!B12 -> Ceviche de camarones
D120: Q- gramos | F120: C. gramos | G120: Costo Total
C121: INGREDIENTES | G121: =SUM(G122:G132) -> $0.96
C122: Camarón | D122: 113.64 | E122: gramos | F122: ='LISTA DE PRODUCTOS'!$G$15 -> $0.00770 | G122: =D122*F122 -> $0.87503
C123: aceite | D123: 0.25 | E123: gramos | F123: ='LISTA DE PRODUCTOS'!$G$3 -> $0.00066 | G123: =D123*F123 -> $0.00017
C124: cebolla paiteña | D124: 22.73 | E124: gramos | F124: ='LISTA DE PRODUCTOS'!$G$18 -> $0.00147 | G124: $0.03334
C125: cilantro | D125: 0.25 | E125: gramos | F125: ='LISTA DE PRODUCTOS'!$G$23 -> $0.00110 | G125: $0.00028
C126: cola fanta | D126: 27.27 | E126: gramos | F126: ='LISTA DE PRODUCTOS'!$G$24 -> $0.00125 | G126: $0.03400
C127: limones | D127: 0.25 | E127: unidad | F127: ='LISTA DE PRODUCTOS'!$G$36 -> $0.06000 | G127: $0.01500
C128: naranja | D128: 4.55 | E128: gramos | F128: ='LISTA DE PRODUCTOS'!$G$46 -> 0 | G128: 0
C129: pimienta | D129: 0.15 | E129: gramos | F129: ='LISTA DE PRODUCTOS'!$G$53 -> $0.00748 | G129: =D129*F129 -> $0.00112
C130: sal | D130: 2.27 | E130: gramos | F130: ='LISTA DE PRODUCTOS'!$G$59 -> $0.00154 | G130: $0.00350
C131: salsa de tomate | D131: 22.73 | E131: gramos | F131: ='LISTA DE PRODUCTOS'!$G$61 -> $0.00001 | G131: $0.00017
C132: salsa inglesa | F132: ='LISTA DE PRODUCTOS'!$G$62 -> 0 | G132: 0
C134: MANO DE OBRA | D134: H | F134: C/H | G134: =SUM(G135:G140) -> 0
C135: PERSONAL PLANTA
C136: COCINA | D136: ='TIEMPO P.P.'!$F$4/'TIEMPO P.P.'!$H$3 -> 0.069 | F136: =IF(DATOS!$I$11>0,(DATOS!$C$4*'TIEMPO P.P.'!$I$3)/240,0) -> 0 | G136: =D136*F136 -> 0
C137: SERVICIO | D137: ='TIEMPO P.P.'!$F$15/'TIEMPO P.P.'!$H$3 -> 0.041 | F137: =IF(DATOS!$J$11>0,DATOS!$C$5*'TIEMPO P.P.'!$I$14/240,0) -> 0 | G137: =F137*D137 -> 0
C138: PERSONAL EXTRA
C139: COCINA | D139: =D136 -> 0.069 | F139: =IF(DATOS!$I$16>0,DATOS!$C$7*'TIEMPO P.P.'!$I$3/8,0) -> 0 | G139: =D139*F139 -> 0
C140: SERVICIO | D140: =D137 -> 0.041 | F140: =IF(DATOS!$J$16>0,DATOS!$C$8*'TIEMPO P.P.'!$I$14/8,0) -> 0 | G140: =D140*F140 -> 0
C141: CIF | D141: % | F141: TP | G141: =SUM(G142:G144) -> 0
C142: MENSUAL PRES. ó REAL | D142: =('TIEMPO P.P.'!$E$4+'TIEMPO P.P.'!$E$15)/2 -> 20.67% | F142: =IF(DATOS!$F$75=0,DATOS!$F$22,DATOS!$F$75) -> 0 | G142: =D142*$F$28 -> 0
C143: REAL O. PRODUCCIÓN | D143: =D142 -> 20.67% | F143: =DATOS!$F$89/ANALISIS!$D$18 -> 0 | G143: =D143*$F$29 -> 0
G144: =D144*F144 -> 0
D145: COSTO UNIT. | G145: =G121+G134+G141 -> $0.96
C148: =PLATOS!B13 -> Ceviche de concha
D149: Q- gramos | F149: C. gramos | G149: Costo Total
C150: INGREDIENTES | G150: =SUM(G151:G161) -> $0.09
C151: Concha | D151: 6 | E151: unidad | F151: ='LISTA DE PRODUCTOS'!$G$27 -> 0 | G151: =D151*F151 -> 0
C152: aceite | D152: 0.25 | E152: gramos | F152: ='LISTA DE PRODUCTOS'!$G$3 -> $0.00066 | G152: =D152*F152 -> $0.00017
C153: cebolla paiteña | D153: 22.73 | E153: gramos | F153: ='LISTA DE PRODUCTOS'!$G$18 -> $0.00147 | G153: $0.03334
C154: cilantro | D154: 0.25 | E154: gramos | F154: ='LISTA DE PRODUCTOS'!$G$23 -> $0.00110 | G154: $0.00028
C155: cola fanta | D155: 27.27 | E155: gramos | F155: ='LISTA DE PRODUCTOS'!$G$24 -> $0.00125 | G155: $0.03400
C156: limones | D156: 0.25 | E156: unidad | F156: ='LISTA DE PRODUCTOS'!$G$36 -> $0.06000 | G156: $0.01500
C157: naranja | D157: 4.55 | E157: gramos | F157: ='LISTA DE PRODUCTOS'!$G$46 -> 0 | G157: 0
C158: pimienta | D158: 0.15 | E158: gramos | F158: ='LISTA DE PRODUCTOS'!$G$53 -> $0.00748 | G158: $0.00112
C159: sal | D159: 2.27 | E159: gramos | F159: ='LISTA DE PRODUCTOS'!$G$59 -> $0.00154 | G159: $0.00350
C160: salsa de tomate | D160: 22.73 | E160: gramos | F160: ='LISTA DE PRODUCTOS'!$G$61 -> $0.00001 | G160: $0.00017
C161: salsa inglesa | F161: ='LISTA DE PRODUCTOS'!$G$62 -> 0 | G161: =D161*F161 -> 0
C163: MANO DE OBRA | D163: H | F163: C/H | G163: =SUM(G164:G169) -> 0
C164: PERSONAL PLANTA
C165: COCINA | D165: ='TIEMPO P.P.'!$F$4/'TIEMPO P.P.'!$H$3 -> 0.069 | F165: =IF(DATOS!$I$11>0,(DATOS!$C$4*'TIEMPO P.P.'!$I$3)/240,0) -> 0 | G165: =D165*F165 -> 0
C166: SERVICIO | D166: ='TIEMPO P.P.'!$F$15/'TIEMPO P.P.'!$H$3 -> 0.041 | F166: =IF(DATOS!$J$11>0,DATOS!$C$5*'TIEMPO P.P.'!$I$14/240,0) -> 0 | G166: =F166*D166 -> 0
C167: PERSONAL EXTRA
C168: COCINA | D168: =D165 -> 0.069 | F168: =IF(DATOS!$I$16>0,DATOS!$C$7*'TIEMPO P.P.'!$I$3/8,0) -> 0 | G168: =D168*F168 -> 0
C169: SERVICIO | D169: =D166 -> 0.041 | F169: =IF(DATOS!$J$16>0,DATOS!$C$8*'TIEMPO P.P.'!$I$14/8,0) -> 0 | G169: =D169*F169 -> 0
C170: CIF | D170: % | F170: TP | G170: =SUM(G171:G173) -> 0
C171: MENSUAL PRES. ó REAL | D171: =('TIEMPO P.P.'!$E$4+'TIEMPO P.P.'!$E$15)/2 -> 20.67% | F171: =IF(DATOS!$F$75=0,DATOS!$F$22,DATOS!$F$75) -> 0 | G171: =D171*$F$28 -> 0
C172: REAL O. PRODUCCIÓN | D172: =D171 -> 20.67% | F172: =DATOS!$F$89/ANALISIS!$D$18 -> 0 | G172: =D172*$F$29 -> 0
G173: =D173*F173 -> 0
D174: COSTO UNIT. | G174: =G150+G163+G170 -> $0.09
C178: =PLATOS!B14 -> Ceviche de pollo
D179: Q- gramos | F179: C. gramos | G179: Costo Total
C180: INGREDIENTES | G180: =SUM(G181:G191) -> $0.29
C181: Pollo | D181: 90.91 | E181: gramos | F181: ='LISTA DE PRODUCTOS'!$G$55 -> $0.00220 | G181: =D181*F181 -> $0.20000
C182: aceite | D182: 0.25 | E182: gramos | F182: ='LISTA DE PRODUCTOS'!$G$3 -> $0.00066 | G182: =D182*F182 -> $0.00017
C183: cebolla paiteña | D183: 22.73 | E183: gramos | F183: ='LISTA DE PRODUCTOS'!$G$18 -> $0.00147 | G183: $0.03334
C184: cilantro | D184: 0.25 | E184: gramos | F184: ='LISTA DE PRODUCTOS'!$G$23 -> $0.00110 | G184: $0.00028
C185: cola fanta | D185: 27.27 | E185: gramos | F185: ='LISTA DE PRODUCTOS'!$G$24 -> $0.00125 | G185: $0.03400
C186: limones | D186: 0.25 | E186: unidad | F186: ='LISTA DE PRODUCTOS'!$G$36 -> $0.06000 | G186: $0.01500
C187: naranja | D187: 4.55 | E187: gramos | F187: ='LISTA DE PRODUCTOS'!$G$46 -> 0 | G187: 0
C188: pimienta | D188: 0.15 | E188: gramos | F188: ='LISTA DE PRODUCTOS'!$G$53 -> $0.00748 | G188: $0.00112
C189: sal | D189: 2.27 | E189: gramos | F189: ='LISTA DE PRODUCTOS'!$G$59 -> $0.00154 | G189: =D189*F189 -> $0.00350
C190: salsa de tomate | D190: 22.73 | E190: gramos | F190: ='LISTA DE PRODUCTOS'!$G$61 -> $0.00001 | G190: $0.00017
C191: salsa inglesa | F191: ='LISTA DE PRODUCTOS'!$G$62 -> 0 | G191: 0
C193: MANO DE OBRA | D193: H | F193: C/H | G193: =SUM(G194:G199) -> 0
C194: PERSONAL PLANTA
C195: COCINA | D195: ='TIEMPO P.P.'!$F$4/'TIEMPO P.P.'!$H$3 -> 0.069 | F195: =IF(DATOS!$I$11>0,(DATOS!$C$4*'TIEMPO P.P.'!$I$3)/240,0) -> 0 | G195: =D195*F195 -> 0
C196: SERVICIO | D196: ='TIEMPO P.P.'!$F$15/'TIEMPO P.P.'!$H$3 -> 0.041 | F196: =IF(DATOS!$J$11>0,DATOS!$C$5*'TIEMPO P.P.'!$I$14/240,0) -> 0 | G196: =F196*D196 -> 0
C197: PERSONAL EXTRA
C198: COCINA | D198: =D195 -> 0.069 | F198: =IF(DATOS!$I$16>0,DATOS!$C$7*'TIEMPO P.P.'!$I$3/8,0) -> 0 | G198: =D198*F198 -> 0
C199: SERVICIO | D199: =D196 -> 0.041 | F199: =IF(DATOS!$J$16>0,DATOS!$C$8*'TIEMPO P.P.'!$I$14/8,0) -> 0 | G199: =D199*F199 -> 0
C200: CIF | D200: % | F200: TP | G200: =SUM(G201:G203) -> 0
C201: MENSUAL PRES. ó REAL | D201: =('TIEMPO P.P.'!$E$4+'TIEMPO P.P.'!$E$15)/2 -> 20.67% | F201: =IF(DATOS!$F$75=0,DATOS!$F$22,DATOS!$F$75) -> 0 | G201: =D201*$F$28 -> 0
C202: REAL O. PRODUCCIÓN | D202: =D201 -> 20.67% | F202: =DATOS!$F$89/ANALISIS!$D$18 -> 0 | G202: =D202*$F$29 -> 0
G203: =D203*F203 -> 0
D204: COSTO UNIT. | G204: =G180+G193+G200 -> $0.29
C207: =PLATOS!B15 -> Coctel de Camarones
D208: Q- gramos | F208: C. gramos | G208: Costo Total
C209: INGREDIENTES | G209: =SUM(G210:G217) -> $0.82
C210: Camarones | D210: 90.91 | E210: gramos | F210: ='LISTA DE PRODUCTOS'!$G$15 -> $0.00770 | G210: =D210*F210 -> $0.70001
C211: aguacate | D211: 0.1111111111 | E211: unidad | F211: ='LISTA DE PRODUCTOS'!$G$6 -> $0.25000 | G211: =D211*F211 -> $0.02778
C212: lechuga | D212: 9.09 | E212: gramos | F212: ='LISTA DE PRODUCTOS'!$G$35 -> $0.00220 | G212: $0.02000
C213: limon | D213: 0.25 | E213: unidad | F213: ='LISTA DE PRODUCTOS'!$G$36 -> $0.06000 | G213: $0.01500
C214: mayonesa | D214: 8 | E214: gramos | F214: ='LISTA DE PRODUCTOS'!$G$43 -> $0.00002 | G214: =D214*F214 -> $0.00013
C215: pimientos | D215: 9.09 | E215: gramos | F215: ='LISTA DE PRODUCTOS'!$G$54 -> $0.00550 | G215: $0.05000
C216: sal | D216: 2.27 | E216: gramos | F216: ='LISTA DE PRODUCTOS'!$G$59 -> $0.00154 | G216: $0.00350
C217: salsa de tomate | D217: 3.95 | E217: gramos | F217: ='LISTA DE PRODUCTOS'!$G$61 -> $0.00001 | G217: $0.00003
C219: MANO DE OBRA | D219: H | F219: C/H | G219: =SUM(G220:G225) -> 0
C220: PERSONAL PLANTA
C221: COCINA | D221: ='TIEMPO P.P.'!$F$4/'TIEMPO P.P.'!$H$3 -> 0.069 | F221: =IF(DATOS!$I$11>0,(DATOS!$C$4*'TIEMPO P.P.'!$I$3)/240,0) -> 0 | G221: =D221*F221 -> 0
C222: SERVICIO | D222: ='TIEMPO P.P.'!$F$15/'TIEMPO P.P.'!$H$3 -> 0.041 | F222: =IF(DATOS!$J$11>0,DATOS!$C$5*'TIEMPO P.P.'!$I$14/240,0) -> 0 | G222: =F222*D222 -> 0
C223: PERSONAL EXTRA
C224: COCINA | D224: =D221 -> 0.069 | F224: =IF(DATOS!$I$16>0,DATOS!$C$7*'TIEMPO P.P.'!$I$3/8,0) -> 0 | G224: =D224*F224 -> 0
C225: SERVICIO | D225: =D222 -> 0.041 | F225: =IF(DATOS!$J$16>0,DATOS!$C$8*'TIEMPO P.P.'!$I$14/8,0) -> 0 | G225: =D225*F225 -> 0
C226: CIF | D226: % | F226: TP | G226: =SUM(G227:G229) -> 0
C227: MENSUAL PRES. ó REAL | D227: =('TIEMPO P.P.'!$E$4+'TIEMPO P.P.'!$E$15)/2 -> 20.67% | F227: =IF(DATOS!$F$75=0,DATOS!$F$22,DATOS!$F$75) -> 0 | G227: =D227*$F$28 -> 0
C228: REAL O. PRODUCCIÓN | D228: =D227 -> 20.67% | F228: =DATOS!$F$89/ANALISIS!$D$18 -> 0 | G228: =D228*$F$29 -> 0
... 116 more rows

Sheet COSTO-SOPAS (hidden)
C1: COSTO DE LOS PLATOS - caminos de herradura
C3: S O P A
C5: =PLATOS!C8 -> Crema de acelga
D6: Q- gramos | F6: C. gramos | G6: Costo Total
C7: INGREDIENTES | G7: =SUM(G8:G18) -> $0.03
C8: Acelga | D8: 18.18 | E8: gramos | F8: ='LISTA DE PRODUCTOS'!$G$4 -> 0 | G8: =D8*F8 -> 0
C9: aceite | D9: 0.1 | E9: gramos | F9: ='LISTA DE PRODUCTOS'!$G$3 -> $0.00066 | G9: =D9*F9 -> $0.00007
C10: ajos | D10: 0.15 | E10: gramos | F10: ='LISTA DE PRODUCTOS'!$G$8 -> $0.00550 | G10: $0.00083
C11: arina | D11: 9.09 | E11: gramos | F11: ='LISTA DE PRODUCTOS'!$G$12 -> $0.00062 | G11: $0.00560
C12: cebolla larga | D12: 2.27 | E12: gramos | F12: ='LISTA DE PRODUCTOS'!$G$17 -> $0.00220 | G12: $0.00499
C13: cebolla paiteña | D13: 2.27 | E13: gramos | F13: ='LISTA DE PRODUCTOS'!$G$18 -> $0.00147 | G13: $0.00333
C14: leche | D14: 9.09 | E14: gramos | F14: ='LISTA DE PRODUCTOS'!$G$33 -> $0.00143 | G14: $0.01300
C15: magui | D15: 0.84 | E15: gramos | F15: ='LISTA DE PRODUCTOS'!$G$39 -> $0.00022 | G15: $0.00019
C16: mantequilla | D16: 2.27 | E16: gramos | F16: ='LISTA DE PRODUCTOS'!$G$42 -> $0.00121 | G16: $0.00275
C17: nuez moscada | D17: 0.01 | E17: gramos | F17: ='LISTA DE PRODUCTOS'!$G$47 -> 0 | G17: 0
C18: sal | D18: 2.27 | E18: gramos | F18: ='LISTA DE PRODUCTOS'!$G$59 -> $0.00154 | G18: $0.00350
C20: MANO DE OBRA | D20: H | F20: C/H | G20: =SUM(G21:G26) -> 0
C21: PERSONAL PLANTA
C22: COCINA | D22: ='TIEMPO P.P.'!$F$6/'TIEMPO P.P.'!$H$3 -> 0.065 | F22: =IF(DATOS!$I$11>0,(DATOS!$C$4*'TIEMPO P.P.'!$I$3)/240,0) -> 0 | G22: =D22*F22 -> 0
C23: SERVICIO | D23: ='TIEMPO P.P.'!$F$17/'TIEMPO P.P.'!$H$3 -> 0.062 | F23: =IF(DATOS!$J$11>0,DATOS!$C$5*'TIEMPO P.P.'!$I$14/240,0) -> 0 | G23: =F23*D23 -> 0
C24: PERSONAL EXTRA
C25: COCINA | D25: =D22 -> 0.065 | F25: =IF(DATOS!$I$16>0,DATOS!$C$7*'TIEMPO P.P.'!$I$3/8,0) -> 0 | G25: =D25*F25 -> 0
C26: SERVICIO | D26: =D23 -> 0.062 | F26: =IF(DATOS!$J$16>0,DATOS!$C$8*'TIEMPO P.P.'!$I$14/8,0) -> 0 | G26: =D26*F26 -> 0
C27: CIF | D27: % | F27: TP | G27: =SUM(G28:G30) -> 0
C28: MENSUAL PRES. ó REAL | D28: =('TIEMPO P.P.'!$E$6+'TIEMPO P.P.'!$E$17)/2 -> 23.92% | F28: =IF(DATOS!$F$75=0,DATOS!$F$22,DATOS!$F$75) -> 0 | G28: =D28*$F$28 -> 0
C29: REAL O. PRODUCCIÓN | D29: =D28 -> 23.92% | F29: =DATOS!$F$89/ANALISIS!$D$18 -> 0 | G29: =D29*$F$29 -> 0
G30: =D30*F30 -> 0
D31: COSTO UNIT. | G31: =G7+G20+G27 -> $0.03
C34: =PLATOS!C9 -> Crema de champiñones
D35: Q- gramos | F35: C. gramos | G35: Costo Total
C36: INGREDIENTES | G36: =SUM(G37:G47) -> $0.16
C37: Champiñones | D37: 20 | E37: gramos | F37: ='LISTA DE PRODUCTOS'!$G$19 -> $0.00621 | G37: =D37*F37 -> $0.12417
C38: aceite | D38: 0.1 | E38: gramos | F38: ='LISTA DE PRODUCTOS'!$G$3 -> $0.00066 | G38: =D38*F38 -> $0.00007
C39: ajos | D39: 0.15 | E39: gramos | F39: ='LISTA DE PRODUCTOS'!$G$8 -> $0.00550 | G39: $0.00083
C40: arina | D40: 9.09 | E40: gramos | F40: ='LISTA DE PRODUCTOS'!$G$12 -> $0.00062 | G40: $0.00560
C41: cebolla larga | D41: 2.27 | E41: gramos | F41: ='LISTA DE PRODUCTOS'!$G$17 -> $0.00220 | G41: $0.00499
C42: cebolla paiteña | D42: 2.27 | E42: gramos | F42: ='LISTA DE PRODUCTOS'!$G$18 -> $0.00147 | G42: $0.00333
C43: leche | D43: 9.09 | E43: gramos | F43: ='LISTA DE PRODUCTOS'!$G$33 -> $0.00143 | G43: $0.01300
C44: magui | D44: 0.84 | E44: gramos | F44: ='LISTA DE PRODUCTOS'!$G$39 -> $0.00022 | G44: $0.00019
C45: mantequilla | D45: 2.27 | E45: gramos | F45: ='LISTA DE PRODUCTOS'!$G$42 -> $0.00121 | G45: $0.00275
C46: nuez moscada | D46: 0.01 | E46: gramos | F46: ='LISTA DE PRODUCTOS'!$G$47 -> 0 | G46: 0
C47: sal | D47: 2.27 | E47: gramos | F47: ='LISTA DE PRODUCTOS'!$G$59 -> $0.00154 | G47: $0.00350
C49: MANO DE OBRA | D49: H | F49: C/H | G49: =SUM(G50:G55) -> 0
C50: PERSONAL PLANTA
C51: COCINA | D51: ='TIEMPO P.P.'!$F$6/'TIEMPO P.P.'!$H$3 -> 0.065 | F51: =IF(DATOS!$I$11>0,(DATOS!$C$4*'TIEMPO P.P.'!$I$3)/240,0) -> 0 | G51: =D51*F51 -> 0
C52: SERVICIO | D52: ='TIEMPO P.P.'!$F$17/'TIEMPO P.P.'!$H$3 -> 0.062 | F52: =IF(DATOS!$J$11>0,DATOS!$C$5*'TIEMPO P.P.'!$I$14/240,0) -> 0 | G52: =F52*D52 -> 0
C53: PERSONAL EXTRA
C54: COCINA | D54: =D51 -> 0.065 | F54: =IF(DATOS!$I$16>0,DATOS!$C$7*'TIEMPO P.P.'!$I$3/8,0) -> 0 | G54: =D54*F54 -> 0
C55: SERVICIO | D55: =D52 -> 0.062 | F55: =IF(DATOS!$J$16>0,DATOS!$C$8*'TIEMPO P.P.'!$I$14/8,0) -> 0 | G55: =D55*F55 -> 0
C56: CIF | D56: % | F56: TP | G56: =SUM(G57:G59) -> 0
C57: MENSUAL PRES. ó REAL | D57: =('TIEMPO P.P.'!$E$6+'TIEMPO P.P.'!$E$17)/2 -> 23.92% | F57: =IF(DATOS!$F$75=0,DATOS!$F$22,DATOS!$F$75) -> 0 | G57: =D57*$F$28 -> 0
C58: REAL O. PRODUCCIÓN | D58: =D57 -> 23.92% | F58: =DATOS!$F$89/ANALISIS!$D$18 -> 0 | G58: =D58*$F$29 -> 0
G59: =D59*F59 -> 0
D60: COSTO UNIT. | G60: =G36+G49+G56 -> $0.16
C64: =PLATOS!C10 -> Crema de esparragos
D65: Q- gramos | F65: C. gramos | G65: Costo Total
C66: INGREDIENTES | G66: =SUM(G67:G77) -> $0.03
C67: Esparragos | D67: 10.2 | E67: gramos | F67: ='LISTA DE PRODUCTOS'!$G$29 -> $0.00003 | G67: =D67*F67 -> $0.00032
C68: aceite | D68: 0.1 | E68: gramos | F68: ='LISTA DE PRODUCTOS'!$G$3 -> $0.00066 | G68: =D68*F68 -> $0.00007
C69: ajos | D69: 0.15 | E69: gramos | F69: ='LISTA DE PRODUCTOS'!$G$8 -> $0.00550 | G69: $0.00083
C70: arina | D70: 9.09 | E70: gramos | F70: ='LISTA DE PRODUCTOS'!$G$12 -> $0.00062 | G70: $0.00560
C71: cebolla larga | D71: 2.27 | E71: gramos | F71: ='LISTA DE PRODUCTOS'!$G$17 -> $0.00220 | G71: $0.00499
C72: cebolla paiteña | D72: 2.27 | E72: gramos | F72: ='LISTA DE PRODUCTOS'!$G$18 -> $0.00147 | G72: $0.00333
C73: leche | D73: 9.09 | E73: gramos | F73: ='LISTA DE PRODUCTOS'!$G$33 -> $0.00143 | G73: $0.01300
C74: magui | D74: 0.84 | E74: gramos | F74: ='LISTA DE PRODUCTOS'!$G$39 -> $0.00022 | G74: $0.00019
C75: mantequilla | D75: 2.27 | E75: gramos | F75: ='LISTA DE PRODUCTOS'!$G$42 -> $0.00121 | G75: $0.00275
C76: nuez moscada | D76: 0.01 | E76: gramos | F76: ='LISTA DE PRODUCTOS'!$G$47 -> 0 | G76: 0
C77: sal | D77: 2.27 | E77: gramos | F77: ='LISTA DE PRODUCTOS'!$G$59 -> $0.00154 | G77: =D77*F77 -> $0.00350
C79: MANO DE OBRA | D79: H | F79: C/H | G79: =SUM(G80:G85) -> 0
C80: PERSONAL PLANTA
C81: COCINA | D81: ='TIEMPO P.P.'!$F$6/'TIEMPO P.P.'!$H$3 -> 0.065 | F81: =IF(DATOS!$I$11>0,(DATOS!$C$4*'TIEMPO P.P.'!$I$3)/240,0) -> 0 | G81: =D81*F81 -> 0
C82: SERVICIO | D82: ='TIEMPO P.P.'!$F$17/'TIEMPO P.P.'!$H$3 -> 0.062 | F82: =IF(DATOS!$J$11>0,DATOS!$C$5*'TIEMPO P.P.'!$I$14/240,0) -> 0 | G82: =F82*D82 -> 0
C83: PERSONAL EXTRA
C84: COCINA | D84: =D81 -> 0.065 | F84: =IF(DATOS!$I$16>0,DATOS!$C$7*'TIEMPO P.P.'!$I$3/8,0) -> 0 | G84: =D84*F84 -> 0
C85: SERVICIO | D85: =D82 -> 0.062 | F85: =IF(DATOS!$J$16>0,DATOS!$C$8*'TIEMPO P.P.'!$I$14/8,0) -> 0 | G85: =D85*F85 -> 0
C86: CIF | D86: % | F86: TP | G86: =SUM(G87:G89) -> 0
C87: MENSUAL PRES. ó REAL | D87: =('TIEMPO P.P.'!$E$6+'TIEMPO P.P.'!$E$17)/2 -> 23.92% | F87: =IF(DATOS!$F$75=0,DATOS!$F$22,DATOS!$F$75) -> 0 | G87: =D87*$F$28 -> 0
C88: REAL O. PRODUCCIÓN | D88: =D87 -> 23.92% | F88: =DATOS!$F$89/ANALISIS!$D$18 -> 0 | G88: =D88*$F$29 -> 0
G89: =D89*F89 -> 0
D90: COSTO UNIT. | G90: =G66+G79+G86 -> $0.03
C93: =PLATOS!C11 -> Crema de pollo
D94: Q- gramos | F94: C. gramos | G94: Costo Total
C95: INGREDIENTES | G95: =SUM(G96:G106) -> $0.05
C96: Pollo | D96: 5.5 | E96: gramos | F96: ='LISTA DE PRODUCTOS'!$G$55 -> $0.00220 | G96: =D96*F96 -> $0.01210
C97: aceite | D97: 0.1 | E97: gramos | F97: ='LISTA DE PRODUCTOS'!$G$3 -> $0.00066 | G97: =D97*F97 -> $0.00007
C98: ajos | D98: 0.15 | E98: gramos | F98: ='LISTA DE PRODUCTOS'!$G$8 -> $0.00550 | G98: =D98*F98 -> $0.00083
C99: arina | D99: 9.09 | E99: gramos | F99: ='LISTA DE PRODUCTOS'!$G$12 -> $0.00062 | G99: $0.00560
C100: cebolla larga | D100: 2.27 | E100: gramos | F100: ='LISTA DE PRODUCTOS'!$G$17 -> $0.00220 | G100: $0.00499
C101: cebolla paiteña | D101: 2.27 | E101: gramos | F101: ='LISTA DE PRODUCTOS'!$G$18 -> $0.00147 | G101: $0.00333
C102: leche | D102: 9.09 | E102: gramos | F102: ='LISTA DE PRODUCTOS'!$G$33 -> $0.00143 | G102: $0.01300
C103: magui | D103: 0.84 | E103: gramos | F103: ='LISTA DE PRODUCTOS'!$G$39 -> $0.00022 | G103: $0.00019
C104: mantequilla | D104: 2.27 | E104: gramos | F104: ='LISTA DE PRODUCTOS'!$G$42 -> $0.00121 | G104: $0.00275
C105: nuez moscada | D105: 0.01 | E105: gramos | F105: ='LISTA DE PRODUCTOS'!$G$47 -> 0 | G105: 0
C106: sal | D106: 2.27 | E106: gramos | F106: ='LISTA DE PRODUCTOS'!$G$59 -> $0.00154 | G106: =D106*F106 -> $0.00350
C108: MANO DE OBRA | D108: H | F108: C/H | G108: =SUM(G109:G114) -> 0
C109: PERSONAL PLANTA
C110: COCINA | D110: ='TIEMPO P.P.'!$F$6/'TIEMPO P.P.'!$H$3 -> 0.065 | F110: =IF(DATOS!$I$11>0,(DATOS!$C$4*'TIEMPO P.P.'!$I$3)/240,0) -> 0 | G110: =D110*F110 -> 0
C111: SERVICIO | D111: ='TIEMPO P.P.'!$F$17/'TIEMPO P.P.'!$H$3 -> 0.062 | F111: =IF(DATOS!$J$11>0,DATOS!$C$5*'TIEMPO P.P.'!$I$14/240,0) -> 0 | G111: =F111*D111 -> 0
C112: PERSONAL EXTRA
C113: COCINA | D113: =D110 -> 0.065 | F113: =IF(DATOS!$I$16>0,DATOS!$C$7*'TIEMPO P.P.'!$I$3/8,0) -> 0 | G113: =D113*F113 -> 0
C114: SERVICIO | D114: =D111 -> 0.062 | F114: =IF(DATOS!$J$16>0,DATOS!$C$8*'TIEMPO P.P.'!$I$14/8,0) -> 0 | G114: =D114*F114 -> 0
C115: CIF | D115: % | F115: TP | G115: =SUM(G116:G118) -> 0
C116: MENSUAL PRES. ó REAL | D116: =('TIEMPO P.P.'!$E$6+'TIEMPO P.P.'!$E$17)/2 -> 23.92% | F116: =IF(DATOS!$F$75=0,DATOS!$F$22,DATOS!$F$75) -> 0 | G116: =D116*$F$28 -> 0
C117: REAL O. PRODUCCIÓN | D117: =D116 -> 23.92% | F117: =DATOS!$F$89/ANALISIS!$D$18 -> 0 | G117: =D117*$F$29 -> 0
G118: =D118*F118 -> 0
D119: COSTO UNIT. | G119: =G95+G108+G115 -> $0.05
C123: =PLATOS!C12 -> Locro de cuero
D124: Q- gramos | F124: C. gramos | G124: Costo Total
C125: INGREDIENTES | G125: =SUM(G126:G134) -> $0.35
C126: Cuero | D126: 45.46 | E126: gramos | F126: ='LISTA DE PRODUCTOS'!$G$28 -> $0.00396 | G126: =D126*F126 -> $0.18002
C127: ajos | D127: 0.15 | E127: gramos | F127: ='LISTA DE PRODUCTOS'!$G$8 -> $0.00550 | G127: =D127*F127 -> $0.00083
C128: cebolla larga | D128: 2.27 | E128: gramos | F128: ='LISTA DE PRODUCTOS'!$G$17 -> $0.00220 | G128: $0.00499
C129: cebolla paiteña | D129: 2.27 | E129: gramos | F129: ='LISTA DE PRODUCTOS'!$G$18 -> $0.00147 | G129: $0.00333
C130: leche | D130: 13.64 | E130: gramos | F130: ='LISTA DE PRODUCTOS'!$G$33 -> $0.00143 | G130: $0.01951
C131: mani | D131: 5 | E131: gramos | F131: ='LISTA DE PRODUCTOS'!$G$40 -> $0.00330 | G131: $0.01650
C132: manteca de puerco | D132: 2.27 | E132: gramos | F132: ='LISTA DE PRODUCTOS'!$G$41 -> $0.00330 | G132: $0.00749
C133: papas | D133: 250 | E133: gramos | F133: ='LISTA DE PRODUCTOS'!$G$50 -> $0.00044 | G133: =D133*F133 -> $0.11000
C134: sal | D134: 2.27 | E134: gramos | F134: ='LISTA DE PRODUCTOS'!$G$59 -> $0.00154 | G134: =D134*F134 -> $0.00350
C136: MANO DE OBRA | D136: H | F136: C/H | G136: =SUM(G137:G142) -> 0
C137: PERSONAL PLANTA
C138: COCINA | D138: ='TIEMPO P.P.'!$F$6/'TIEMPO P.P.'!$H$3 -> 0.065 | F138: =IF(DATOS!$I$11>0,(DATOS!$C$4*'TIEMPO P.P.'!$I$3)/240,0) -> 0 | G138: =D138*F138 -> 0
C139: SERVICIO | D139: ='TIEMPO P.P.'!$F$17/'TIEMPO P.P.'!$H$3 -> 0.062 | F139: =IF(DATOS!$J$11>0,DATOS!$C$5*'TIEMPO P.P.'!$I$14/240,0) -> 0 | G139: =F139*D139 -> 0
C140: PERSONAL EXTRA
C141: COCINA | D141: =D138 -> 0.065 | F141: =IF(DATOS!$I$16>0,DATOS!$C$7*'TIEMPO P.P.'!$I$3/8,0) -> 0 | G141: =D141*F141 -> 0
C142: SERVICIO | D142: =D139 -> 0.062 | F142: =IF(DATOS!$J$16>0,DATOS!$C$8*'TIEMPO P.P.'!$I$14/8,0) -> 0 | G142: =D142*F142 -> 0
C143: CIF | D143: % | F143: TP | G143: =SUM(G144:G146) -> 0
C144: MENSUAL PRES. ó REAL | D144: =('TIEMPO P.P.'!$E$6+'TIEMPO P.P.'!$E$17)/2 -> 23.92% | F144: =IF(DATOS!$F$75=0,DATOS!$F$22,DATOS!$F$75) -> 0 | G144: =D144*$F$28 -> 0
C145: REAL O. PRODUCCIÓN | D145: =D144 -> 23.92% | F145: =DATOS!$F$89/ANALISIS!$D$18 -> 0 | G145: =D145*$F$29 -> 0
G146: =D146*F146 -> 0
D147: COSTO UNIT. | G147: =G125+G136+G143 -> $0.35
C150: =PLATOS!C13 -> Locro de queso
D151: Q- gramos | F151: C. gramos | G151: Costo Total
C152: INGREDIENTES | G152: =SUM(G153:G161) -> $0.40
C153: Queso | D153: 0.08333333333 | E153: gramos | F153: ='LISTA DE PRODUCTOS'!$G$56 -> $2.80000 | G153: =D153*F153 -> $0.23333
C154: ajos | D154: 0.15 | E154: gramos | F154: ='LISTA DE PRODUCTOS'!$G$8 -> $0.00550 | G154: =D154*F154 -> $0.00083
C155: cebolla larga | D155: 2.27 | E155: gramos | F155: ='LISTA DE PRODUCTOS'!$G$17 -> $0.00220 | G155: $0.00499
C156: cebolla paiteña | D156: 2.27 | E156: gramos | F156: ='LISTA DE PRODUCTOS'!$G$18 -> $0.00147 | G156: $0.00333
C157: leche | D157: 13.64 | E157: gramos | F157: ='LISTA DE PRODUCTOS'!$G$33 -> $0.00143 | G157: $0.01951
C158: mani | D158: 5 | E158: gramos | F158: ='LISTA DE PRODUCTOS'!$G$40 -> $0.00330 | G158: $0.01650
C159: manteca de puerco | D159: 2.27 | E159: gramos | F159: ='LISTA DE PRODUCTOS'!$G$41 -> $0.00330 | G159: $0.00749
C160: papas | D160: 250 | E160: gramos | F160: ='LISTA DE PRODUCTOS'!$G$50 -> $0.00044 | G160: $0.11000
C161: sal | D161: 2.27 | E161: gramos | F161: ='LISTA DE PRODUCTOS'!$G$59 -> $0.00154 | G161: $0.00350
C163: MANO DE OBRA | D163: H | F163: C/H | G163: =SUM(G164:G169) -> 0
C164: PERSONAL PLANTA
C165: COCINA | D165: ='TIEMPO P.P.'!$F$6/'TIEMPO P.P.'!$H$3 -> 0.065 | F165: =IF(DATOS!$I$11>0,(DATOS!$C$4*'TIEMPO P.P.'!$I$3)/240,0) -> 0 | G165: =D165*F165 -> 0
C166: SERVICIO | D166: ='TIEMPO P.P.'!$F$17/'TIEMPO P.P.'!$H$3 -> 0.062 | F166: =IF(DATOS!$J$11>0,DATOS!$C$5*'TIEMPO P.P.'!$I$14/240,0) -> 0 | G166: =F166*D166 -> 0
C167: PERSONAL EXTRA
C168: COCINA | D168: =D165 -> 0.065 | F168: =IF(DATOS!$I$16>0,DATOS!$C$7*'TIEMPO P.P.'!$I$3/8,0) -> 0 | G168: =D168*F168 -> 0
C169: SERVICIO | D169: =D166 -> 0.062 | F169: =IF(DATOS!$J$16>0,DATOS!$C$8*'TIEMPO P.P.'!$I$14/8,0) -> 0 | G169: =D169*F169 -> 0
C170: CIF | D170: % | F170: TP | G170: =SUM(G171:G173) -> 0
C171: MENSUAL PRES. ó REAL | D171: =('TIEMPO P.P.'!$E$6+'TIEMPO P.P.'!$E$17)/2 -> 23.92% | F171: =IF(DATOS!$F$75=0,DATOS!$F$22,DATOS!$F$75) -> 0 | G171: =D171*$F$28 -> 0
C172: REAL O. PRODUCCIÓN | D172: =D171 -> 23.92% | F172: =DATOS!$F$89/ANALISIS!$D$18 -> 0 | G172: =D172*$F$29 -> 0
G173: =D173*F173 -> 0
D174: COSTO UNIT. | G174: =G152+G163+G170 -> $0.40
C178: =PLATOS!C14 -> Sopa de albóndigas
D179: Q- gramos | F179: C. gramos | G179: Costo Total
C180: INGREDIENTES | G180: =SUM(G181:G200) -> $0.39
C181: carne molida | D181: 45.46 | E181: gramos | F181: ='LISTA DE PRODUCTOS'!$G$16 -> $0.00352 | G181: =D181*F181 -> $0.16002
C182: aceite | D182: 0.15 | E182: gramos | F182: ='LISTA DE PRODUCTOS'!$G$3 -> $0.00066 | G182: =D182*F182 -> $0.00010
C183: ajo | D183: 0.15 | E183: gramos | F183: ='LISTA DE PRODUCTOS'!$G$8 -> $0.00550 | G183: $0.00083
C184: apanadura | D184: 9.09 | E184: gramos | F184: ='LISTA DE PRODUCTOS'!$G$10 -> $0.00220 | G184: $0.02000
C185: apio | D185: 0.1 | E185: gramos | F185: ='LISTA DE PRODUCTOS'!$G$11 -> $0.00110 | G185: $0.00011
C186: arina | D186: 4.55 | E186: gramos | F186: ='LISTA DE PRODUCTOS'!$G$12 -> $0.00062 | G186: $0.00280
C187: arroz | D187: 9.09 | E187: gramos | F187: ='LISTA DE PRODUCTOS'!$G$13 -> $0.00073 | G187: $0.00660
C188: arvejas | D188: 9.09 | E188: gramos | F188: ='LISTA DE PRODUCTOS'!$G$14 -> $0.00220 | G188: $0.02000
C189: cebolla larga | D189: 4.55 | E189: gramos | F189: ='LISTA DE PRODUCTOS'!$G$17 -> $0.00220 | G189: $0.01001
C190: cebolla paiteña | D190: 2.27 | E190: gramos | F190: ='LISTA DE PRODUCTOS'!$G$18 -> $0.00147 | G190: $0.00333
C191: cilantro | D191: 2.27 | E191: gramos | F191: ='LISTA DE PRODUCTOS'!$G$23 -> $0.00110 | G191: $0.00250
C192: color | D192: 0.1 | E192: gramos | F192: ='LISTA DE PRODUCTOS'!$G$25 -> $0.00396 | G192: $0.00040
C193: huevos | D193: 1 | E193: unidad | F193: ='LISTA DE PRODUCTOS'!$G$31 -> $0.10667 | G193: $0.10667
C194: leche | D194: 4.55 | E194: gramos | F194: ='LISTA DE PRODUCTOS'!$G$33 -> $0.00143 | G194: $0.00651
C195: magui | D195: 0.84 | E195: gramos | F195: ='LISTA DE PRODUCTOS'!$G$39 -> $0.00022 | G195: $0.00019
C196: manteca de chancho | D196: 0.1 | E196: gramos | F196: ='LISTA DE PRODUCTOS'!$G$41 -> $0.00330 | G196: $0.00033
C197: oregano | D197: 0.1 | E197: gramos | F197: ='LISTA DE PRODUCTOS'!$G$48 -> $0.00330 | G197: $0.00033
C198: papas | D198: 113.64 | E198: gramos | F198: ='LISTA DE PRODUCTOS'!$G$50 -> $0.00044 | G198: $0.05000
C199: sal | D199: 2.27 | E199: gramos | F199: ='LISTA DE PRODUCTOS'!$G$59 -> $0.00154 | G199: $0.00350
C200: zanahoria | D200: 4.55 | E200: gramos | F200: ='LISTA DE PRODUCTOS'!$G$67 -> 0 | G200: =D200*F200 -> 0
C202: MANO DE OBRA | D202: H | F202: C/H | G202: =SUM(G203:G208) -> 0
C203: PERSONAL PLANTA
C204: COCINA | D204: ='TIEMPO P.P.'!$F$6/'TIEMPO P.P.'!$H$3 -> 0.065 | F204: =IF(DATOS!$I$11>0,(DATOS!$C$4*'TIEMPO P.P.'!$I$3)/240,0) -> 0 | G204: =D204*F204 -> 0
C205: SERVICIO | D205: ='TIEMPO P.P.'!$F$17/'TIEMPO P.P.'!$H$3 -> 0.062 | F205: =IF(DATOS!$J$11>0,DATOS!$C$5*'TIEMPO P.P.'!$I$14/240,0) -> 0 | G205: =F205*D205 -> 0
C206: PERSONAL EXTRA
C207: COCINA | D207: =D204 -> 0.065 | F207: =IF(DATOS!$I$16>0,DATOS!$C$7*'TIEMPO P.P.'!$I$3/8,0) -> 0 | G207: =D207*F207 -> 0
C208: SERVICIO | D208: =D205 -> 0.062 | F208: =IF(DATOS!$J$16>0,DATOS!$C$8*'TIEMPO P.P.'!$I$14/8,0) -> 0 | G208: =D208*F208 -> 0
C209: CIF | D209: % | F209: TP | G209: =SUM(G210:G212) -> 0
C210: MENSUAL PRES. ó REAL | D210: =('TIEMPO P.P.'!$E$6+'TIEMPO P.P.'!$E$17)/2 -> 23.92% | F210: =IF(DATOS!$F$75=0,DATOS!$F$22,DATOS!$F$75) -> 0 | G210: =D210*$F$28 -> 0
C211: REAL O. PRODUCCIÓN | D211: =D210 -> 23.92% | F211: =DATOS!$F$89/ANALISIS!$D$18 -> 0 | G211: =D211*$F$29 -> 0
G212: =D212*F212 -> 0
D213: COSTO UNIT. | G213: =G180+G202+G209 -> $0.39
C216: =PLATOS!C15 -> Sopa de pollo
D217: cantidad | E217: unidad | F217: C. gramos | G217: Costo Total
C218: INGREDIENTES | G218: =SUM(G219:G234) -> $0.40
C219: pollo | D219: 136.37 | E219: gramos | F219: ='LISTA DE PRODUCTOS'!$G$55 -> $0.00220 | G219: =D219*F219 -> $0.30001
C220: aceite | D220: 0.1 | E220: gramos | F220: ='LISTA DE PRODUCTOS'!$G$3 -> $0.00066 | G220: $0.00007
C221: achote | D221: 0.2 | E221: gramos | F221: ='LISTA DE PRODUCTOS'!$G$5 -> $0.00396 | G221: $0.00079
C222: ajos | D222: 0.2 | E222: gramos | F222: ='LISTA DE PRODUCTOS'!$G$8 -> $0.00550 | G222: $0.00110
C223: apio | D223: 0.2 | E223: gramos | F223: ='LISTA DE PRODUCTOS'!$G$11 -> $0.00110 | G223: $0.00022
C224: arvejas | D224: 9.09 | E224: gramos | F224: ='LISTA DE PRODUCTOS'!$G$14 -> $0.00220 | G224: $0.02000
C225: cebolla larga | D225: 4.55 | E225: gramos | F225: ='LISTA DE PRODUCTOS'!$G$17 -> $0.00220 | G225: $0.01001
C226: cebolla paiteña | D226: 2.27 | E226: gramos | F226: ='LISTA DE PRODUCTOS'!$G$18 -> $0.00147 | G226: $0.00333
... 140 more rows

Sheet COSTO-FUERTES (hidden)
C1: COSTO DE LOS PLATOS - caminos de herradura
C3: F U E R T E
C5: ACOMPAÑAMIENTO PARA TODOS LOS PLATOS
C6: INGREDIENTES | D6: CANTIDAD | F6: COSTO | G6: TOTAL
C7: aceite | D7: 2.27 | E7: gramos | F7: ='LISTA DE PRODUCTOS'!$G$3 -> $0.00066 | G7: =F7*D7 -> $0.0015
C8: arroz | D8: 54.55 | E8: gramos | F8: ='LISTA DE PRODUCTOS'!$G$13 -> $0.00073 | G8: $0.0396
C9: arveja | D9: 36.37 | E9: gramos | F9: ='LISTA DE PRODUCTOS'!$G$14 -> $0.00220 | G9: =F9*D9 -> $0.0800
C10: choclo | D10: 36.37 | E10: gramos | F10: ='LISTA DE PRODUCTOS'!$G$21 -> $0.00220 | G10: $0.0800
C11: jamonada | D11: 4.56 | E11: gramos | F11: ='LISTA DE PRODUCTOS'!$G$32 -> $0.00946 | G11: $0.0431
C12: magui | D12: 0.42 | E12: gramos | F12: ='LISTA DE PRODUCTOS'!$G$39 -> $0.00022 | G12: $0.0001
C13: mayonesa | D13: 4 | E13: gramos | F13: ='LISTA DE PRODUCTOS'!$G$43 -> $0.00002 | G13: $0.0001
C14: papas | D14: 140 | E14: gramos | F14: ='LISTA DE PRODUCTOS'!$G$50 -> $0.00044 | G14: =F14*D14 -> $0.0616
C15: perejil | D15: 0.25 | E15: gramos | F15: ='LISTA DE PRODUCTOS'!$G$51 -> $0.00110 | G15: $0.0003
C16: sal | D16: 2.27 | E16: gramos | F16: ='LISTA DE PRODUCTOS'!$G$59 -> $0.00154 | G16: $0.0035
C17: zanahoria | D17: 36.37 | E17: gramos | F17: ='LISTA DE PRODUCTOS'!$G$67 -> 0 | G17: 0
G18: =F18*D18 -> 0
G19: 0
F20: TOTAL | G20: =SUM(G7:G19) -> $0.31
C23: =PLATOS!D8 -> Filete migñon
D24: Q- gramos | F24: C. gramos | G24: Costo Total
C25: INGREDIENTES | G25: =SUM(G26:G35)+G20 -> $2.81
C26: lomo | D26: 204.55 | E26: gramos | F26: ='LISTA DE PRODUCTOS'!$G$38 -> $0.00440 | G26: =D26*F26 -> $0.9000
C27: ajinomoto | D27: 0.1 | E27: gramos | F27: ='LISTA DE PRODUCTOS'!$G$7 -> $0.00704 | G27: =D27*F27 -> $0.0007
C28: ajo | D28: 0.1 | E28: gramos | F28: ='LISTA DE PRODUCTOS'!$G$8 -> $0.00550 | G28: $0.0006
C29: champiñones | D29: 22 | E29: gramos | F29: ='LISTA DE PRODUCTOS'!$G$19 -> $0.00621 | G29: $0.1366
C30: comino | D30: 0.1 | E30: gramos | F30: ='LISTA DE PRODUCTOS'!$G$26 -> $0.00352 | G30: $0.0004
C31: palillos | D31: 2 | E31: unidades | F31: ='LISTA DE PRODUCTOS'!$G$49 -> $0.25000 | G31: $0.5000
C32: pimienta | D32: 0.1 | E32: gramos | F32: ='LISTA DE PRODUCTOS'!$G$53 -> $0.00748 | G32: $0.0007
C33: sal | D33: 2.27 | E33: gramos | F33: ='LISTA DE PRODUCTOS'!$G$59 -> $0.00154 | G33: $0.0035
C34: crema maggui | D34: 2.8 | E34: gramos | F34: ='LISTA DE PRODUCTOS'!$G$63 -> $0.00003 | G34: $0.0001
C35: tosino | D35: 36.36 | E35: gramos | F35: ='LISTA DE PRODUCTOS'!$G$66 -> $0.02640 | G35: $0.9599
C37: MANO DE OBRA | D37: H | F37: C/H | G37: =SUM(G38:G43) -> 0
C38: PERSONAL PLANTA
C39: COCINA | D39: ='TIEMPO P.P.'!$F$7/'TIEMPO P.P.'!$H$3 -> 0.096 | F39: =IF(DATOS!$I$11>0,(DATOS!$C$4*'TIEMPO P.P.'!$I$3)/240,0) -> 0 | G39: =D39*F39 -> 0
C40: SERVICIO | D40: ='TIEMPO P.P.'!$F$18/'TIEMPO P.P.'!$H$3 -> 0.076 | F40: =IF(DATOS!$J$11>0,DATOS!$C$5*'TIEMPO P.P.'!$I$14/240,0) -> 0 | G40: =F40*D40 -> 0
C41: PERSONAL EXTRA
C42: COCINA | D42: =D39 -> 0.096 | F42: =IF(DATOS!$I$16>0,DATOS!$C$7*'TIEMPO P.P.'!$I$3/8,0) -> 0 | G42: =D42*F42 -> 0
C43: SERVICIO | D43: =D40 -> 0.076 | F43: =IF(DATOS!$J$16>0,DATOS!$C$8*'TIEMPO P.P.'!$I$14/8,0) -> 0 | G43: =D43*F43 -> 0
C44: CIF | D44: % | F44: TP | G44: =SUM(G45:G47) -> 0
C45: MENSUAL PRES. ó REAL | D45: =('TIEMPO P.P.'!$E$7+'TIEMPO P.P.'!$E$18)/2 -> 32.17% | F45: =IF(DATOS!$F$75=0,DATOS!$F$22,DATOS!$F$75) -> 0 | G45: =D45*$F$45 -> 0
C46: REAL O. PRODUCCIÓN | D46: =D45 -> 32.17% | F46: =DATOS!$F$89/ANALISIS!$D$18 -> 0 | G46: =D46*$F$46 -> 0
G47: =D47*F47 -> 0
D48: COSTO UNIT. | G48: =G25+G37+G44 -> $2.81
C51: =PLATOS!D9 -> Gordon blue
D52: Q- gramos | F52: C. gramos | G52: Costo Total
C53: INGREDIENTES | G53: =SUM(G54:G66)+G20 -> $1.89
C54: lomo | D54: 181.82 | E54: gramos | F54: ='LISTA DE PRODUCTOS'!$G$38 -> $0.00440 | G54: =D54*F54 -> $0.8000
C55: ajinomoto | D55: 0.1 | E55: gramos | F55: ='LISTA DE PRODUCTOS'!$G$7 -> $0.00704 | G55: =D55*F55 -> $0.0007
C56: ajo | D56: 0.1 | E56: gramos | F56: ='LISTA DE PRODUCTOS'!$G$8 -> $0.00550 | G56: $0.0006
C57: apanadura | D57: 36.36 | E57: gramos | F57: ='LISTA DE PRODUCTOS'!$G$10 -> $0.00220 | G57: $0.0800
C58: arina | D58: 18.18 | E58: gramos | F58: ='LISTA DE PRODUCTOS'!$G$12 -> $0.00062 | G58: $0.0112
C59: comino | D59: 0.1 | E59: gramos | F59: ='LISTA DE PRODUCTOS'!$G$26 -> $0.00352 | G59: $0.0004
C60: huevos | D60: 1 | E60: gramos | F60: ='LISTA DE PRODUCTOS'!$G$31 -> $0.10667 | G60: $0.1067
C61: jamonada | D61: 18.18 | E61: gramos | F61: ='LISTA DE PRODUCTOS'!$G$32 -> $0.00946 | G61: $0.1720
C62: leche | D62: 6.82 | E62: gramos | F62: ='LISTA DE PRODUCTOS'!$G$33 -> $0.00143 | G62: $0.0098
C63: palillos | D63: 1 | E63: unidad | F63: ='LISTA DE PRODUCTOS'!$G$49 -> $0.25000 | G63: $0.2500
C64: pimienta | D64: 0.1 | E64: gramos | F64: ='LISTA DE PRODUCTOS'!$G$53 -> $0.00748 | G64: $0.0007
C65: queso | D65: 0.05 | E65: gramos | F65: ='LISTA DE PRODUCTOS'!$G$56 -> $2.80000 | G65: $0.1400
C66: sal | D66: 2.27 | E66: gramos | F66: ='LISTA DE PRODUCTOS'!$G$59 -> $0.00154 | G66: $0.0035
C68: MANO DE OBRA | D68: H | F68: C/H | G68: =SUM(G69:G74) -> 0
C69: PERSONAL PLANTA
C70: COCINA | D70: ='TIEMPO P.P.'!$F$7/'TIEMPO P.P.'!$H$3 -> 0.096 | F70: =IF(DATOS!$I$11>0,(DATOS!$C$4*'TIEMPO P.P.'!$I$3)/240,0) -> 0 | G70: =D70*F70 -> 0
C71: SERVICIO | D71: ='TIEMPO P.P.'!$F$18/'TIEMPO P.P.'!$H$3 -> 0.076 | F71: =IF(DATOS!$J$11>0,DATOS!$C$5*'TIEMPO P.P.'!$I$14/240,0) -> 0 | G71: =F71*D71 -> 0
C72: PERSONAL EXTRA
C73: COCINA | D73: =D70 -> 0.096 | F73: =IF(DATOS!$I$16>0,DATOS!$C$7*'TIEMPO P.P.'!$I$3/8,0) -> 0 | G73: =D73*F73 -> 0
C74: SERVICIO | D74: =D71 -> 0.076 | F74: =IF(DATOS!$J$16>0,DATOS!$C$8*'TIEMPO P.P.'!$I$14/8,0) -> 0 | G74: =D74*F74 -> 0
C75: CIF | D75: % | F75: TP | G75: =SUM(G76:G78) -> 0
C76: MENSUAL PRES. ó REAL | D76: =('TIEMPO P.P.'!$E$7+'TIEMPO P.P.'!$E$18)/2 -> 32.17% | F76: =IF(DATOS!$F$75=0,DATOS!$F$22,DATOS!$F$75) -> 0 | G76: =D76*$F$45 -> 0
C77: REAL O. PRODUCCIÓN | D77: =D76 -> 32.17% | F77: =DATOS!$F$89/ANALISIS!$D$18 -> 0 | G77: =D77*$F$46 -> 0
G78: =D78*F78 -> 0
D79: COSTO UNIT. | G79: =G53+G68+G75 -> $1.89
C83: =PLATOS!D10 -> Lomo a la plancha y pollo en salsa de champiñones
D84: Q- gramos | F84: C. gramos | G84: Costo Total
C85: INGREDIENTES | G85: =SUM(G86:G103)+G20 -> $1.78
C86: Lomo | D86: 160 | E86: gramos | F86: ='LISTA DE PRODUCTOS'!$G$38 -> $0.00440 | G86: =D86*F86 -> $0.7040
C87: aceite | D87: 4.55 | E87: gramos | F87: ='LISTA DE PRODUCTOS'!$G$3 -> $0.00066 | G87: =D87*F87 -> $0.0030
C88: ajinomoto | D88: 0.1 | E88: gramos | F88: ='LISTA DE PRODUCTOS'!$G$7 -> $0.00704 | G88: $0.0007
C89: ajo | D89: 0.1 | E89: gramos | F89: ='LISTA DE PRODUCTOS'!$G$8 -> $0.00550 | G89: $0.0006
C90: comino | D90: 0.1 | E90: gramos | F90: ='LISTA DE PRODUCTOS'!$G$26 -> $0.00352 | G90: $0.0004
C91: pimienta | D91: 0.1 | E91: gramos | F91: ='LISTA DE PRODUCTOS'!$G$53 -> $0.00748 | G91: $0.0007
C92: sabora | D92: 0.1 | E92: gramos | F92: ='LISTA DE PRODUCTOS'!$G$58 -> $0.00704 | G92: $0.0007
C93: sal | D93: 2.27 | E93: gramos | F93: ='LISTA DE PRODUCTOS'!$G$59 -> $0.00154 | G93: $0.0035
G94: 0
C95: Pollo | D95: 286.37 | E95: gramos | F95: ='LISTA DE PRODUCTOS'!$G$55 -> $0.00220 | G95: $0.6300
C96: ajinomoto | D96: 0.1 | E96: gramos | F96: ='LISTA DE PRODUCTOS'!$G$7 -> $0.00704 | G96: $0.0007
C97: ajo | D97: 0.1 | E97: gramos | F97: ='LISTA DE PRODUCTOS'!$G$8 -> $0.00550 | G97: $0.0006
C98: champiñones | D98: 20 | E98: gramos | F98: ='LISTA DE PRODUCTOS'!$G$19 -> $0.00621 | G98: $0.1242
C99: comino | D99: 0.1 | E99: gramos | F99: ='LISTA DE PRODUCTOS'!$G$26 -> $0.00352 | G99: $0.0004
C100: pimienta | D100: 0.1 | E100: gramos | F100: ='LISTA DE PRODUCTOS'!$G$53 -> $0.00748 | G100: $0.0007
C101: sabora | D101: 0.1 | E101: gramos | F101: ='LISTA DE PRODUCTOS'!$G$58 -> $0.00704 | G101: =D101*F101 -> $0.0007
C102: sal | D102: 2.27 | E102: gramos | F102: ='LISTA DE PRODUCTOS'!$G$59 -> $0.00154 | G102: =D102*F102 -> $0.0035
C103: crema maggui | D103: 4.2 | E103: gramos | F103: ='LISTA DE PRODUCTOS'!$G$63 -> $0.00003 | G103: =D103*F103 -> $0.0001
C105: MANO DE OBRA | D105: H | F105: C/H | G105: =SUM(G106:G111) -> 0
C106: PERSONAL PLANTA
C107: COCINA | D107: ='TIEMPO P.P.'!$F$7/'TIEMPO P.P.'!$H$3 -> 0.096 | F107: =IF(DATOS!$I$11>0,(DATOS!$C$4*'TIEMPO P.P.'!$I$3)/240,0) -> 0 | G107: =D107*F107 -> 0
C108: SERVICIO | D108: ='TIEMPO P.P.'!$F$18/'TIEMPO P.P.'!$H$3 -> 0.076 | F108: =IF(DATOS!$J$11>0,DATOS!$C$5*'TIEMPO P.P.'!$I$14/240,0) -> 0 | G108: =F108*D108 -> 0
C109: PERSONAL EXTRA
C110: COCINA | D110: =D107 -> 0.096 | F110: =IF(DATOS!$I$16>0,DATOS!$C$7*'TIEMPO P.P.'!$I$3/8,0) -> 0 | G110: =D110*F110 -> 0
C111: SERVICIO | D111: =D108 -> 0.076 | F111: =IF(DATOS!$J$16>0,DATOS!$C$8*'TIEMPO P.P.'!$I$14/8,0) -> 0 | G111: =D111*F111 -> 0
C112: CIF | D112: % | F112: TP | G112: =SUM(G113:G115) -> 0
C113: MENSUAL PRES. ó REAL | D113: =('TIEMPO P.P.'!$E$7+'TIEMPO P.P.'!$E$18)/2 -> 32.17% | F113: =IF(DATOS!$F$75=0,DATOS!$F$22,DATOS!$F$75) -> 0 | G113: =D113*$F$45 -> 0
C114: REAL O. PRODUCCIÓN | D114: =D113 -> 32.17% | F114: =DATOS!$F$89/ANALISIS!$D$18 -> 0 | G114: =D114*$F$46 -> 0
G115: =D115*F115 -> 0
D116: COSTO UNIT. | G116: =G85+G105+G112 -> $1.78
C119: =PLATOS!D11 -> Lomo apanado y pollo en salsa de champiñones
D120: Q- gramos | F120: C. gramos | G120: Costo Total
C121: INGREDIENTES | G121: =SUM(G122:G142)+G20 -> $1.99
C122: Lomo | D122: 160 | E122: gramos | F122: ='LISTA DE PRODUCTOS'!$G$38 -> $0.00440 | G122: =D122*F122 -> $0.7040
C123: ajinomoto | D123: 0.1 | E123: gramos | F123: ='LISTA DE PRODUCTOS'!$G$7 -> $0.00704 | G123: =D123*F123 -> $0.0007
C124: ajo | D124: 0.1 | E124: gramos | F124: ='LISTA DE PRODUCTOS'!$G$8 -> $0.00550 | G124: $0.0006
C125: apanadura | D125: 36.36 | E125: gramos | F125: ='LISTA DE PRODUCTOS'!$G$10 -> $0.00220 | G125: $0.0800
C126: arina | D126: 18.18 | E126: gramos | F126: ='LISTA DE PRODUCTOS'!$G$12 -> $0.00062 | G126: $0.0112
C127: comino | D127: 0.1 | E127: gramos | F127: ='LISTA DE PRODUCTOS'!$G$26 -> $0.00352 | G127: $0.0004
C128: huevos | D128: 1 | E128: gramos | F128: ='LISTA DE PRODUCTOS'!$G$31 -> $0.10667 | G128: $0.1067
C129: leche | D129: 4.55 | E129: gramos | F129: ='LISTA DE PRODUCTOS'!$G$33 -> $0.00143 | G129: $0.0065
C130: pimienta | D130: 0.1 | E130: gramos | F130: ='LISTA DE PRODUCTOS'!$G$53 -> $0.00748 | G130: $0.0007
C131: sabora | D131: 0.1 | E131: gramos | F131: ='LISTA DE PRODUCTOS'!$G$58 -> $0.00704 | G131: $0.0007
C132: sal | D132: 2.27 | E132: gramos | F132: ='LISTA DE PRODUCTOS'!$G$59 -> $0.00154 | G132: $0.0035
C134: Pollo | D134: 286.37 | E134: gramos | F134: ='LISTA DE PRODUCTOS'!$G$55 -> $0.00220 | G134: $0.6300
C135: ajinomoto | D135: 0.1 | E135: gramos | F135: ='LISTA DE PRODUCTOS'!$G$7 -> $0.00704 | G135: $0.0007
C136: ajo | D136: 0.1 | E136: gramos | F136: ='LISTA DE PRODUCTOS'!$G$8 -> $0.00550 | G136: $0.0006
C137: champiñones | D137: 20 | E137: gramos | F137: ='LISTA DE PRODUCTOS'!$G$19 -> $0.00621 | G137: $0.1242
C138: comino | D138: 0.1 | E138: gramos | F138: ='LISTA DE PRODUCTOS'!$G$26 -> $0.00352 | G138: =D138*F138 -> $0.0004
C139: pimienta | D139: 0.1 | E139: gramos | F139: ='LISTA DE PRODUCTOS'!$G$53 -> $0.00748 | G139: =D139*F139 -> $0.0007
C140: sabora | D140: 0.1 | E140: gramos | F140: ='LISTA DE PRODUCTOS'!$G$58 -> $0.00704 | G140: =D140*F140 -> $0.0007
C141: sal | D141: 2.27 | E141: gramos | F141: ='LISTA DE PRODUCTOS'!$G$59 -> $0.00154 | G141: =D141*F141 -> $0.0035
C142: crema maggui | D142: 4.2 | E142: gramos | F142: ='LISTA DE PRODUCTOS'!$G$63 -> $0.00003 | G142: =D142*F142 -> $0.0001
C144: MANO DE OBRA | D144: H | F144: C/H | G144: =SUM(G145:G150) -> 0
C145: PERSONAL PLANTA
C146: COCINA | D146: ='TIEMPO P.P.'!$F$7/'TIEMPO P.P.'!$H$3 -> 0.096 | F146: =IF(DATOS!$I$11>0,(DATOS!$C$4*'TIEMPO P.P.'!$I$3)/240,0) -> 0 | G146: =D146*F146 -> 0
C147: SERVICIO | D147: ='TIEMPO P.P.'!$F$18/'TIEMPO P.P.'!$H$3 -> 0.076 | F147: =IF(DATOS!$J$11>0,DATOS!$C$5*'TIEMPO P.P.'!$I$14/240,0) -> 0 | G147: =F147*D147 -> 0
C148: PERSONAL EXTRA
C149: COCINA | D149: =D146 -> 0.096 | F149: =IF(DATOS!$I$16>0,DATOS!$C$7*'TIEMPO P.P.'!$I$3/8,0) -> 0 | G149: =D149*F149 -> 0
C150: SERVICIO | D150: =D147 -> 0.076 | F150: =IF(DATOS!$J$16>0,DATOS!$C$8*'TIEMPO P.P.'!$I$14/8,0) -> 0 | G150: =D150*F150 -> 0
C151: CIF | D151: % | F151: TP | G151: =SUM(G152:G154) -> 0
C152: MENSUAL PRES. ó REAL | D152: =('TIEMPO P.P.'!$E$7+'TIEMPO P.P.'!$E$18)/2 -> 32.17% | F152: =IF(DATOS!$F$75=0,DATOS!$F$22,DATOS!$F$75) -> 0 | G152: =D152*$F$45 -> 0
C153: REAL O. PRODUCCIÓN | D153: =D152 -> 32.17% | F153: =DATOS!$F$89/ANALISIS!$D$18 -> 0 | G153: =D153*$F$46 -> 0
G154: =D154*F154 -> 0
D155: COSTO UNIT. | G155: =G121+G144+G151 -> $1.99
C159: =PLATOS!D12 -> Lomo con champiñones y pollo apanado
D160: Q- gramos | F160: C. gramos | G160: Costo Total
C161: INGREDIENTES | G161: =SUM(G162:G182)+G20 -> $1.98
C162: Lomo | D162: 159.09 | E162: gramos | F162: ='LISTA DE PRODUCTOS'!$G$38 -> $0.00440 | G162: =D162*F162 -> $0.7000
C163: ajinomoto | D163: 0.1 | E163: gramos | F163: ='LISTA DE PRODUCTOS'!$G$7 -> $0.00704 | G163: =D163*F163 -> $0.0007
C164: ajo | D164: 0.1 | E164: gramos | F164: ='LISTA DE PRODUCTOS'!$G$8 -> $0.00550 | G164: $0.0006
C165: champiñones | D165: 20 | E165: gramos | F165: ='LISTA DE PRODUCTOS'!$G$19 -> $0.00621 | G165: $0.1242
C166: comino | D166: 0.1 | E166: gramos | F166: ='LISTA DE PRODUCTOS'!$G$26 -> $0.00352 | G166: $0.0004
C167: pimienta | D167: 0.1 | E167: gramos | F167: ='LISTA DE PRODUCTOS'!$G$53 -> $0.00748 | G167: $0.0007
C168: sabora | D168: 0.1 | E168: gramos | F168: ='LISTA DE PRODUCTOS'!$G$58 -> $0.00704 | G168: $0.0007
C169: sal | D169: 2.27 | E169: gramos | F169: ='LISTA DE PRODUCTOS'!$G$59 -> $0.00154 | G169: $0.0035
C170: crema maggui | D170: 4.2 | E170: gramos | F170: ='LISTA DE PRODUCTOS'!$G$63 -> $0.00003 | G170: $0.0001
C172: Pollo | D172: 286.37 | E172: gramos | F172: ='LISTA DE PRODUCTOS'!$G$55 -> $0.00220 | G172: $0.6300
C173: ajinomoto | D173: 0.1 | E173: gramos | F173: ='LISTA DE PRODUCTOS'!$G$7 -> $0.00704 | G173: $0.0007
C174: ajo | D174: 0.1 | E174: gramos | F174: ='LISTA DE PRODUCTOS'!$G$8 -> $0.00550 | G174: $0.0006
C175: apanadura | D175: 36.36 | E175: gramos | F175: ='LISTA DE PRODUCTOS'!$G$10 -> $0.00220 | G175: $0.0800
C176: arina | D176: 18.18 | E176: gramos | F176: ='LISTA DE PRODUCTOS'!$G$12 -> $0.00062 | G176: $0.0112
C177: comino | D177: 0.1 | E177: gramos | F177: ='LISTA DE PRODUCTOS'!$G$26 -> $0.00352 | G177: $0.0004
C178: huevos | D178: 1 | E178: gramos | F178: ='LISTA DE PRODUCTOS'!$G$31 -> $0.10667 | G178: =D178*F178 -> $0.1067
C179: leche | D179: 4.55 | E179: gramos | F179: ='LISTA DE PRODUCTOS'!$G$33 -> $0.00143 | G179: =D179*F179 -> $0.0065
C180: pimienta | D180: 0.1 | E180: gramos | F180: ='LISTA DE PRODUCTOS'!$G$53 -> $0.00748 | G180: =D180*F180 -> $0.0007
C181: sabora | D181: 0.1 | E181: gramos | F181: ='LISTA DE PRODUCTOS'!$G$58 -> $0.00704 | G181: =D181*F181 -> $0.0007
C182: sal | D182: 2.27 | E182: gramos | F182: ='LISTA DE PRODUCTOS'!$G$59 -> $0.00154 | G182: =D182*F182 -> $0.0035
C184: MANO DE OBRA | D184: H | F184: C/H | G184: =SUM(G185:G190) -> 0
C185: PERSONAL PLANTA
C186: COCINA | D186: ='TIEMPO P.P.'!$F$7/'TIEMPO P.P.'!$H$3 -> 0.096 | F186: =IF(DATOS!$I$11>0,(DATOS!$C$4*'TIEMPO P.P.'!$I$3)/240,0) -> 0 | G186: =D186*F186 -> 0
C187: SERVICIO | D187: ='TIEMPO P.P.'!$F$18/'TIEMPO P.P.'!$H$3 -> 0.076 | F187: =IF(DATOS!$J$11>0,DATOS!$C$5*'TIEMPO P.P.'!$I$14/240,0) -> 0 | G187: =F187*D187 -> 0
C188: PERSONAL EXTRA
C189: COCINA | D189: =D186 -> 0.096 | F189: =IF(DATOS!$I$16>0,DATOS!$C$7*'TIEMPO P.P.'!$I$3/8,0) -> 0 | G189: =D189*F189 -> 0
C190: SERVICIO | D190: =D187 -> 0.076 | F190: =IF(DATOS!$J$16>0,DATOS!$C$8*'TIEMPO P.P.'!$I$14/8,0) -> 0 | G190: =D190*F190 -> 0
C191: CIF | D191: % | F191: TP | G191: =SUM(G192:G194) -> 0
C192: MENSUAL PRES. ó REAL | D192: =('TIEMPO P.P.'!$E$7+'TIEMPO P.P.'!$E$18)/2 -> 32.17% | F192: =IF(DATOS!$F$75=0,DATOS!$F$22,DATOS!$F$75) -> 0 | G192: =D192*$F$45 -> 0
C193: REAL O. PRODUCCIÓN | D193: =D192 -> 32.17% | F193: =DATOS!$F$89/ANALISIS!$D$18 -> 0 | G193: =D193*$F$46 -> 0
G194: =D194*F194 -> 0
D195: COSTO UNIT. | G195: =G161+G184+G191 -> $1.98
C198: =PLATOS!D13 -> Lomo napolitano y pollo en salsa de champiñones
D199: Q- gramos | F199: C. gramos | G199: Costo Total
C200: INGREDIENTES | G200: =SUM(G201:G224)+G20 -> $1.57
C201: carne molida | D201: 90.91 | E201: gramos | F201: ='LISTA DE PRODUCTOS'!$G$16 -> $0.00352 | G201: =D201*F201 -> $0.3200
C202: aceite | D202: 0.15 | E202: gramos | F202: ='LISTA DE PRODUCTOS'!$G$3 -> $0.00066 | G202: =D202*F202 -> $0.0001
C203: ajinomoto | D203: 0.1 | E203: gramos | F203: ='LISTA DE PRODUCTOS'!$G$7 -> $0.00704 | G203: $0.0007
C204: ajo | D204: 0.1 | E204: gramos | F204: ='LISTA DE PRODUCTOS'!$G$8 -> $0.00550 | G204: $0.0006
C205: apanadura | D205: 18.18 | E205: gramos | F205: ='LISTA DE PRODUCTOS'!$G$10 -> $0.00220 | G205: $0.0400
C206: arina | D206: 9.09 | E206: gramos | F206: ='LISTA DE PRODUCTOS'!$G$12 -> $0.00062 | G206: $0.0056
C207: arveja | D207: 9.09 | E207: gramos | F207: ='LISTA DE PRODUCTOS'!$G$14 -> $0.00220 | G207: $0.0200
C208: comino | D208: 0.1 | E208: gramos | F208: ='LISTA DE PRODUCTOS'!$G$26 -> $0.00352 | G208: $0.0004
C209: huevos | D209: 1 | E209: unidad | F209: ='LISTA DE PRODUCTOS'!$G$31 -> $0.10667 | G209: $0.1067
C210: oregano | D210: 0.1 | E210: gramos | F210: ='LISTA DE PRODUCTOS'!$G$48 -> $0.00330 | G210: $0.0003
C211: pimienta | D211: 0.1 | E211: gramos | F211: ='LISTA DE PRODUCTOS'!$G$53 -> $0.00748 | G211: $0.0007
C212: sabora | D212: 0.1 | E212: gramos | F212: ='LISTA DE PRODUCTOS'!$G$58 -> $0.00704 | G212: $0.0007
C213: sal | D213: 2.27 | E213: gramos | F213: ='LISTA DE PRODUCTOS'!$G$59 -> $0.00154 | G213: $0.0035
C214: zahahoria | D214: 4.55 | E214: gramos | F214: ='LISTA DE PRODUCTOS'!$G$67 -> 0 | G214: 0
C216: Pollo | D216: 286.37 | E216: gramos | F216: ='LISTA DE PRODUCTOS'!$G$55 -> $0.00220 | G216: $0.6300
C217: ajinomoto | D217: 0.1 | E217: gramos | F217: ='LISTA DE PRODUCTOS'!$G$7 -> $0.00704 | G217: $0.0007
C218: ajo | D218: 0.1 | E218: gramos | F218: ='LISTA DE PRODUCTOS'!$G$8 -> $0.00550 | G218: $0.0006
C219: champiñones | D219: 20 | E219: gramos | F219: ='LISTA DE PRODUCTOS'!$G$19 -> $0.00621 | G219: $0.1242
C220: comino | D220: 0.1 | E220: gramos | F220: ='LISTA DE PRODUCTOS'!$G$26 -> $0.00352 | G220: $0.0004
C221: pimienta | D221: 0.1 | E221: gramos | F221: ='LISTA DE PRODUCTOS'!$G$53 -> $0.00748 | G221: $0.0007
C222: sabora | D222: 0.1 | E222: gramos | F222: ='LISTA DE PRODUCTOS'!$G$58 -> $0.00704 | G222: $0.0007
C223: sal | D223: 2.27 | E223: gramos | F223: ='LISTA DE PRODUCTOS'!$G$59 -> $0.00154 | G223: $0.0035
C224: crema maggui | D224: 4.2 | E224: gramos | F224: ='LISTA DE PRODUCTOS'!$G$63 -> $0.00003 | G224: $0.0001
... 223 more rows

Sheet COSTO-BEBIDAS (hidden)
C1: COSTO DE LOS PLATOS - caminos de herradura
C3: B E B I D A
C5: =PLATOS!E8 -> Chicha de Arroz
D6: Q- gramos | F6: C. gramos | G6: Costo Total
C7: INGREDIENTES | G7: =SUM(G8:G16) -> $0.0003
C8: arrocillo | D8: 22.73 | E8: gramos | F8: ='LISTA DE PRODUCTOS'!$G$71 -> 0 | G8: =D8*F8 -> 0
C9: piñas | D9: 27.27 | E9: gramos | F9: ='LISTA DE PRODUCTOS'!$G$90 -> 0 | G9: 0
C10: naranjilla | D10: 9.09 | E10: gramos | F10: ='LISTA DE PRODUCTOS'!$G$87 -> 0 | G10: 0
C11: hierba luisa | D11: 0.15 | E11: gramos | F11: ='LISTA DE PRODUCTOS'!$G$82 -> 0 | G11: 0
C12: cedron | D12: 0.15 | E12: gramos | F12: ='LISTA DE PRODUCTOS'!$G$75 -> 0 | G12: =D12*F12 -> 0
C13: ispingo | D13: 0.1 | E13: gramos | F13: ='LISTA DE PRODUCTOS'!$G$83 -> 0 | G13: 0
C14: clavo de olor | D14: 0.05 | E14: gramos | F14: ='LISTA DE PRODUCTOS'!$G$76 -> 0 | G14: 0
C15: pimienta de dulce | D15: 0.05 | E15: gramos | F15: ='LISTA DE PRODUCTOS'!$G$52 -> $0.0053 | G15: $0.0003
C16: azucar | D16: 45.46 | E16: gramos | F16: ='LISTA DE PRODUCTOS'!$G$72 -> 0 | G16: 0
C18: MANO DE OBRA | D18: H | F18: C/H | G18: =SUM(G19:G24) -> 0
C19: PERSONAL PLANTA
C20: COCINA | D20: ='TIEMPO P.P.'!$F$8/'TIEMPO P.P.'!$H$3 -> 0.016 | F20: =IF(DATOS!$I$11>0,(DATOS!$C$4*'TIEMPO P.P.'!$I$3)/240,0) -> 0 | G20: =D20*F20 -> 0
C21: SERVICIO | D21: ='TIEMPO P.P.'!$F$19/'TIEMPO P.P.'!$H$3 -> 0.030 | F21: =IF(DATOS!$J$11>0,DATOS!$C$5*'TIEMPO P.P.'!$I$14/240,0) -> 0 | G21: =F21*D21 -> 0
C22: PERSONAL EXTRA
C23: COCINA | D23: =D20 -> 0.016 | F23: =IF(DATOS!$I$16>0,DATOS!$C$7*'TIEMPO P.P.'!$I$3/8,0) -> 0 | G23: =D23*F23 -> 0
C24: SERVICIO | D24: =D21 -> 0.030 | F24: =IF(DATOS!$J$16>0,DATOS!$C$8*'TIEMPO P.P.'!$I$14/8,0) -> 0 | G24: =D24*F24 -> 0
C25: CIF | D25: % | F25: TP | G25: =SUM(G26:G28) -> 0
C26: MENSUAL PRES. ó REAL | D26: =('TIEMPO P.P.'!$E$8+'TIEMPO P.P.'!$E$19)/2 -> 8.67% | F26: =IF(DATOS!$F$75=0,DATOS!$F$22,DATOS!$F$75) -> 0 | G26: =D26*$F$26 -> 0
C27: REAL O. PRODUCCIÓN | D27: =D26 -> 8.67% | F27: =DATOS!$F$89/ANALISIS!$D$18 -> 0 | G27: =D27*$F$27 -> 0
G28: 0
D29: COSTO UNIT. | G29: =G7+G18+G25 -> $0.0003
C32: =PLATOS!E9 -> Colas
D33: Q- gramos | F33: C. gramos | G33: Costo Total
C34: INGREDIENTES | G34: =SUM(G35:G35) -> $0.1700
C35: Cola | D35: 136.37 | E35: gramos | F35: ='LISTA DE PRODUCTOS'!$G$24 -> $0.0012 | G35: =D35*F35 -> $0.1700
C37: MANO DE OBRA | D37: H | F37: C/H | G37: =SUM(G38:G43) -> 0
C38: PERSONAL PLANTA
C39: COCINA | D39: ='TIEMPO P.P.'!$F$8/'TIEMPO P.P.'!$H$3 -> 0.016 | F39: =IF(DATOS!$I$11>0,(DATOS!$C$4*'TIEMPO P.P.'!$I$3)/240,0) -> 0 | G39: =D39*F39 -> 0
C40: SERVICIO | D40: ='TIEMPO P.P.'!$F$19/'TIEMPO P.P.'!$H$3 -> 0.030 | F40: =IF(DATOS!$J$11>0,DATOS!$C$5*'TIEMPO P.P.'!$I$14/240,0) -> 0 | G40: =F40*D40 -> 0
C41: PERSONAL EXTRA
C42: COCINA | D42: =D39 -> 0.016 | F42: =IF(DATOS!$I$16>0,DATOS!$C$7*'TIEMPO P.P.'!$I$3/8,0) -> 0 | G42: =D42*F42 -> 0
C43: SERVICIO | D43: =D40 -> 0.030 | F43: =IF(DATOS!$J$16>0,DATOS!$C$8*'TIEMPO P.P.'!$I$14/8,0) -> 0 | G43: =D43*F43 -> 0
C44: CIF | D44: % | F44: TP | G44: =SUM(G45:G47) -> 0
C45: MENSUAL PRES. ó REAL | D45: =('TIEMPO P.P.'!$E$8+'TIEMPO P.P.'!$E$19)/2 -> 8.67% | F45: =IF(DATOS!$F$75=0,DATOS!$F$22,DATOS!$F$75) -> 0 | G45: =D45*$F$26 -> 0
C46: REAL O. PRODUCCIÓN | D46: =D45 -> 8.67% | F46: =DATOS!$F$89/ANALISIS!$D$18 -> 0 | G46: =D46*$F$27 -> 0
G47: =D47*F47 -> 0
D48: COSTO UNIT. | G48: =G34+G37+G44 -> $0.1700
C52: =PLATOS!E10 -> Colas y Minerales
D53: Q- gramos | F53: C. gramos | G53: Costo Total
C54: INGREDIENTES | G54: =SUM(G55:G56) -> $0.1700
C55: Cola | D55: 136.37 | E55: gramos | F55: ='LISTA DE PRODUCTOS'!$G$24 -> $0.0012 | G55: =D55*F55 -> $0.1700
C56: Agua Mineral | D56: 136.37 | E56: gramos | F56: ='LISTA DE PRODUCTOS'!$G$70 -> 0 | G56: =D56*F56 -> 0
C58: MANO DE OBRA | D58: H | F58: C/H | G58: =SUM(G59:G64) -> 0
C59: PERSONAL PLANTA
C60: COCINA | D60: ='TIEMPO P.P.'!$F$8/'TIEMPO P.P.'!$H$3 -> 0.016 | F60: =IF(DATOS!$I$11>0,(DATOS!$C$4*'TIEMPO P.P.'!$I$3)/240,0) -> 0 | G60: =D60*F60 -> 0
C61: SERVICIO | D61: ='TIEMPO P.P.'!$F$19/'TIEMPO P.P.'!$H$3 -> 0.030 | F61: =IF(DATOS!$J$11>0,DATOS!$C$5*'TIEMPO P.P.'!$I$14/240,0) -> 0 | G61: =F61*D61 -> 0
C62: PERSONAL EXTRA
C63: COCINA | D63: =D60 -> 0.016 | F63: =IF(DATOS!$I$16>0,DATOS!$C$7*'TIEMPO P.P.'!$I$3/8,0) -> 0 | G63: =D63*F63 -> 0
C64: SERVICIO | D64: =D61 -> 0.030 | F64: =IF(DATOS!$J$16>0,DATOS!$C$8*'TIEMPO P.P.'!$I$14/8,0) -> 0 | G64: =D64*F64 -> 0
C65: CIF | D65: % | F65: TP | G65: =SUM(G66:G68) -> 0
C66: MENSUAL PRES. ó REAL | D66: =('TIEMPO P.P.'!$E$8+'TIEMPO P.P.'!$E$19)/2 -> 8.67% | F66: =IF(DATOS!$F$75=0,DATOS!$F$22,DATOS!$F$75) -> 0 | G66: =D66*$F$26 -> 0
C67: REAL O. PRODUCCIÓN | D67: =D66 -> 8.67% | F67: =DATOS!$F$89/ANALISIS!$D$18 -> 0 | G67: =D67*$F$27 -> 0
G68: =D68*F68 -> 0
D69: COSTO UNIT. | G69: =G54+G58+G65 -> $0.1700
C72: =PLATOS!E11 -> Jugo de Guayaba
D73: Q- gramos | F73: C. gramos | G73: Costo Total
C74: INGREDIENTES | G74: =SUM(G75:G76) -> 0
C75: Guayaba | D75: 68.18 | E75: gramos | F75: ='LISTA DE PRODUCTOS'!$G$81 -> 0 | G75: =D75*F75 -> 0
C76: Azucar | D76: 45.46 | E76: gramos | F76: ='LISTA DE PRODUCTOS'!$G$72 -> 0 | G76: =D76*F76 -> 0
C78: MANO DE OBRA | D78: H | F78: C/H | G78: =SUM(G79:G84) -> 0
C79: PERSONAL PLANTA
C80: COCINA | D80: ='TIEMPO P.P.'!$F$8/'TIEMPO P.P.'!$H$3 -> 0.016 | F80: =IF(DATOS!$I$11>0,(DATOS!$C$4*'TIEMPO P.P.'!$I$3)/240,0) -> 0 | G80: =D80*F80 -> 0
C81: SERVICIO | D81: ='TIEMPO P.P.'!$F$19/'TIEMPO P.P.'!$H$3 -> 0.030 | F81: =IF(DATOS!$J$11>0,DATOS!$C$5*'TIEMPO P.P.'!$I$14/240,0) -> 0 | G81: =F81*D81 -> 0
C82: PERSONAL EXTRA
C83: COCINA | D83: =D80 -> 0.016 | F83: =IF(DATOS!$I$16>0,DATOS!$C$7*'TIEMPO P.P.'!$I$3/8,0) -> 0 | G83: =D83*F83 -> 0
C84: SERVICIO | D84: =D81 -> 0.030 | F84: =IF(DATOS!$J$16>0,DATOS!$C$8*'TIEMPO P.P.'!$I$14/8,0) -> 0 | G84: =D84*F84 -> 0
C85: CIF | D85: % | F85: TP | G85: =SUM(G86:G88) -> 0
C86: MENSUAL PRES. ó REAL | D86: =('TIEMPO P.P.'!$E$8+'TIEMPO P.P.'!$E$19)/2 -> 8.67% | F86: =IF(DATOS!$F$75=0,DATOS!$F$22,DATOS!$F$75) -> 0 | G86: =D86*$F$26 -> 0
C87: REAL O. PRODUCCIÓN | D87: =D86 -> 8.67% | F87: =DATOS!$F$89/ANALISIS!$D$18 -> 0 | G87: =D87*$F$27 -> 0
G88: =D88*F88 -> 0
D89: COSTO UNIT. | G89: =G74+G78+G85 -> 0
C93: =PLATOS!E12 -> Jugo de Mora
D94: Q- gramos | F94: C. gramos | G94: Costo Total
C95: INGREDIENTES | G95: =SUM(G96:G97) -> 0
C96: Mora | D96: 68.18 | E96: gramos | F96: ='LISTA DE PRODUCTOS'!$G$85 -> 0 | G96: =D96*F96 -> 0
C97: Azucar | D97: 45.46 | E97: gramos | F97: ='LISTA DE PRODUCTOS'!$G$72 -> 0 | G97: 0
C99: MANO DE OBRA | D99: H | F99: C/H | G99: =SUM(G100:G105) -> 0
C100: PERSONAL PLANTA
C101: COCINA | D101: ='TIEMPO P.P.'!$F$8/'TIEMPO P.P.'!$H$3 -> 0.016 | F101: =IF(DATOS!$I$11>0,(DATOS!$C$4*'TIEMPO P.P.'!$I$3)/240,0) -> 0 | G101: =D101*F101 -> 0
C102: SERVICIO | D102: ='TIEMPO P.P.'!$F$19/'TIEMPO P.P.'!$H$3 -> 0.030 | F102: =IF(DATOS!$J$11>0,DATOS!$C$5*'TIEMPO P.P.'!$I$14/240,0) -> 0 | G102: =F102*D102 -> 0
C103: PERSONAL EXTRA
C104: COCINA | D104: =D101 -> 0.016 | F104: =IF(DATOS!$I$16>0,DATOS!$C$7*'TIEMPO P.P.'!$I$3/8,0) -> 0 | G104: =D104*F104 -> 0
C105: SERVICIO | D105: =D102 -> 0.030 | F105: =IF(DATOS!$J$16>0,DATOS!$C$8*'TIEMPO P.P.'!$I$14/8,0) -> 0 | G105: =D105*F105 -> 0
C106: CIF | D106: % | F106: TP | G106: =SUM(G107:G109) -> 0
C107: MENSUAL PRES. ó REAL | D107: =('TIEMPO P.P.'!$E$8+'TIEMPO P.P.'!$E$19)/2 -> 8.67% | F107: =IF(DATOS!$F$75=0,DATOS!$F$22,DATOS!$F$75) -> 0 | G107: =D107*$F$26 -> 0
C108: REAL O. PRODUCCIÓN | D108: =D107 -> 8.67% | F108: =DATOS!$F$89/ANALISIS!$D$18 -> 0 | G108: =D108*$F$27 -> 0
G109: =D109*F109 -> 0
D110: COSTO UNIT. | G110: =G95+G99+G106 -> 0
C113: =PLATOS!E13 -> Jugo de papaya
D114: Q- gramos | F114: C. gramos | G114: Costo Total
C115: INGREDIENTES | G115: =SUM(G116:G117) -> 0
C116: Papaya | D116: 45.46 | E116: gramos | F116: ='LISTA DE PRODUCTOS'!G89 -> 0 | G116: =D116*F116 -> 0
C117: Azucar | D117: 45.46 | E117: gramos | F117: ='LISTA DE PRODUCTOS'!$G$72 -> 0 | G117: 0
C119: MANO DE OBRA | D119: H | F119: C/H | G119: =SUM(G120:G125) -> 0
C120: PERSONAL PLANTA
C121: COCINA | D121: ='TIEMPO P.P.'!$F$8/'TIEMPO P.P.'!$H$3 -> 0.016 | F121: =IF(DATOS!$I$11>0,(DATOS!$C$4*'TIEMPO P.P.'!$I$3)/240,0) -> 0 | G121: =D121*F121 -> 0
C122: SERVICIO | D122: ='TIEMPO P.P.'!$F$19/'TIEMPO P.P.'!$H$3 -> 0.030 | F122: =IF(DATOS!$J$11>0,DATOS!$C$5*'TIEMPO P.P.'!$I$14/240,0) -> 0 | G122: =F122*D122 -> 0
C123: PERSONAL EXTRA
C124: COCINA | D124: =D121 -> 0.016 | F124: =IF(DATOS!$I$16>0,DATOS!$C$7*'TIEMPO P.P.'!$I$3/8,0) -> 0 | G124: =D124*F124 -> 0
C125: SERVICIO | D125: =D122 -> 0.030 | F125: =IF(DATOS!$J$16>0,DATOS!$C$8*'TIEMPO P.P.'!$I$14/8,0) -> 0 | G125: =D125*F125 -> 0
C126: CIF | D126: % | F126: TP | G126: =SUM(G127:G129) -> 0
C127: MENSUAL PRES. ó REAL | D127: =('TIEMPO P.P.'!$E$8+'TIEMPO P.P.'!$E$19)/2 -> 8.67% | F127: =IF(DATOS!$F$75=0,DATOS!$F$22,DATOS!$F$75) -> 0 | G127: =D127*$F$26 -> 0
C128: REAL O. PRODUCCIÓN | D128: =D127 -> 8.67% | F128: =DATOS!$F$89/ANALISIS!$D$18 -> 0 | G128: =D128*$F$27 -> 0
G129: =D129*F129 -> 0
D130: COSTO UNIT. | G130: =G115+G119+G126 -> 0
C134: =PLATOS!E14 -> Jugo de piña
D135: Q- gramos | F135: C. gramos | G135: Costo Total
C136: INGREDIENTES | G136: =SUM(G137:G138) -> 0
C137: piña | D137: 45.46 | E137: gramos | F137: ='LISTA DE PRODUCTOS'!$G$90 -> 0 | G137: =D137*F137 -> 0
C138: Azucar | D138: 45.46 | E138: gramos | F138: ='LISTA DE PRODUCTOS'!$G$72 -> 0 | G138: 0
C140: MANO DE OBRA | D140: H | F140: C/H | G140: =SUM(G141:G146) -> 0
C141: PERSONAL PLANTA
C142: COCINA | D142: ='TIEMPO P.P.'!$F$8/'TIEMPO P.P.'!$H$3 -> 0.016 | F142: =IF(DATOS!$I$11>0,(DATOS!$C$4*'TIEMPO P.P.'!$I$3)/240,0) -> 0 | G142: =D142*F142 -> 0
C143: SERVICIO | D143: ='TIEMPO P.P.'!$F$19/'TIEMPO P.P.'!$H$3 -> 0.030 | F143: =IF(DATOS!$J$11>0,DATOS!$C$5*'TIEMPO P.P.'!$I$14/240,0) -> 0 | G143: =F143*D143 -> 0
C144: PERSONAL EXTRA
C145: COCINA | D145: =D142 -> 0.016 | F145: =IF(DATOS!$I$16>0,DATOS!$C$7*'TIEMPO P.P.'!$I$3/8,0) -> 0 | G145: =D145*F145 -> 0
C146: SERVICIO | D146: =D143 -> 0.030 | F146: =IF(DATOS!$J$16>0,DATOS!$C$8*'TIEMPO P.P.'!$I$14/8,0) -> 0 | G146: =D146*F146 -> 0
C147: CIF | D147: % | F147: TP | G147: =SUM(G148:G150) -> 0
C148: MENSUAL PRES. ó REAL | D148: =('TIEMPO P.P.'!$E$8+'TIEMPO P.P.'!$E$19)/2 -> 8.67% | F148: =IF(DATOS!$F$75=0,DATOS!$F$22,DATOS!$F$75) -> 0 | G148: =D148*$F$26 -> 0
C149: REAL O. PRODUCCIÓN | D149: =D148 -> 8.67% | F149: =DATOS!$F$89/ANALISIS!$D$18 -> 0 | G149: =D149*$F$27 -> 0
G150: =D150*F150 -> 0
D151: COSTO UNIT. | G151: =G136+G140+G147 -> 0
C154: =PLATOS!E15 -> Jugo de Tomate
D155: Q- gramos | F155: C. gramos | G155: Costo Total
C156: INGREDIENTES | G156: =SUM(G157:G158) -> 0
C157: Tomate | D157: 113.64 | E157: gramos | F157: ='LISTA DE PRODUCTOS'!$G$93 -> 0 | G157: =D157*F157 -> 0
C158: Azucar | D158: 45.46 | E158: gramos | F158: ='LISTA DE PRODUCTOS'!$G$72 -> 0 | G158: 0
C160: MANO DE OBRA | D160: H | F160: C/H | G160: =SUM(G161:G166) -> 0
C161: PERSONAL PLANTA
C162: COCINA | D162: ='TIEMPO P.P.'!$F$8/'TIEMPO P.P.'!$H$3 -> 0.016 | F162: =IF(DATOS!$I$11>0,(DATOS!$C$4*'TIEMPO P.P.'!$I$3)/240,0) -> 0 | G162: =D162*F162 -> 0
C163: SERVICIO | D163: ='TIEMPO P.P.'!$F$19/'TIEMPO P.P.'!$H$3 -> 0.030 | F163: =IF(DATOS!$J$11>0,DATOS!$C$5*'TIEMPO P.P.'!$I$14/240,0) -> 0 | G163: =F163*D163 -> 0
C164: PERSONAL EXTRA
C165: COCINA | D165: =D162 -> 0.016 | F165: =IF(DATOS!$I$16>0,DATOS!$C$7*'TIEMPO P.P.'!$I$3/8,0) -> 0 | G165: =D165*F165 -> 0
C166: SERVICIO | D166: =D163 -> 0.030 | F166: =IF(DATOS!$J$16>0,DATOS!$C$8*'TIEMPO P.P.'!$I$14/8,0) -> 0 | G166: =D166*F166 -> 0
C167: CIF | D167: % | F167: TP | G167: =SUM(G168:G170) -> 0
C168: MENSUAL PRES. ó REAL | D168: =('TIEMPO P.P.'!$E$8+'TIEMPO P.P.'!$E$19)/2 -> 8.67% | F168: =IF(DATOS!$F$75=0,DATOS!$F$22,DATOS!$F$75) -> 0 | G168: =D168*$F$26 -> 0
C169: REAL O. PRODUCCIÓN | D169: =D168 -> 8.67% | F169: =DATOS!$F$89/ANALISIS!$D$18 -> 0 | G169: =D169*$F$27 -> 0
G170: =D170*F170 -> 0
D171: COSTO UNIT. | G171: =G156+G160+G167 -> 0
C175: =PLATOS!E16 -> Minerales
D176: Q- gramos | F176: C. gramos | G176: Costo Total
C177: INGREDIENTES | G177: =SUM(G178:G178) -> 0
C178: Minerales | D178: 136.37 | E178: g | F178: ='LISTA DE PRODUCTOS'!$G$70 -> 0 | G178: =D178*F178 -> 0
C180: MANO DE OBRA | D180: H | F180: C/H | G180: =SUM(G181:G186) -> 0
C181: PERSONAL PLANTA
C182: COCINA | D182: ='TIEMPO P.P.'!$F$8/'TIEMPO P.P.'!$H$3 -> 0.016 | F182: =IF(DATOS!$I$11>0,(DATOS!$C$4*'TIEMPO P.P.'!$I$3)/240,0) -> 0 | G182: =D182*F182 -> 0
C183: SERVICIO | D183: ='TIEMPO P.P.'!$F$19/'TIEMPO P.P.'!$H$3 -> 0.030 | F183: =IF(DATOS!$J$11>0,DATOS!$C$5*'TIEMPO P.P.'!$I$14/240,0) -> 0 | G183: =F183*D183 -> 0
C184: PERSONAL EXTRA
C185: COCINA | D185: =D182 -> 0.016 | F185: =IF(DATOS!$I$16>0,DATOS!$C$7*'TIEMPO P.P.'!$I$3/8,0) -> 0 | G185: =D185*F185 -> 0
C186: SERVICIO | D186: =D183 -> 0.030 | F186: =IF(DATOS!$J$16>0,DATOS!$C$8*'TIEMPO P.P.'!$I$14/8,0) -> 0 | G186: =D186*F186 -> 0
C187: CIF | D187: % | F187: TP | G187: =SUM(G188:G190) -> 0
C188: MENSUAL PRES. ó REAL | D188: =('TIEMPO P.P.'!$E$8+'TIEMPO P.P.'!$E$19)/2 -> 8.67% | F188: =IF(DATOS!$F$75=0,DATOS!$F$22,DATOS!$F$75) -> 0 | G188: =D188*$F$26 -> 0
C189: REAL O. PRODUCCIÓN | D189: =D188 -> 8.67% | F189: =DATOS!$F$89/ANALISIS!$D$18 -> 0 | G189: =D189*$F$27 -> 0
G190: =D190*F190 -> 0
D191: COSTO UNIT. | G191: =G177+G180+G187 -> 0
C194: =PLATOS!E17 -> COSTO-BEBIDAS'!C198
D195: Q- gramos | F195: C. gramos | G195: Costo Total
C196: INGREDIENTES | G196: =SUM(G197:G203) -> 0
G197: =D197*F197 -> 0
G198: =D198*F198 -> 0
G199: 0
G200: 0
G201: 0
G202: 0
G203: 0
C204: MANO DE OBRA | D204: H | F204: C/H | G204: =SUM(G205:G210) -> 0
C205: PERSONAL PLANTA
C206: COCINA | D206: ='TIEMPO P.P.'!$F$8/'TIEMPO P.P.'!$H$3 -> 0.016 | F206: =IF(DATOS!$I$11>0,(DATOS!$C$4*'TIEMPO P.P.'!$I$3)/240,0) -> 0 | G206: =D206*F206 -> 0
C207: SERVICIO | D207: ='TIEMPO P.P.'!$F$19/'TIEMPO P.P.'!$H$3 -> 0.030 | F207: =IF(DATOS!$J$11>0,DATOS!$C$5*'TIEMPO P.P.'!$I$14/240,0) -> 0 | G207: =F207*D207 -> 0
C208: PERSONAL EXTRA
C209: COCINA | D209: =D206 -> 0.016 | F209: =IF(DATOS!$I$16>0,DATOS!$C$7*'TIEMPO P.P.'!$I$3/8,0) -> 0 | G209: =D209*F209 -> 0
C210: SERVICIO | D210: =D207 -> 0.030 | F210: =IF(DATOS!$J$16>0,DATOS!$C$8*'TIEMPO P.P.'!$I$14/8,0) -> 0 | G210: =D210*F210 -> 0
C211: CIF | D211: % | F211: TP | G211: =SUM(G212:G214) -> 0
C212: MENSUAL PRES. ó REAL | D212: =('TIEMPO P.P.'!$E$8+'TIEMPO P.P.'!$E$19)/2 -> 8.67% | F212: =IF(DATOS!$F$75=0,DATOS!$F$22,DATOS!$F$75) -> 0 | G212: =D212*$F$26 -> 0
C213: REAL O. PRODUCCIÓN | D213: =D212 -> 8.67% | F213: =DATOS!$F$89/ANALISIS!$D$18 -> 0 | G213: =D213*$F$27 -> 0
G214: =D214*F214 -> 0
D215: COSTO UNIT. | G215: =G196+G204+G211 -> 0
C219: =PLATOS!E18 -> COSTO-BEBIDAS'!C220
D220: Q- gramos | F220: C. gramos | G220: Costo Total
C221: INGREDIENTES | G221: =SUM(G222:G228) -> 0
G222: =D222*F222 -> 0
G223: =D223*F223 -> 0
G224: 0
G225: 0
G226: 0
G227: 0
G228: 0
C229: MANO DE OBRA | D229: H | F229: C/H | G229: =SUM(G230:G235) -> 0
C230: PERSONAL PLANTA
C231: COCINA | D231: ='TIEMPO P.P.'!$F$8/'TIEMPO P.P.'!$H$3 -> 0.016 | F231: =IF(DATOS!$I$11>0,(DATOS!$C$4*'TIEMPO P.P.'!$I$3)/240,0) -> 0 | G231: =D231*F231 -> 0
C232: SERVICIO | D232: ='TIEMPO P.P.'!$F$19/'TIEMPO P.P.'!$H$3 -> 0.030 | F232: =IF(DATOS!$J$11>0,DATOS!$C$5*'TIEMPO P.P.'!$I$14/240,0) -> 0 | G232: =F232*D232 -> 0
C233: PERSONAL EXTRA
C234: COCINA | D234: =D231 -> 0.016 | F234: =IF(DATOS!$I$16>0,DATOS!$C$7*'TIEMPO P.P.'!$I$3/8,0) -> 0 | G234: =D234*F234 -> 0
C235: SERVICIO | D235: =D232 -> 0.030 | F235: =IF(DATOS!$J$16>0,DATOS!$C$8*'TIEMPO P.P.'!$I$14/8,0) -> 0 | G235: =D235*F235 -> 0
C236: CIF | D236: % | F236: TP | G236: =SUM(G237:G239) -> 0
... 48 more rows

Sheet COSTO-POSTRE (hidden)
C1: COSTO DE LOS PLATOS - caminos de herradura
C3: P O S T R E
C5: =PLATOS!F8 -> Duraznos con creas
D6: Q- gramos | F6: C. gramos | G6: Costo Total
C7: INGREDIENTES | G7: =SUM(G8:G10) -> $0.24
C8: Durazno | D8: 0.04 | E8: unidad | F8: ='LISTA DE PRODUCTOS'!$G$78 -> $6.00 | G8: =D8*F8 -> $0.24
C9: crema de leche | D9: 18.18 | E9: gramos | F9: ='LISTA DE PRODUCTOS'!$G$77 -> 0 | G9: 0
C10: azucar | D10: 27.27 | E10: gramos | F10: ='LISTA DE PRODUCTOS'!$G$72 -> 0 | G10: 0
C12: MANO DE OBRA | D12: H | F12: C/H | G12: =SUM(G13:G18) -> 0
C13: PERSONAL PLANTA
C14: COCINA | D14: ='TIEMPO P.P.'!$F$9/'TIEMPO P.P.'!$H$3 -> 0.016 | F14: =IF(DATOS!$I$11>0,(DATOS!$C$4*'TIEMPO P.P.'!$I$3)/240,0) -> 0 | G14: =D14*F14 -> 0
C15: SERVICIO | D15: ='TIEMPO P.P.'!$F$20/'TIEMPO P.P.'!$H$3 -> 0.033 | F15: =IF(DATOS!$J$11>0,DATOS!$C$5*'TIEMPO P.P.'!$I$14/240,0) -> 0 | G15: =F15*D15 -> 0
C16: PERSONAL EXTRA
C17: COCINA | D17: =D14 -> 0.016 | F17: =IF(DATOS!$I$16>0,DATOS!$C$7*'TIEMPO P.P.'!$I$3/8,0) -> 0 | G17: =D17*F17 -> 0
C18: SERVICIO | D18: =D15 -> 0.033 | F18: =IF(DATOS!$J$16>0,DATOS!$C$8*'TIEMPO P.P.'!$I$14/8,0) -> 0 | G18: =D18*F18 -> 0
C19: CIF | D19: % | F19: TP | G19: =SUM(G20:G22) -> 0
C20: MENSUAL PRES. ó REAL | D20: =('TIEMPO P.P.'!$E$9+'TIEMPO P.P.'!$E$20)/2 -> 9.17% | F20: =IF(DATOS!$F$75=0,DATOS!$F$22,DATOS!$F$75) -> 0 | G20: =D20*$F$20 -> 0
C21: REAL O. PRODUCCIÓN | D21: =D20 -> 9.17% | F21: =DATOS!$F$89/ANALISIS!$D$18 -> 0 | G21: =D21*$F$21 -> 0
G22: 0
D23: COSTO UNIT. | G23: =G7+G12+G19 -> $0.24
C26: =PLATOS!F9 -> Duraznos en almibar
D27: Q- gramos | F27: C. gramos | G27: Costo Total
C28: INGREDIENTES | G28: =SUM(G29:G29) -> $0.24
C29: Durazno | D29: 0.04 | E29: unidad | F29: ='LISTA DE PRODUCTOS'!$G$78 -> $6.00 | G29: =D29*F29 -> $0.24
C31: MANO DE OBRA | D31: H | F31: C/H | G31: =SUM(G32:G37) -> 0
C32: PERSONAL PLANTA
C33: COCINA | D33: ='TIEMPO P.P.'!$F$9/'TIEMPO P.P.'!$H$3 -> 0.016 | F33: =IF(DATOS!$I$11>0,(DATOS!$C$4*'TIEMPO P.P.'!$I$3)/240,0) -> 0 | G33: =D33*F33 -> 0
C34: SERVICIO | D34: ='TIEMPO P.P.'!$F$20/'TIEMPO P.P.'!$H$3 -> 0.033 | F34: =IF(DATOS!$J$11>0,DATOS!$C$5*'TIEMPO P.P.'!$I$14/240,0) -> 0 | G34: =F34*D34 -> 0
C35: PERSONAL EXTRA
C36: COCINA | D36: =D33 -> 0.016 | F36: =IF(DATOS!$I$16>0,DATOS!$C$7*'TIEMPO P.P.'!$I$3/8,0) -> 0 | G36: =D36*F36 -> 0
C37: SERVICIO | D37: =D34 -> 0.033 | F37: =IF(DATOS!$J$16>0,DATOS!$C$8*'TIEMPO P.P.'!$I$14/8,0) -> 0 | G37: =D37*F37 -> 0
C38: CIF | D38: % | F38: TP | G38: =SUM(G39:G41) -> 0
C39: MENSUAL PRES. ó REAL | D39: =('TIEMPO P.P.'!$E$9+'TIEMPO P.P.'!$E$20)/2 -> 9.17% | F39: =IF(DATOS!$F$75=0,DATOS!$F$22,DATOS!$F$75) -> 0 | G39: =D39*$F$20 -> 0
C40: REAL O. PRODUCCIÓN | D40: =D39 -> 9.17% | F40: =DATOS!$F$89/ANALISIS!$D$18 -> 0 | G40: =D40*$F$21 -> 0
G41: =D41*F41 -> 0
D42: COSTO UNIT. | G42: =G28+G31+G38 -> $0.24
C46: =PLATOS!F10 -> Ensalada de frutas
D47: Q- gramos | F47: C. gramos | G47: Costo Total
C48: INGREDIENTES | G48: =SUM(G49:G61) -> $0.14
C49: platano | D49: 36.36 | E49: gramos | F49: ='LISTA DE PRODUCTOS'!$G$91 -> 0
C50: piña | D50: 36.36 | E50: gramos | F50: ='LISTA DE PRODUCTOS'!$G$90 -> 0
C51: manzana | D51: 36.36 | E51: gramos | F51: ='LISTA DE PRODUCTOS'!$G$84 -> 0
C52: uvas | D52: 36.36 | E52: gramos | F52: ='LISTA DE PRODUCTOS'!$G$95 -> 0
C53: frutilla | D53: 36.36 | E53: gramos | F53: ='LISTA DE PRODUCTOS'!$G$79 -> 0
C54: sandia | D54: 36.36 | E54: gramos | F54: ='LISTA DE PRODUCTOS'!G92 -> 0
C55: papaya | D55: 36.36 | E55: gramos | F55: ='LISTA DE PRODUCTOS'!G89 -> 0
C56: naranja | D56: 18.18 | E56: gramos | F56: ='LISTA DE PRODUCTOS'!G46 -> 0
C57: cola fanta | D57: 27.27 | E57: gramos | F57: ='LISTA DE PRODUCTOS'!G24 -> $0.00
C58: vainilla | D58: 0.5 | E58: gramos | F58: ='LISTA DE PRODUCTOS'!G96 -> 0
C59: crema de leche | D59: 18.18 | E59: gramos | F59: ='LISTA DE PRODUCTOS'!$G$77 -> 0 | G59: =D59*F59 -> 0
C60: queso | D60: 0.05 | E60: unidad | F60: ='LISTA DE PRODUCTOS'!G56 -> $2.80 | G60: $0.14
C61: azucar | D61: 27.27 | E61: gramos | F61: ='LISTA DE PRODUCTOS'!$G$72 -> 0 | G61: 0
C63: MANO DE OBRA | D63: H | F63: C/H | G63: =SUM(G64:G69) -> 0
C64: PERSONAL PLANTA
C65: COCINA | D65: ='TIEMPO P.P.'!$F$9/'TIEMPO P.P.'!$H$3 -> 0.016 | F65: =IF(DATOS!$I$11>0,(DATOS!$C$4*'TIEMPO P.P.'!$I$3)/240,0) -> 0 | G65: =D65*F65 -> 0
C66: SERVICIO | D66: ='TIEMPO P.P.'!$F$20/'TIEMPO P.P.'!$H$3 -> 0.033 | F66: =IF(DATOS!$J$11>0,DATOS!$C$5*'TIEMPO P.P.'!$I$14/240,0) -> 0 | G66: =F66*D66 -> 0
C67: PERSONAL EXTRA
C68: COCINA | D68: =D65 -> 0.016 | F68: =IF(DATOS!$I$16>0,DATOS!$C$7*'TIEMPO P.P.'!$I$3/8,0) -> 0 | G68: =D68*F68 -> 0
C69: SERVICIO | D69: =D66 -> 0.033 | F69: =IF(DATOS!$J$16>0,DATOS!$C$8*'TIEMPO P.P.'!$I$14/8,0) -> 0 | G69: =D69*F69 -> 0
C70: CIF | D70: % | F70: TP | G70: =SUM(G71:G73) -> 0
C71: MENSUAL PRES. ó REAL | D71: =('TIEMPO P.P.'!$E$9+'TIEMPO P.P.'!$E$20)/2 -> 9.17% | F71: =IF(DATOS!$F$75=0,DATOS!$F$22,DATOS!$F$75) -> 0 | G71: =D71*$F$20 -> 0
C72: REAL O. PRODUCCIÓN | D72: =D71 -> 9.17% | F72: =DATOS!$F$89/ANALISIS!$D$18 -> 0 | G72: =D72*$F$21 -> 0
G73: =D73*F73 -> 0
D74: COSTO UNIT. | G74: =G48+G63+G70 -> $0.14
C77: =PLATOS!F11 -> Frutillas con crema
D78: Q- gramos | F78: C. gramos | G78: Costo Total
C79: INGREDIENTES | G79: =SUM(G80:G82) -> 0
C80: Frutilla | D80: 136.37 | E80: gramos | F80: ='LISTA DE PRODUCTOS'!G79 -> 0 | G80: =D80*F80 -> 0
C81: crema de leche | D81: 18.18 | E81: gramos | F81: ='LISTA DE PRODUCTOS'!G77 -> 0 | G81: 0
C82: azucar | D82: 27.27 | E82: gramos | F82: ='LISTA DE PRODUCTOS'!$G$72 -> 0 | G82: 0
C84: MANO DE OBRA | D84: H | F84: C/H | G84: =SUM(G85:G90) -> 0
C85: PERSONAL PLANTA
C86: COCINA | D86: ='TIEMPO P.P.'!$F$9/'TIEMPO P.P.'!$H$3 -> 0.016 | F86: =IF(DATOS!$I$11>0,(DATOS!$C$4*'TIEMPO P.P.'!$I$3)/240,0) -> 0 | G86: =D86*F86 -> 0
C87: SERVICIO | D87: ='TIEMPO P.P.'!$F$20/'TIEMPO P.P.'!$H$3 -> 0.033 | F87: =IF(DATOS!$J$11>0,DATOS!$C$5*'TIEMPO P.P.'!$I$14/240,0) -> 0 | G87: =F87*D87 -> 0
C88: PERSONAL EXTRA
C89: COCINA | D89: =D86 -> 0.016 | F89: =IF(DATOS!$I$16>0,DATOS!$C$7*'TIEMPO P.P.'!$I$3/8,0) -> 0 | G89: =D89*F89 -> 0
C90: SERVICIO | D90: =D87 -> 0.033 | F90: =IF(DATOS!$J$16>0,DATOS!$C$8*'TIEMPO P.P.'!$I$14/8,0) -> 0 | G90: =D90*F90 -> 0
C91: CIF | D91: % | F91: TP | G91: =SUM(G92:G94) -> 0
C92: MENSUAL PRES. ó REAL | D92: =('TIEMPO P.P.'!$E$9+'TIEMPO P.P.'!$E$20)/2 -> 9.17% | F92: =IF(DATOS!$F$75=0,DATOS!$F$22,DATOS!$F$75) -> 0 | G92: =D92*$F$20 -> 0
C93: REAL O. PRODUCCIÓN | D93: =D92 -> 9.17% | F93: =DATOS!$F$89/ANALISIS!$D$18 -> 0 | G93: =D93*$F$21 -> 0
G94: =D94*F94 -> 0
D95: COSTO UNIT. | G95: =G79+G84+G91 -> 0
C99: =PLATOS!F12 -> Frutillas en almibar
D100: Q- gramos | F100: C. gramos | G100: Costo Total
C101: INGREDIENTES | G101: =SUM(G102:G105) -> 0
C102: Frutilla | D102: 136.37 | E102: gramos | F102: ='LISTA DE PRODUCTOS'!G79 -> 0 | G102: =D102*F102 -> 0
C103: azucar | D103: 27.27 | E103: gramos | F103: ='LISTA DE PRODUCTOS'!$G$72 -> 0 | G103: 0
C104: canela | D104: 0.1 | E104: gramos | F104: ='LISTA DE PRODUCTOS'!G73 -> 0 | G104: 0
C105: clavo de olor | D105: 0.05 | E105: gramos | F105: ='LISTA DE PRODUCTOS'!G76 -> 0 | G105: 0
C107: MANO DE OBRA | D107: H | F107: C/H | G107: =SUM(G108:G113) -> 0
C108: PERSONAL PLANTA
C109: COCINA | D109: ='TIEMPO P.P.'!$F$9/'TIEMPO P.P.'!$H$3 -> 0.016 | F109: =IF(DATOS!$I$11>0,(DATOS!$C$4*'TIEMPO P.P.'!$I$3)/240,0) -> 0 | G109: =D109*F109 -> 0
C110: SERVICIO | D110: ='TIEMPO P.P.'!$F$20/'TIEMPO P.P.'!$H$3 -> 0.033 | F110: =IF(DATOS!$J$11>0,DATOS!$C$5*'TIEMPO P.P.'!$I$14/240,0) -> 0 | G110: =F110*D110 -> 0
C111: PERSONAL EXTRA
C112: COCINA | D112: =D109 -> 0.016 | F112: =IF(DATOS!$I$16>0,DATOS!$C$7*'TIEMPO P.P.'!$I$3/8,0) -> 0 | G112: =D112*F112 -> 0
C113: SERVICIO | D113: =D110 -> 0.033 | F113: =IF(DATOS!$J$16>0,DATOS!$C$8*'TIEMPO P.P.'!$I$14/8,0) -> 0 | G113: =D113*F113 -> 0
C114: CIF | D114: % | F114: TP | G114: =SUM(G115:G117) -> 0
C115: MENSUAL PRES. ó REAL | D115: =('TIEMPO P.P.'!$E$9+'TIEMPO P.P.'!$E$20)/2 -> 9.17% | F115: =IF(DATOS!$F$75=0,DATOS!$F$22,DATOS!$F$75) -> 0 | G115: =D115*$F$20 -> 0
C116: REAL O. PRODUCCIÓN | D116: =D115 -> 9.17% | F116: =DATOS!$F$89/ANALISIS!$D$18 -> 0 | G116: =D116*$F$21 -> 0
G117: =D117*F117 -> 0
D118: COSTO UNIT. | G118: =G101+G107+G114 -> 0
C121: =PLATOS!F13 -> Gelatina
D122: Q- gramos | F122: C. gramos | G122: Costo Total
C123: INGREDIENTES | G123: =SUM(G124:G130) -> $54.54
C124: gelatina | D124: 22.73 | E124: gramos | F124: ='LISTA DE PRODUCTOS'!G80 -> 0
C125: azucar | D125: 27.27 | E125: gramos | F125: ='LISTA DE PRODUCTOS'!$G$72 -> 0 | G125: =D125*F125 -> 0
C126: manzanas | D126: 9.09 | E126: gramos | F126: ='LISTA DE PRODUCTOS'!G84 -> 0 | G126: 0
C127: durazno | D127: 9.09 | E127: gramos | F127: ='LISTA DE PRODUCTOS'!G78 -> $6.00 | G127: $54.54
C128: uvas | D128: 9.09 | E128: gramos | F128: ='LISTA DE PRODUCTOS'!G95 -> 0 | G128: 0
C129: frutilla | D129: 9.09 | E129: gramos | F129: ='LISTA DE PRODUCTOS'!G79 -> 0 | G129: 0
C130: crema de leche | D130: 9.09 | E130: gramos | F130: ='LISTA DE PRODUCTOS'!G77 -> 0
C132: MANO DE OBRA | D132: H | F132: C/H | G132: =SUM(G133:G138) -> 0
C133: PERSONAL PLANTA
C134: COCINA | D134: ='TIEMPO P.P.'!$F$9/'TIEMPO P.P.'!$H$3 -> 0.016 | F134: =IF(DATOS!$I$11>0,(DATOS!$C$4*'TIEMPO P.P.'!$I$3)/240,0) -> 0 | G134: =D134*F134 -> 0
C135: SERVICIO | D135: ='TIEMPO P.P.'!$F$20/'TIEMPO P.P.'!$H$3 -> 0.033 | F135: =IF(DATOS!$J$11>0,DATOS!$C$5*'TIEMPO P.P.'!$I$14/240,0) -> 0 | G135: =F135*D135 -> 0
C136: PERSONAL EXTRA
C137: COCINA | D137: =D134 -> 0.016 | F137: =IF(DATOS!$I$16>0,DATOS!$C$7*'TIEMPO P.P.'!$I$3/8,0) -> 0 | G137: =D137*F137 -> 0
C138: SERVICIO | D138: =D135 -> 0.033 | F138: =IF(DATOS!$J$16>0,DATOS!$C$8*'TIEMPO P.P.'!$I$14/8,0) -> 0 | G138: =D138*F138 -> 0
C139: CIF | D139: % | F139: TP | G139: =SUM(G140:G142) -> 0
C140: MENSUAL PRES. ó REAL | D140: =('TIEMPO P.P.'!$E$9+'TIEMPO P.P.'!$E$20)/2 -> 9.17% | F140: =IF(DATOS!$F$75=0,DATOS!$F$22,DATOS!$F$75) -> 0 | G140: =D140*$F$20 -> 0
C141: REAL O. PRODUCCIÓN | D141: =D140 -> 9.17% | F141: =DATOS!$F$89/ANALISIS!$D$18 -> 0 | G141: =D141*$F$21 -> 0
G142: =D142*F142 -> 0
D143: COSTO UNIT. | G143: =G123+G132+G139 -> $54.54
C147: =PLATOS!F14 -> Helados con torta
D148: Q- gramos | F148: C. gramos | G148: Costo Total
C149: INGREDIENTES | G149: =SUM(G150:G153) -> $0.23
C150: torta | D150: 0.06666666667 | E150: unidad | F150: ='LISTA DE PRODUCTOS'!G94 -> $3.50 | G150: =D150*F150 -> $0.233
C151: mora | D151: 45.46 | E151: gramos | F151: ='LISTA DE PRODUCTOS'!G86 -> 0 | G151: 0
C152: azucar | D152: 27.27 | E152: gramos | F152: ='LISTA DE PRODUCTOS'!$G$72 -> 0 | G152: 0
C153: crema de leche | D153: 18.18 | E153: gramos | F153: ='LISTA DE PRODUCTOS'!G77 -> 0 | G153: 0
C155: MANO DE OBRA | D155: H | F155: C/H | G155: =SUM(G156:G161) -> 0
C156: PERSONAL PLANTA
C157: COCINA | D157: ='TIEMPO P.P.'!$F$9/'TIEMPO P.P.'!$H$3 -> 0.016 | F157: =IF(DATOS!$I$11>0,(DATOS!$C$4*'TIEMPO P.P.'!$I$3)/240,0) -> 0 | G157: =D157*F157 -> 0
C158: SERVICIO | D158: ='TIEMPO P.P.'!$F$20/'TIEMPO P.P.'!$H$3 -> 0.033 | F158: =IF(DATOS!$J$11>0,DATOS!$C$5*'TIEMPO P.P.'!$I$14/240,0) -> 0 | G158: =F158*D158 -> 0
C159: PERSONAL EXTRA
C160: COCINA | D160: =D157 -> 0.016 | F160: =IF(DATOS!$I$16>0,DATOS!$C$7*'TIEMPO P.P.'!$I$3/8,0) -> 0 | G160: =D160*F160 -> 0
C161: SERVICIO | D161: =D158 -> 0.033 | F161: =IF(DATOS!$J$16>0,DATOS!$C$8*'TIEMPO P.P.'!$I$14/8,0) -> 0 | G161: =D161*F161 -> 0
C162: CIF | D162: % | F162: TP | G162: =SUM(G163:G165) -> 0
C163: MENSUAL PRES. ó REAL | D163: =('TIEMPO P.P.'!$E$9+'TIEMPO P.P.'!$E$20)/2 -> 9.17% | F163: =IF(DATOS!$F$75=0,DATOS!$F$22,DATOS!$F$75) -> 0 | G163: =D163*$F$20 -> 0
C164: REAL O. PRODUCCIÓN | D164: =D163 -> 9.17% | F164: =DATOS!$F$89/ANALISIS!$D$18 -> 0 | G164: =D164*$F$21 -> 0
G165: =D165*F165 -> 0
D166: COSTO UNIT. | G166: =G149+G155+G162 -> $0.23
C169: =PLATOS!F15 -> COSTO-POSTRE'!C155
D170: Q- gramos | F170: C. gramos | G170: Costo Total
C171: INGREDIENTES | G171: =SUM(G172:G178) -> 0
G172: =D172*F172 -> 0
G173: =D173*F173 -> 0
G174: 0
G175: 0
G176: 0
G177: 0
G178: 0
C179: MANO DE OBRA | D179: H | F179: C/H | G179: =SUM(G180:G185) -> 0
C180: PERSONAL PLANTA
C181: COCINA | D181: ='TIEMPO P.P.'!$F$9/'TIEMPO P.P.'!$H$3 -> 0.016 | F181: =IF(DATOS!$I$11>0,(DATOS!$C$4*'TIEMPO P.P.'!$I$3)/240,0) -> 0 | G181: =D181*F181 -> 0
C182: SERVICIO | D182: ='TIEMPO P.P.'!$F$20/'TIEMPO P.P.'!$H$3 -> 0.033 | F182: =IF(DATOS!$J$11>0,DATOS!$C$5*'TIEMPO P.P.'!$I$14/240,0) -> 0 | G182: =F182*D182 -> 0
C183: PERSONAL EXTRA
C184: COCINA | D184: =D181 -> 0.016 | F184: =IF(DATOS!$I$16>0,DATOS!$C$7*'TIEMPO P.P.'!$I$3/8,0) -> 0 | G184: =D184*F184 -> 0
C185: SERVICIO | D185: =D182 -> 0.033 | F185: =IF(DATOS!$J$16>0,DATOS!$C$8*'TIEMPO P.P.'!$I$14/8,0) -> 0 | G185: =D185*F185 -> 0
C186: CIF | D186: % | F186: TP | G186: =SUM(G187:G189) -> 0
C187: MENSUAL PRES. ó REAL | D187: =('TIEMPO P.P.'!$E$9+'TIEMPO P.P.'!$E$20)/2 -> 9.17% | F187: =IF(DATOS!$F$75=0,DATOS!$F$22,DATOS!$F$75) -> 0 | G187: =D187*$F$20 -> 0
C188: REAL O. PRODUCCIÓN | D188: =D187 -> 9.17% | F188: =DATOS!$F$89/ANALISIS!$D$18 -> 0 | G188: =D188*$F$21 -> 0
G189: =D189*F189 -> 0
D190: COSTO UNIT. | G190: =G171+G179+G186 -> 0
C194: =PLATOS!F16 -> COSTO-POSTRE'!C177
D195: Q- gramos | F195: C. gramos | G195: Costo Total
C196: INGREDIENTES | G196: =SUM(G197:G203) -> 0
G197: =D197*F197 -> 0
G198: =D198*F198 -> 0
G199: 0
G200: 0
G201: 0
G202: 0
G203: 0
C204: MANO DE OBRA | D204: H | F204: C/H | G204: =SUM(G205:G210) -> 0
C205: PERSONAL PLANTA
C206: COCINA | D206: ='TIEMPO P.P.'!$F$9/'TIEMPO P.P.'!$H$3 -> 0.016 | F206: =IF(DATOS!$I$11>0,(DATOS!$C$4*'TIEMPO P.P.'!$I$3)/240,0) -> 0 | G206: =D206*F206 -> 0
C207: SERVICIO | D207: ='TIEMPO P.P.'!$F$20/'TIEMPO P.P.'!$H$3 -> 0.033 | F207: =IF(DATOS!$J$11>0,DATOS!$C$5*'TIEMPO P.P.'!$I$14/240,0) -> 0 | G207: =F207*D207 -> 0
C208: PERSONAL EXTRA
C209: COCINA | D209: =D206 -> 0.016 | F209: =IF(DATOS!$I$16>0,DATOS!$C$7*'TIEMPO P.P.'!$I$3/8,0) -> 0 | G209: =D209*F209 -> 0
C210: SERVICIO | D210: =D207 -> 0.033 | F210: =IF(DATOS!$J$16>0,DATOS!$C$8*'TIEMPO P.P.'!$I$14/8,0) -> 0 | G210: =D210*F210 -> 0
C211: CIF | D211: % | F211: TP | G211: =SUM(G212:G214) -> 0
C212: MENSUAL PRES. ó REAL | D212: =('TIEMPO P.P.'!$E$9+'TIEMPO P.P.'!$E$20)/2 -> 9.17% | F212: =IF(DATOS!$F$75=0,DATOS!$F$22,DATOS!$F$75) -> 0 | G212: =D212*$F$20 -> 0
C213: REAL O. PRODUCCIÓN | D213: =D212 -> 9.17% | F213: =DATOS!$F$89/ANALISIS!$D$18 -> 0 | G213: =D213*$F$21 -> 0
G214: =D214*F214 -> 0
D215: COSTO UNIT. | G215: =G196+G204+G211 -> 0
C218: =PLATOS!F17 -> COSTO-POSTRE'!C198
D219: Q- gramos | F219: C. gramos | G219: Costo Total
C220: INGREDIENTES | G220: =SUM(G221:G227) -> 0
G221: =D221*F221 -> 0
G222: =D222*F222 -> 0
G223: 0
G224: 0
G225: 0
G226: 0
G227: 0
C228: MANO DE OBRA | D228: H | F228: C/H | G228: =SUM(G229:G234) -> 0
C229: PERSONAL PLANTA
C230: COCINA | D230: ='TIEMPO P.P.'!$F$9/'TIEMPO P.P.'!$H$3 -> 0.016 | F230: =IF(DATOS!$I$11>0,(DATOS!$C$4*'TIEMPO P.P.'!$I$3)/240,0) -> 0 | G230: =D230*F230 -> 0
C231: SERVICIO | D231: ='TIEMPO P.P.'!$F$20/'TIEMPO P.P.'!$H$3 -> 0.033 | F231: =IF(DATOS!$J$11>0,DATOS!$C$5*'TIEMPO P.P.'!$I$14/240,0) -> 0 | G231: =F231*D231 -> 0
... 74 more rows

Sheet COSTO-ACOMPAÑAMIENTO (hidden)
C1: COSTO DE LOS PLATOS - caminos de herradura
C3: A C O M P A Ñ A M I E N T O
C5: =PLATOS!G8 -> Canguil
D6: Q- gramos | F6: C. gramos | G6: Costo Total
C7: INGREDIENTES | G7: =SUM(G8:G10) -> $0.0031
C8: canguil | D8: 22.73 | E8: gramos | F8: ='LISTA DE PRODUCTOS'!$G$74 -> 0 | G8: =D8*F8 -> 0
C9: aceite | D9: 4.54 | E9: gramos | F9: ='LISTA DE PRODUCTOS'!$G$3 -> $0.0007 | G9: =D9*F9 -> $0.0030
C10: sal | D10: 0.05 | E10: gramos | F10: ='LISTA DE PRODUCTOS'!$G$59 -> $0.0015 | G10: $0.0001
C12: MANO DE OBRA | D12: H | F12: C/H | G12: =SUM(G13:G18) -> 0
C13: PERSONAL PLANTA
C14: COCINA | D14: ='TIEMPO P.P.'!$F$5/'TIEMPO P.P.'!$H$3 -> 0.004 | F14: =IF(DATOS!$I$11>0,(DATOS!$C$4*'TIEMPO P.P.'!$I$3)/240,0) -> 0 | G14: =D14*F14 -> 0
C15: SERVICIO | D15: ='TIEMPO P.P.'!$F$16/'TIEMPO P.P.'!$H$3 -> 0.025 | F15: =IF(DATOS!$J$11>0,DATOS!$C$5*'TIEMPO P.P.'!$I$14/240,0) -> 0 | G15: =F15*D15 -> 0
C16: PERSONAL EXTRA
C17: COCINA | D17: =D14 -> 0.004 | F17: =IF(DATOS!$I$16>0,DATOS!$C$7*'TIEMPO P.P.'!$I$3/8,0) -> 0 | G17: =D17*F17 -> 0
C18: SERVICIO | D18: =D15 -> 0.025 | F18: =IF(DATOS!$J$16>0,DATOS!$C$8*'TIEMPO P.P.'!$I$14/8,0) -> 0 | G18: =D18*F18 -> 0
C19: CIF | D19: % | F19: TP | G19: =SUM(G20:G22) -> 0
C20: MENSUAL PRES. ó REAL | D20: =('TIEMPO P.P.'!$E$5+'TIEMPO P.P.'!$E$16)/2 -> 5.42% | F20: =IF(DATOS!$F$75=0,DATOS!$F$22,DATOS!$F$75) -> 0 | G20: =D20*$F$20 -> 0
C21: REAL O. PRODUCCIÓN | D21: =D20 -> 5.42% | F21: =DATOS!$F$89/ANALISIS!$D$18 -> 0 | G21: =D21*$F$21 -> 0
G22: 0
D23: COSTO UNIT. | G23: =G7+G12+G19 -> $0.0031
C26: =PLATOS!G9 -> Canguil con Chifles
D27: Q- gramos | F27: C. gramos | G27: Costo Total
C28: INGREDIENTES | G28: =SUM(G29:G32) -> $0.0031
C29: canguil | D29: 22.73 | E29: gramos | F29: ='LISTA DE PRODUCTOS'!$G$74 -> 0 | G29: =D29*F29 -> 0
C30: aceite | D30: 4.54 | E30: gramos | F30: ='LISTA DE PRODUCTOS'!$G$3 -> $0.0007 | G30: =D30*F30 -> $0.0030
C31: sal | D31: 0.05 | E31: gramos | F31: ='LISTA DE PRODUCTOS'!$G$59 -> $0.0015 | G31: $0.0001
C32: Verde | D32: 18.18 | E32: gramos | F32: ='LISTA DE PRODUCTOS'!G97 -> 0 | G32: 0
C34: MANO DE OBRA | D34: H | F34: C/H | G34: =SUM(G35:G40) -> 0
C35: PERSONAL PLANTA
C36: COCINA | D36: ='TIEMPO P.P.'!$F$5/'TIEMPO P.P.'!$H$3 -> 0.004 | F36: =IF(DATOS!$I$11>0,(DATOS!$C$4*'TIEMPO P.P.'!$I$3)/240,0) -> 0 | G36: =D36*F36 -> 0
C37: SERVICIO | D37: ='TIEMPO P.P.'!$F$16/'TIEMPO P.P.'!$H$3 -> 0.025 | F37: =IF(DATOS!$J$11>0,DATOS!$C$5*'TIEMPO P.P.'!$I$14/240,0) -> 0 | G37: =F37*D37 -> 0
C38: PERSONAL EXTRA
C39: COCINA | D39: =D36 -> 0.004 | F39: =IF(DATOS!$I$16>0,DATOS!$C$7*'TIEMPO P.P.'!$I$3/8,0) -> 0 | G39: =D39*F39 -> 0
C40: SERVICIO | D40: =D37 -> 0.025 | F40: =IF(DATOS!$J$16>0,DATOS!$C$8*'TIEMPO P.P.'!$I$14/8,0) -> 0 | G40: =D40*F40 -> 0
C41: CIF | D41: % | F41: TP | G41: =SUM(G42:G44) -> 0
C42: MENSUAL PRES. ó REAL | D42: =('TIEMPO P.P.'!$E$5+'TIEMPO P.P.'!$E$16)/2 -> 5.42% | F42: =IF(DATOS!$F$75=0,DATOS!$F$22,DATOS!$F$75) -> 0 | G42: =D42*$F$20 -> 0
C43: REAL O. PRODUCCIÓN | D43: =D42 -> 5.42% | F43: =DATOS!$F$89/ANALISIS!$D$18 -> 0 | G43: =D43*$F$21 -> 0
G44: =D44*F44 -> 0
D45: COSTO UNIT. | G45: =G28+G34+G41 -> $0.0031
C49: =PLATOS!G10 -> Rodajas de pan con mantequilla
D50: Q- gramos | F50: C. gramos | G50: Costo Total
C51: INGREDIENTES | G51: =SUM(G52:G53) -> $0.0721
C52: Pan | D52: 0.5 | E52: unidad | F52: ='LISTA DE PRODUCTOS'!G88 -> $0.1200 | G52: =D52*F52 -> $0.0600
C53: Mantequilla | D53: 10 | E53: gramos | F53: ='LISTA DE PRODUCTOS'!G42 -> $0.0012 | G53: $0.0121
C55: MANO DE OBRA | D55: H | F55: C/H | G55: =SUM(G56:G61) -> 0
C56: PERSONAL PLANTA
C57: COCINA | D57: ='TIEMPO P.P.'!$F$5/'TIEMPO P.P.'!$H$3 -> 0.004 | F57: =IF(DATOS!$I$11>0,(DATOS!$C$4*'TIEMPO P.P.'!$I$3)/240,0) -> 0 | G57: =D57*F57 -> 0
C58: SERVICIO | D58: ='TIEMPO P.P.'!$F$16/'TIEMPO P.P.'!$H$3 -> 0.025 | F58: =IF(DATOS!$J$11>0,DATOS!$C$5*'TIEMPO P.P.'!$I$14/240,0) -> 0 | G58: =F58*D58 -> 0
C59: PERSONAL EXTRA
C60: COCINA | D60: =D57 -> 0.004 | F60: =IF(DATOS!$I$16>0,DATOS!$C$7*'TIEMPO P.P.'!$I$3/8,0) -> 0 | G60: =D60*F60 -> 0
C61: SERVICIO | D61: =D58 -> 0.025 | F61: =IF(DATOS!$J$16>0,DATOS!$C$8*'TIEMPO P.P.'!$I$14/8,0) -> 0 | G61: =D61*F61 -> 0
C62: CIF | D62: % | F62: TP | G62: =SUM(G63:G65) -> 0
C63: MENSUAL PRES. ó REAL | D63: =('TIEMPO P.P.'!$E$5+'TIEMPO P.P.'!$E$16)/2 -> 5.42% | F63: =IF(DATOS!$F$75=0,DATOS!$F$22,DATOS!$F$75) -> 0 | G63: =D63*$F$20 -> 0
C64: REAL O. PRODUCCIÓN | D64: =D63 -> 5.42% | F64: =DATOS!$F$89/ANALISIS!$D$18 -> 0 | G64: =D64*$F$21 -> 0
G65: =D65*F65 -> 0
D66: COSTO UNIT. | G66: =G51+G55+G62 -> $0.0721
C69: =PLATOS!G11 -> COSTO-ACOMPAÑAMIENTO'!C69
D70: Q- gramos | F70: C. gramos | G70: Costo Total
C71: INGREDIENTES | G71: =SUM(G72:G78) -> 0
G72: =D72*F72 -> 0
G73: =D73*F73 -> 0
G74: 0
G75: 0
G76: 0
G77: 0
G78: 0
C79: MANO DE OBRA | D79: H | F79: C/H | G79: =SUM(G80:G85) -> 0
C80: PERSONAL PLANTA
C81: COCINA | D81: ='TIEMPO P.P.'!$F$5/'TIEMPO P.P.'!$H$3 -> 0.004 | F81: =IF(DATOS!$I$11>0,(DATOS!$C$4*'TIEMPO P.P.'!$I$3)/240,0) -> 0 | G81: =D81*F81 -> 0
C82: SERVICIO | D82: ='TIEMPO P.P.'!$F$16/'TIEMPO P.P.'!$H$3 -> 0.025 | F82: =IF(DATOS!$J$11>0,DATOS!$C$5*'TIEMPO P.P.'!$I$14/240,0) -> 0 | G82: =F82*D82 -> 0
C83: PERSONAL EXTRA
C84: COCINA | D84: =D81 -> 0.004 | F84: =IF(DATOS!$I$16>0,DATOS!$C$7*'TIEMPO P.P.'!$I$3/8,0) -> 0 | G84: =D84*F84 -> 0
C85: SERVICIO | D85: =D82 -> 0.025 | F85: =IF(DATOS!$J$16>0,DATOS!$C$8*'TIEMPO P.P.'!$I$14/8,0) -> 0 | G85: =D85*F85 -> 0
C86: CIF | D86: % | F86: TP | G86: =SUM(G87:G89) -> 0
C87: MENSUAL PRES. ó REAL | D87: =('TIEMPO P.P.'!$E$5+'TIEMPO P.P.'!$E$16)/2 -> 5.42% | F87: =IF(DATOS!$F$75=0,DATOS!$F$22,DATOS!$F$75) -> 0 | G87: =D87*$F$20 -> 0
C88: REAL O. PRODUCCIÓN | D88: =D87 -> 5.42% | F88: =DATOS!$F$89/ANALISIS!$D$18 -> 0 | G88: =D88*$F$21 -> 0
G89: =D89*F89 -> 0
D90: COSTO UNIT. | G90: =G71+G79+G86 -> 0
C94: =PLATOS!G12 -> COSTO-ACOMPAÑAMIENTO'!C91
D95: Q- gramos | F95: C. gramos | G95: Costo Total
C96: INGREDIENTES | G96: =SUM(G97:G103) -> 0
G97: =D97*F97 -> 0
G98: =D98*F98 -> 0
G99: 0
G100: 0
G101: 0
G102: 0
G103: 0
C104: MANO DE OBRA | D104: H | F104: C/H | G104: =SUM(G105:G110) -> 0
C105: PERSONAL PLANTA
C106: COCINA | D106: ='TIEMPO P.P.'!$F$5/'TIEMPO P.P.'!$H$3 -> 0.004 | F106: =IF(DATOS!$I$11>0,(DATOS!$C$4*'TIEMPO P.P.'!$I$3)/240,0) -> 0 | G106: =D106*F106 -> 0
C107: SERVICIO | D107: ='TIEMPO P.P.'!$F$16/'TIEMPO P.P.'!$H$3 -> 0.025 | F107: =IF(DATOS!$J$11>0,DATOS!$C$5*'TIEMPO P.P.'!$I$14/240,0) -> 0 | G107: =F107*D107 -> 0
C108: PERSONAL EXTRA
C109: COCINA | D109: =D106 -> 0.004 | F109: =IF(DATOS!$I$16>0,DATOS!$C$7*'TIEMPO P.P.'!$I$3/8,0) -> 0 | G109: =D109*F109 -> 0
C110: SERVICIO | D110: =D107 -> 0.025 | F110: =IF(DATOS!$J$16>0,DATOS!$C$8*'TIEMPO P.P.'!$I$14/8,0) -> 0 | G110: =D110*F110 -> 0
C111: CIF | D111: % | F111: TP | G111: =SUM(G112:G114) -> 0
C112: MENSUAL PRES. ó REAL | D112: =('TIEMPO P.P.'!$E$5+'TIEMPO P.P.'!$E$16)/2 -> 5.42% | F112: =IF(DATOS!$F$75=0,DATOS!$F$22,DATOS!$F$75) -> 0 | G112: =D112*$F$20 -> 0
C113: REAL O. PRODUCCIÓN | D113: =D112 -> 5.42% | F113: =DATOS!$F$89/ANALISIS!$D$18 -> 0 | G113: =D113*$F$21 -> 0
G114: =D114*F114 -> 0
D115: COSTO UNIT. | G115: =G96+G104+G111 -> 0
C118: =PLATOS!G13 -> COSTO-ACOMPAÑAMIENTO'!C112
D119: Q- gramos | F119: C. gramos | G119: Costo Total
C120: INGREDIENTES | G120: =SUM(G121:G127) -> 0
G121: =D121*F121 -> 0
G122: =D122*F122 -> 0
G123: 0
G124: 0
G125: 0
G126: 0
G127: 0
C128: MANO DE OBRA | D128: H | F128: C/H | G128: =SUM(G129:G134) -> 0
C129: PERSONAL PLANTA
C130: COCINA | D130: ='TIEMPO P.P.'!$F$5/'TIEMPO P.P.'!$H$3 -> 0.004 | F130: =IF(DATOS!$I$11>0,(DATOS!$C$4*'TIEMPO P.P.'!$I$3)/240,0) -> 0 | G130: =D130*F130 -> 0
C131: SERVICIO | D131: ='TIEMPO P.P.'!$F$16/'TIEMPO P.P.'!$H$3 -> 0.025 | F131: =IF(DATOS!$J$11>0,DATOS!$C$5*'TIEMPO P.P.'!$I$14/240,0) -> 0 | G131: =F131*D131 -> 0
C132: PERSONAL EXTRA
C133: COCINA | D133: =D130 -> 0.004 | F133: =IF(DATOS!$I$16>0,DATOS!$C$7*'TIEMPO P.P.'!$I$3/8,0) -> 0 | G133: =D133*F133 -> 0
C134: SERVICIO | D134: =D131 -> 0.025 | F134: =IF(DATOS!$J$16>0,DATOS!$C$8*'TIEMPO P.P.'!$I$14/8,0) -> 0 | G134: =D134*F134 -> 0
C135: CIF | D135: % | F135: TP | G135: =SUM(G136:G138) -> 0
C136: MENSUAL PRES. ó REAL | D136: =('TIEMPO P.P.'!$E$5+'TIEMPO P.P.'!$E$16)/2 -> 5.42% | F136: =IF(DATOS!$F$75=0,DATOS!$F$22,DATOS!$F$75) -> 0 | G136: =D136*$F$20 -> 0
C137: REAL O. PRODUCCIÓN | D137: =D136 -> 5.42% | F137: =DATOS!$F$89/ANALISIS!$D$18 -> 0 | G137: =D137*$F$21 -> 0
G138: =D138*F138 -> 0
D139: COSTO UNIT. | G139: =G120+G128+G135 -> 0
C143: =PLATOS!G14 -> COSTO-ACOMPAÑAMIENTO'!C134
D144: Q- gramos | F144: C. gramos | G144: Costo Total
C145: INGREDIENTES | G145: =SUM(G146:G152) -> 0
G146: =D146*F146 -> 0
G147: =D147*F147 -> 0
G148: 0
G149: 0
G150: 0
G151: 0
G152: 0
C153: MANO DE OBRA | D153: H | F153: C/H | G153: =SUM(G154:G159) -> 0
C154: PERSONAL PLANTA
C155: COCINA | D155: ='TIEMPO P.P.'!$F$5/'TIEMPO P.P.'!$H$3 -> 0.004 | F155: =IF(DATOS!$I$11>0,(DATOS!$C$4*'TIEMPO P.P.'!$I$3)/240,0) -> 0 | G155: =D155*F155 -> 0
C156: SERVICIO | D156: ='TIEMPO P.P.'!$F$16/'TIEMPO P.P.'!$H$3 -> 0.025 | F156: =IF(DATOS!$J$11>0,DATOS!$C$5*'TIEMPO P.P.'!$I$14/240,0) -> 0 | G156: =F156*D156 -> 0
C157: PERSONAL EXTRA
C158: COCINA | D158: =D155 -> 0.004 | F158: =IF(DATOS!$I$16>0,DATOS!$C$7*'TIEMPO P.P.'!$I$3/8,0) -> 0 | G158: =D158*F158 -> 0
C159: SERVICIO | D159: =D156 -> 0.025 | F159: =IF(DATOS!$J$16>0,DATOS!$C$8*'TIEMPO P.P.'!$I$14/8,0) -> 0 | G159: =D159*F159 -> 0
C160: CIF | D160: % | F160: TP | G160: =SUM(G161:G163) -> 0
C161: MENSUAL PRES. ó REAL | D161: =('TIEMPO P.P.'!$E$5+'TIEMPO P.P.'!$E$16)/2 -> 5.42% | F161: =IF(DATOS!$F$75=0,DATOS!$F$22,DATOS!$F$75) -> 0 | G161: =D161*$F$20 -> 0
C162: REAL O. PRODUCCIÓN | D162: =D161 -> 5.42% | F162: =DATOS!$F$89/ANALISIS!$D$18 -> 0 | G162: =D162*$F$21 -> 0
G163: =D163*F163 -> 0
D164: COSTO UNIT. | G164: =G145+G153+G160 -> 0
C167: =PLATOS!G15 -> COSTO-ACOMPAÑAMIENTO'!C155
D168: Q- gramos | F168: C. gramos | G168: Costo Total
C169: INGREDIENTES | G169: =SUM(G170:G176) -> 0
G170: =D170*F170 -> 0
G171: =D171*F171 -> 0
G172: 0
G173: 0
G174: 0
G175: 0
G176: 0
C177: MANO DE OBRA | D177: H | F177: C/H | G177: =SUM(G178:G183) -> 0
C178: PERSONAL PLANTA
C179: COCINA | D179: ='TIEMPO P.P.'!$F$5/'TIEMPO P.P.'!$H$3 -> 0.004 | F179: =IF(DATOS!$I$11>0,(DATOS!$C$4*'TIEMPO P.P.'!$I$3)/240,0) -> 0 | G179: =D179*F179 -> 0
C180: SERVICIO | D180: ='TIEMPO P.P.'!$F$16/'TIEMPO P.P.'!$H$3 -> 0.025 | F180: =IF(DATOS!$J$11>0,DATOS!$C$5*'TIEMPO P.P.'!$I$14/240,0) -> 0 | G180: =F180*D180 -> 0
C181: PERSONAL EXTRA
C182: COCINA | D182: =D179 -> 0.004 | F182: =IF(DATOS!$I$16>0,DATOS!$C$7*'TIEMPO P.P.'!$I$3/8,0) -> 0 | G182: =D182*F182 -> 0
C183: SERVICIO | D183: =D180 -> 0.025 | F183: =IF(DATOS!$J$16>0,DATOS!$C$8*'TIEMPO P.P.'!$I$14/8,0) -> 0 | G183: =D183*F183 -> 0
C184: CIF | D184: % | F184: TP | G184: =SUM(G185:G187) -> 0
C185: MENSUAL PRES. ó REAL | D185: =('TIEMPO P.P.'!$E$5+'TIEMPO P.P.'!$E$16)/2 -> 5.42% | F185: =IF(DATOS!$F$75=0,DATOS!$F$22,DATOS!$F$75) -> 0 | G185: =D185*$F$20 -> 0
C186: REAL O. PRODUCCIÓN | D186: =D185 -> 5.42% | F186: =DATOS!$F$89/ANALISIS!$D$18 -> 0 | G186: =D186*$F$21 -> 0
G187: =D187*F187 -> 0
D188: COSTO UNIT. | G188: =G169+G177+G184 -> 0
C192: =PLATOS!G16 -> COSTO-ACOMPAÑAMIENTO'!C177
D193: Q- gramos | F193: C. gramos | G193: Costo Total
C194: INGREDIENTES | G194: =SUM(G195:G201) -> 0
G195: =D195*F195 -> 0
G196: =D196*F196 -> 0
G197: 0
G198: 0
G199: 0
G200: 0
G201: 0
C202: MANO DE OBRA | D202: H | F202: C/H | G202: =SUM(G203:G208) -> 0
C203: PERSONAL PLANTA
C204: COCINA | D204: ='TIEMPO P.P.'!$F$5/'TIEMPO P.P.'!$H$3 -> 0.004 | F204: =IF(DATOS!$I$11>0,(DATOS!$C$4*'TIEMPO P.P.'!$I$3)/240,0) -> 0 | G204: =D204*F204 -> 0
C205: SERVICIO | D205: ='TIEMPO P.P.'!$F$16/'TIEMPO P.P.'!$H$3 -> 0.025 | F205: =IF(DATOS!$J$11>0,DATOS!$C$5*'TIEMPO P.P.'!$I$14/240,0) -> 0 | G205: =F205*D205 -> 0
C206: PERSONAL EXTRA
C207: COCINA | D207: =D204 -> 0.004 | F207: =IF(DATOS!$I$16>0,DATOS!$C$7*'TIEMPO P.P.'!$I$3/8,0) -> 0 | G207: =D207*F207 -> 0
C208: SERVICIO | D208: =D205 -> 0.025 | F208: =IF(DATOS!$J$16>0,DATOS!$C$8*'TIEMPO P.P.'!$I$14/8,0) -> 0 | G208: =D208*F208 -> 0
C209: CIF | D209: % | F209: TP | G209: =SUM(G210:G212) -> 0
C210: MENSUAL PRES. ó REAL | D210: =('TIEMPO P.P.'!$E$5+'TIEMPO P.P.'!$E$16)/2 -> 5.42% | F210: =IF(DATOS!$F$75=0,DATOS!$F$22,DATOS!$F$75) -> 0 | G210: =D210*$F$20 -> 0
C211: REAL O. PRODUCCIÓN | D211: =D210 -> 5.42% | F211: =DATOS!$F$89/ANALISIS!$D$18 -> 0 | G211: =D211*$F$21 -> 0
G212: =D212*F212 -> 0
D213: COSTO UNIT. | G213: =G194+G202+G209 -> 0
C216: =PLATOS!G17 -> COSTO-ACOMPAÑAMIENTO'!C198
D217: Q- gramos | F217: C. gramos | G217: Costo Total
C218: INGREDIENTES | G218: =SUM(G219:G225) -> 0
G219: =D219*F219 -> 0
G220: =D220*F220 -> 0
G221: 0
G222: 0
G223: 0
G224: 0
G225: 0
C226: MANO DE OBRA | D226: H | F226: C/H | G226: =SUM(G227:G232) -> 0
C227: PERSONAL PLANTA
... 76 more rows

Sheet LISTA DE PRODUCTOS (hidden)
I1: KILOS | J1: GRAMOS | K1: LIBRAS
A2: VALOR QQ. | B2: PESO | D2: Costo por lbs. o ltrs. | E2: Materia Prima | F2: Cantidad | G2: Costo | I2: 1 | J2: 1000 | K2: 2.2
A3: $30.00 | B3: 100 | C3: litro | D3: =A3/B3 -> $0.30 | E3: aceite | F3: litros | G3: =D3/$L$4 -> $0.00066 | L3: GRAMOS
E4: Acelga | F4: gramo | G4: =D4/$L$4 -> 0 | K4: 1 LIBRA | L4: =J2/K2 -> 454.55
D5: $1.80 | E5: achote | F5: gramo | G5: =D5/$L$4 -> $0.00396
D6: $0.25 | E6: aguacate | F6: unidad | G6: =D6 -> $0.25000
D7: $3.20 | E7: ajinomoto | F7: gramo | G7: =D7/$L$4 -> $0.00704
A8: =[1]M2!$K$10 -> $2.50 | B8: 1 | C8: libra | D8: =A8/B8 -> $2.50 | E8: ajo | F8: gramo | G8: $0.00550
A9: $2.50 | B9: 1 | C9: libra | D9: =A9/B9 -> $2.50 | E9: ajo pepa | F9: gramo | G9: $0.00550 | I9: aceite
D10: $1.00 | E10: apanadura | F10: gramo | G10: $0.00220 | I10: ajo
A11: $0.50 | B11: 1 | C11: libra | D11: =A11/B11 -> $0.50 | E11: apio | F11: gramo | G11: $0.00110 | I11: ajo pepa
D12: $0.28 | E12: arina | F12: gramo | G12: $0.00062 | I12: apio
A13: $33.00 | B13: 100 | C13: libra | D13: =A13/B13 -> $0.33 | E13: arroz | F13: gramo | G13: $0.00073 | I13: arroz
D14: $1.00 | E14: arveja | F14: gramo | G14: $0.00220 | I14: cebolla larga
D15: $3.50 | E15: Camaron | F15: gramo | G15: $0.00770 | I15: cebolla paiteña
D16: $1.60 | E16: carne m olida | F16: gramo | G16: $0.00352 | I16: Champiñones
A17: $1.00 | B17: 1 | C17: libra | D17: =A17/B17 -> $1.00 | E17: cebolla larga | F17: gramo | G17: $0.00220 | I17: cilantro
A18: $20.00 | B18: 30 | C18: libra | D18: =A18/B18 -> $0.67 | E18: cebolla paiteña | F18: gramo | G18: $0.00147 | I18: cola fanta
A19: $14.11 | B19: 5 | C19: libra | D19: =A19/B19 -> $2.82 | E19: Champiñones | F19: gramo | G19: $0.00621 | I19: comino
D20: $1.00 | E20: chochos | F20: gramo | G20: $0.00220 | I20: hierba buena
D21: $1.00 | E21: choclo | F21: gramo | G21: $0.00220 | I21: huevo
E22: chuleta | F22: unidad | G22: 0 | I22: limon grande
A23: $0.50 | B23: 1 | C23: libra | D23: =A23/B23 -> $0.50 | E23: cilantro | F23: gramo | G23: $0.00110 | I23: limon pequeño
A24: $1.70 | B24: 3 | C24: litro | D24: =A24/B24 -> $0.57 | E24: cola fanta | F24: litros | G24: $0.00125 | I24: maggui
D25: $1.80 | E25: color | F25: gramo | G25: $0.00396 | I25: oregano
A26: $1.60 | B26: 1 | C26: libra | D26: =A26/B26 -> $1.60 | E26: comino | F26: gramo | G26: $0.00352 | I26: palillos
E27: Concha | F27: unidad | I27: papas
D28: $1.80 | E28: Cuero | F28: gramo | G28: $0.00396 | I28: perejil
A29: $0.98 | B29: 68 | C29: gramos | D29: =A29/B29 -> $0.01 | E29: Esparragos | F29: gramo | G29: $0.00003 | I29: pimienta dulce
A30: $0.50 | B30: 1 | C30: libra | D30: =A30/B30 -> $0.50 | E30: hierba buena | F30: gramo | G30: $0.00110 | I30: pimienta
A31: $3.20 | B31: 30 | C31: unidad | D31: =A31/B31 -> $0.11 | E31: huevo | F31: unidad | G31: =D31 -> $0.10667 | I31: Pollo
D32: $4.30 | E32: jamonada | F32: gramo | G32: =D32/$L$4 -> $0.00946 | I32: sabora
D33: $0.65 | E33: leche | F33: litros | G33: =D33/$L$4 -> $0.00143 | I33: sal
D34: $1.60 | E34: Lengua | F34: unidad | G34: =D34 -> $1.60000
D35: $1.00 | E35: lechuga | F35: gramo | G35: =D35/$L$4 -> $0.00220
A36: $6.00 | B36: 100 | C36: unidad | D36: =A36/B36 -> $0.06 | E36: limon grande | F36: unidad | G36: =D36 -> $0.06000
A37: $6.65 | B37: 100 | C37: unidad | D37: =A37/B37 -> $0.07 | E37: limon pequeño | F37: unidad | G37: =D37 -> $0.06650
D38: $2.00 | E38: Lomo | F38: gramo | G38: =D38/$L$4 -> $0.00440
A39: $0.81 | B39: 8 | C39: unidad | D39: =A39/B39 -> $0.10 | E39: maggui 84g 8 cubitos | F39: gramo | G39: $0.00022
D40: $1.50 | E40: mani | F40: gramo | G40: $0.00330
D41: $1.50 | E41: manteca de chancho | F41: gramo | G41: $0.00330
D42: $0.55 | E42: mantequilla | F42: gramo | G42: $0.00121
A43: $1.49 | B43: 200 | C43: gramos | D43: =A43/B43 -> $0.01 | E43: mayonesa | F43: gramo | G43: $0.00002
A44: $1.05 | B44: 200 | C44: gramos | D44: $0.01 | E44: mostaza | F44: gramo | G44: $0.00001
D45: $1.80 | E45: menudo | F45: gramo | G45: $0.00396
E46: naranja | F46: gramo | G46: 0
E47: nuez moscada | F47: gramo | G47: 0
A48: $1.50 | B48: 1 | C48: libra | D48: =A48/B48 -> $1.50 | E48: oregano | F48: gramo | G48: $0.00330
D49: $0.2500 | E49: palillos | F49: unidad | G49: =D49 -> $0.25000
A50: $20.00 | B50: 100 | C50: libra | D50: =A50/B50 -> $0.2000 | E50: papas | F50: gramo | G50: $0.00044
A51: $0.50 | B51: 1 | C51: libra | D51: =A51/B51 -> $0.50 | E51: perejil | F51: gramo | G51: $0.00110
A52: $2.40 | B52: 1 | C52: libra | D52: =A52/B52 -> $2.40 | E52: pimienta dulce | F52: gramo | G52: $0.00528
A53: $3.40 | B53: 1 | C53: libra | D53: $3.40 | E53: pimienta | F53: gramo | G53: $0.00748
D54: $2.50 | E54: pimientos | F54: gramo | G54: $0.00550
A55: $1.00 | B55: 1 | C55: libra | D55: =A55/B55 -> $1.0000 | E55: Pollo | F55: gramo | G55: $0.00220
D56: $2.80 | E56: queso | F56: unidad | G56: =D56 -> $2.80000
D57: $1.00 | E57: rabanos | F57: gramo | G57: $0.00220
A58: $3.20 | B58: 1 | C58: libra | D58: =A58/B58 -> $3.2000 | E58: sabora | F58: gramo | G58: $0.00704
A59: $0.70 | B59: 1 | C59: libra | D59: =A59/B59 -> $0.7000 | E59: sal | F59: gramo | G59: $0.00154
D60: $1.80 | E60: salchicha | F60: gramo | G60: $0.00396
A61: $1.35 | B61: 395 | C61: gramos | D61: =A61/B61 -> $0.0034 | E61: salsa de tomate | F61: gramo | G61: $0.00001
E62: salsa inglesa | F62: gramo | G62: 0
A63: $0.89 | B63: 70 | C63: gramos | D63: =A63/B63 -> $0.0127 | E63: Sobres de crema magui | F63: gramo | G63: $0.00003
D64: $0.70 | E64: tallarin | F64: gramo | G64: $0.00154
D65: $0.05 | E65: tomate riñon | F65: unidad | G65: =D65 -> $0.05000
D66: $12.00 | E66: tosino | F66: gramo | G66: $0.02640
E67: zahahoria | F67: gramo | G67: =D67/$L$4 -> 0
E70: agua mineral | F70: litro
E71: arrocillo | F71: gramo
E72: azucar | F72: gramo
E73: canela | F73: gramo
E74: canguil | F74: gramo
E75: cedron | F75: gramo
E76: clavo de olor | F76: gramo
E77: crema de leche | F77: litro
D78: $6.00 | E78: durazno | F78: unidad | G78: =D78 -> $6.00000
E79: frutilla | F79: gramo
E80: gelatina | F80: gramo
E81: guayaba | F81: gramo
E82: hierba luisa | F82: gramo
E83: ispingo | F83: gramo
E84: manzana | F84: unidad
E85: mora | F85: gramo
E86: naranja | F86: gramo
E87: naranjilla | F87: gramo
D88: $0.12 | E88: pan | F88: unidad | G88: =D88 -> $0.12000
E89: papaya | F89: gramo
E90: piña | F90: gramo
E91: platano | F91: gramo
E92: sandia | F92: gramo
E93: tomate de árbol | F93: gramo
D94: $3.50 | E94: Torta | F94: unidad | G94: =D94 -> $3.50000
E95: uvas | F95: gramo
E96: vainilla | F96: gramo
E97: verde | F97: gramo
